{"text_format":"1","workbook":"xlsx","n_sheets":9,"sheets":["الرئيسية","تسجيل البيعة","تسجيل المخزون","تسجيل التالف","المخزون","الاشهر","الشهر","بطاقة المواد","مخزون التالف"],"not_rendered":{"charts":0,"images":3,"macros":1,"external_links":1,"defined_names":1,"comments":0,"pivot_tables":0},"unopened":[],"bounds":{"document_bytes":16777216,"sheet_cells":100000,"rows_first":2000,"rows_last":500,"rows_between":2000,"halvings":0,"cell_chars":16384,"cell_head_chars":4096},"cells_cut":0,"cells_raw":0,"read":"whole","date_system":"1900"}

{"sheet":"الرئيسية","index":0,"n_rows":0,"n_cols":0,"rows_kept":0,"cut":false,"hidden":false,"merged":[]}

{"sheet":"تسجيل البيعة","index":1,"n_rows":28,"n_cols":9,"rows_kept":28,"cut":false,"hidden":false,"merged":[[7,8,7,9],[2,8,2,9],[3,8,3,9],[4,8,4,9],[5,8,5,9],[6,8,6,9],[14,8,14,9],[15,8,15,9],[8,8,8,9],[9,8,9,9],[10,8,10,9],[11,8,11,9],[12,8,12,9],[13,8,13,9]]}
[]
[null,null,"تاريخ الفاتورة",null,"وقت الفاتورة",null,"رقم الفاتورة",null,"نوع الفاتورة :"]
[null,null,"باركود","الصنف","الغرام","العدد","طريقة الدفع","الضريبة","السعر"]
[null,null,null,{"$f":"IFERROR(VLOOKUP(C4,'بطاقة المواد'!$B$3:$E$19,3,0),\"\")","v":""}]
[null,null,null,{"$f":"IFERROR(VLOOKUP(C5,'بطاقة المواد'!$B$3:$E$19,3,0),\"\")","v":""}]
[null,null,null,{"$f":"IFERROR(VLOOKUP(C6,'بطاقة المواد'!$B$3:$E$19,3,0),\"\")","v":""}]
[null,null,null,{"$f":"IFERROR(VLOOKUP(C7,'بطاقة المواد'!$B$3:$E$19,3,0),\"\")","v":""}]
[null,null,null,{"$f":"IFERROR(VLOOKUP(C8,'بطاقة المواد'!$B$3:$E$19,3,0),\"\")","v":""}]
[null,null,null,{"$f":"IFERROR(VLOOKUP(C9,'بطاقة المواد'!$B$3:$E$19,3,0),\"\")","v":""}]
[null,null,null,{"$f":"IFERROR(VLOOKUP(C10,'بطاقة المواد'!$B$3:$E$19,3,0),\"\")","v":""}]
[null,null,null,{"$f":"IFERROR(VLOOKUP(C11,'بطاقة المواد'!$B$3:$E$19,3,0),\"\")","v":""}]
[null,null,null,{"$f":"IFERROR(VLOOKUP(C12,'بطاقة المواد'!$B$3:$E$19,3,0),\"\")","v":""}]
[null,null,null,{"$f":"IFERROR(VLOOKUP(C13,'بطاقة المواد'!$B$3:$E$19,3,0),\"\")","v":""}]
[null,null,null,{"$f":"IFERROR(VLOOKUP(C14,'بطاقة المواد'!$B$3:$E$19,3,0),\"\")","v":""}]
[null,null,null,{"$f":"IFERROR(VLOOKUP(C15,'بطاقة المواد'!$B$3:$E$19,3,0),\"\")","v":""}]
[null,null,null,{"$f":"IFERROR(VLOOKUP(C16,'بطاقة المواد'!$B$3:$E$19,3,0),\"\")","v":""}]
[]
[]
[]
[]
[]
[]
[]
[]
[null,null,"تالف"]
[null,null,"بيع"]
[null,null,"وارد"]
[null,null,"مرتجع"]

{"sheet":"تسجيل المخزون","index":2,"n_rows":4,"n_cols":6,"rows_kept":4,"cut":false,"hidden":false,"merged":[]}
["التاريخ","رقم الفاتورة","باركود الصنف","الصنف","الغرام","العدد"]
[null,null,1,"مواد خام"]
[null,null,2,"عشرة"]
[null,null,3,"عشرين"]

{"sheet":"تسجيل التالف","index":3,"n_rows":5,"n_cols":6,"rows_kept":5,"cut":false,"hidden":false,"merged":[]}
["التاريخ","رقم الفاتورة","باركود الصنف","الصنف","الغرام","العدد"]
[null,null,1,"مواد خام"]
[null,null,2,"عشرة"]
[null,null,3,"عشرين"]
[null,null,3,"عشرين"]

{"sheet":"المخزون","index":4,"n_rows":25,"n_cols":3,"rows_kept":25,"cut":false,"hidden":false,"merged":[]}
[]
[]
["باركود الصنف","الصنف","المخزون"]
[{"$f":"'بطاقة المواد'!B3","v":1},{"$f":"IFERROR(VLOOKUP(A4,'بطاقة المواد'!B$3:E$19,3),\"\")","v":"مواد خام"},{"$f":"SUMIFS('تسجيل المخزون'!$F$2:$F$99,'تسجيل المخزون'!$D$2:$D$99,B4,'تسجيل المخزون'!#REF!,\"وارد\")-SUMIFS('تسجيل المخزون'!$F$2:$F$99,'تسجيل المخزون'!$D$2:$D$99,B4,'تسجيل المخزون'!#REF!,\"بيع\")-SUMIFS('تسجيل المخزون'!$F$2:$F$99,'تسجيل المخزون'!$D$2:$D$99,B4,'تسجيل المخزون'!#REF!,\"تالف\")","v":{"$error":"#REF!"}}]
[{"$f":"'بطاقة المواد'!B4","v":2},{"$f":"IFERROR(VLOOKUP(A5,'بطاقة المواد'!B$3:E$19,3),\"\")","v":"عشرة"},{"$f":"SUMIFS('تسجيل المخزون'!$F$2:$F$99,'تسجيل المخزون'!$D$2:$D$99,B5,'تسجيل المخزون'!#REF!,\"وارد\")-SUMIFS('تسجيل المخزون'!$F$2:$F$99,'تسجيل المخزون'!$D$2:$D$99,B5,'تسجيل المخزون'!#REF!,\"بيع\")-SUMIFS('تسجيل المخزون'!$F$2:$F$99,'تسجيل المخزون'!$D$2:$D$99,B5,'تسجيل المخزون'!#REF!,\"تالف\")","v":{"$error":"#REF!"}}]
[{"$f":"'بطاقة المواد'!B5","v":3},{"$f":"IFERROR(VLOOKUP(A6,'بطاقة المواد'!B$3:E$19,3),\"\")","v":"عشرين"},{"$f":"SUMIFS('تسجيل المخزون'!$F$2:$F$99,'تسجيل المخزون'!$D$2:$D$99,B6,'تسجيل المخزون'!#REF!,\"وارد\")-SUMIFS('تسجيل المخزون'!$F$2:$F$99,'تسجيل المخزون'!$D$2:$D$99,B6,'تسجيل المخزون'!#REF!,\"بيع\")-SUMIFS('تسجيل المخزون'!$F$2:$F$99,'تسجيل المخزون'!$D$2:$D$99,B6,'تسجيل المخزون'!#REF!,\"تالف\")","v":{"$error":"#REF!"}}]
[{"$f":"'بطاقة المواد'!B6","v":4},{"$f":"IFERROR(VLOOKUP(A7,'بطاقة المواد'!B$3:E$19,3),\"\")","v":"تلاتين"},{"$f":"SUMIFS('تسجيل المخزون'!$F$2:$F$99,'تسجيل المخزون'!$D$2:$D$99,B7,'تسجيل المخزون'!#REF!,\"وارد\")-SUMIFS('تسجيل المخزون'!$F$2:$F$99,'تسجيل المخزون'!$D$2:$D$99,B7,'تسجيل المخزون'!#REF!,\"بيع\")-SUMIFS('تسجيل المخزون'!$F$2:$F$99,'تسجيل المخزون'!$D$2:$D$99,B7,'تسجيل المخزون'!#REF!,\"تالف\")","v":{"$error":"#REF!"}}]
[{"$f":"'بطاقة المواد'!B7","v":5},{"$f":"IFERROR(VLOOKUP(A8,'بطاقة المواد'!B$3:E$19,3),\"\")","v":"اربعين"},{"$f":"SUMIFS('تسجيل المخزون'!$F$2:$F$99,'تسجيل المخزون'!$D$2:$D$99,B8,'تسجيل المخزون'!#REF!,\"وارد\")-SUMIFS('تسجيل المخزون'!$F$2:$F$99,'تسجيل المخزون'!$D$2:$D$99,B8,'تسجيل المخزون'!#REF!,\"بيع\")-SUMIFS('تسجيل المخزون'!$F$2:$F$99,'تسجيل المخزون'!$D$2:$D$99,B8,'تسجيل المخزون'!#REF!,\"تالف\")","v":{"$error":"#REF!"}}]
[{"$f":"'بطاقة المواد'!B8","v":6},{"$f":"IFERROR(VLOOKUP(A9,'بطاقة المواد'!B$3:E$19,3),\"\")","v":"خمسين"},{"$f":"SUMIFS('تسجيل المخزون'!$F$2:$F$99,'تسجيل المخزون'!$D$2:$D$99,B9,'تسجيل المخزون'!#REF!,\"وارد\")-SUMIFS('تسجيل المخزون'!$F$2:$F$99,'تسجيل المخزون'!$D$2:$D$99,B9,'تسجيل المخزون'!#REF!,\"بيع\")-SUMIFS('تسجيل المخزون'!$F$2:$F$99,'تسجيل المخزون'!$D$2:$D$99,B9,'تسجيل المخزون'!#REF!,\"تالف\")","v":{"$error":"#REF!"}}]
[{"$f":"'بطاقة المواد'!B9","v":7},{"$f":"IFERROR(VLOOKUP(A10,'بطاقة المواد'!B$3:E$19,3),\"\")","v":"SA"},{"$f":"SUMIFS('تسجيل المخزون'!$F$2:$F$99,'تسجيل المخزون'!$D$2:$D$99,B10,'تسجيل المخزون'!#REF!,\"وارد\")-SUMIFS('تسجيل المخزون'!$F$2:$F$99,'تسجيل المخزون'!$D$2:$D$99,B10,'تسجيل المخزون'!#REF!,\"بيع\")-SUMIFS('تسجيل المخزون'!$F$2:$F$99,'تسجيل المخزون'!$D$2:$D$99,B10,'تسجيل المخزون'!#REF!,\"تالف\")","v":{"$error":"#REF!"}}]
[{"$f":"'بطاقة المواد'!B10","v":0},{"$f":"IFERROR(VLOOKUP(A11,'بطاقة المواد'!B$3:E$19,3),\"\")","v":""},{"$f":"SUMIFS('تسجيل المخزون'!$F$2:$F$99,'تسجيل المخزون'!$D$2:$D$99,B11,'تسجيل المخزون'!#REF!,\"وارد\")-SUMIFS('تسجيل المخزون'!$F$2:$F$99,'تسجيل المخزون'!$D$2:$D$99,B11,'تسجيل المخزون'!#REF!,\"بيع\")-SUMIFS('تسجيل المخزون'!$F$2:$F$99,'تسجيل المخزون'!$D$2:$D$99,B11,'تسجيل المخزون'!#REF!,\"تالف\")","v":{"$error":"#REF!"}}]
[{"$f":"'بطاقة المواد'!B11","v":0},{"$f":"IFERROR(VLOOKUP(A12,'بطاقة المواد'!B$3:E$19,3),\"\")","v":""},{"$f":"SUMIFS('تسجيل المخزون'!$F$2:$F$99,'تسجيل المخزون'!$D$2:$D$99,B12,'تسجيل المخزون'!#REF!,\"وارد\")-SUMIFS('تسجيل المخزون'!$F$2:$F$99,'تسجيل المخزون'!$D$2:$D$99,B12,'تسجيل المخزون'!#REF!,\"بيع\")-SUMIFS('تسجيل المخزون'!$F$2:$F$99,'تسجيل المخزون'!$D$2:$D$99,B12,'تسجيل المخزون'!#REF!,\"تالف\")","v":{"$error":"#REF!"}}]
[{"$f":"'بطاقة المواد'!B12","v":0},{"$f":"IFERROR(VLOOKUP(A13,'بطاقة المواد'!B$3:E$19,3),\"\")","v":""},{"$f":"SUMIFS('تسجيل المخزون'!$F$2:$F$99,'تسجيل المخزون'!$D$2:$D$99,B13,'تسجيل المخزون'!#REF!,\"وارد\")-SUMIFS('تسجيل المخزون'!$F$2:$F$99,'تسجيل المخزون'!$D$2:$D$99,B13,'تسجيل المخزون'!#REF!,\"بيع\")-SUMIFS('تسجيل المخزون'!$F$2:$F$99,'تسجيل المخزون'!$D$2:$D$99,B13,'تسجيل المخزون'!#REF!,\"تالف\")","v":{"$error":"#REF!"}}]
[{"$f":"'بطاقة المواد'!B13","v":0},{"$f":"IFERROR(VLOOKUP(A14,'بطاقة المواد'!B$3:E$19,3),\"\")","v":""},{"$f":"SUMIFS('تسجيل المخزون'!$F$2:$F$99,'تسجيل المخزون'!$D$2:$D$99,B14,'تسجيل المخزون'!#REF!,\"وارد\")-SUMIFS('تسجيل المخزون'!$F$2:$F$99,'تسجيل المخزون'!$D$2:$D$99,B14,'تسجيل المخزون'!#REF!,\"بيع\")-SUMIFS('تسجيل المخزون'!$F$2:$F$99,'تسجيل المخزون'!$D$2:$D$99,B14,'تسجيل المخزون'!#REF!,\"تالف\")","v":{"$error":"#REF!"}}]
[{"$f":"'بطاقة المواد'!B14","v":0},{"$f":"IFERROR(VLOOKUP(A15,'بطاقة المواد'!B$3:E$19,3),\"\")","v":""},{"$f":"SUMIFS('تسجيل المخزون'!$F$2:$F$99,'تسجيل المخزون'!$D$2:$D$99,B15,'تسجيل المخزون'!#REF!,\"وارد\")-SUMIFS('تسجيل المخزون'!$F$2:$F$99,'تسجيل المخزون'!$D$2:$D$99,B15,'تسجيل المخزون'!#REF!,\"بيع\")-SUMIFS('تسجيل المخزون'!$F$2:$F$99,'تسجيل المخزون'!$D$2:$D$99,B15,'تسجيل المخزون'!#REF!,\"تالف\")","v":{"$error":"#REF!"}}]
[{"$f":"'بطاقة المواد'!B15","v":0},{"$f":"IFERROR(VLOOKUP(A16,'بطاقة المواد'!B$3:E$19,3),\"\")","v":""},{"$f":"SUMIFS('تسجيل المخزون'!$F$2:$F$99,'تسجيل المخزون'!$D$2:$D$99,B16,'تسجيل المخزون'!#REF!,\"وارد\")-SUMIFS('تسجيل المخزون'!$F$2:$F$99,'تسجيل المخزون'!$D$2:$D$99,B16,'تسجيل المخزون'!#REF!,\"بيع\")-SUMIFS('تسجيل المخزون'!$F$2:$F$99,'تسجيل المخزون'!$D$2:$D$99,B16,'تسجيل المخزون'!#REF!,\"تالف\")","v":{"$error":"#REF!"}}]
[{"$f":"'بطاقة المواد'!B16","v":0},{"$f":"IFERROR(VLOOKUP(A17,'بطاقة المواد'!B$3:E$19,3),\"\")","v":""},{"$f":"SUMIFS('تسجيل المخزون'!$F$2:$F$99,'تسجيل المخزون'!$D$2:$D$99,B17,'تسجيل المخزون'!#REF!,\"وارد\")-SUMIFS('تسجيل المخزون'!$F$2:$F$99,'تسجيل المخزون'!$D$2:$D$99,B17,'تسجيل المخزون'!#REF!,\"بيع\")-SUMIFS('تسجيل المخزون'!$F$2:$F$99,'تسجيل المخزون'!$D$2:$D$99,B17,'تسجيل المخزون'!#REF!,\"تالف\")","v":{"$error":"#REF!"}}]
[{"$f":"'بطاقة المواد'!B17","v":0},{"$f":"IFERROR(VLOOKUP(A18,'بطاقة المواد'!B$3:E$19,3),\"\")","v":""},{"$f":"SUMIFS('تسجيل المخزون'!$F$2:$F$99,'تسجيل المخزون'!$D$2:$D$99,B18,'تسجيل المخزون'!#REF!,\"وارد\")-SUMIFS('تسجيل المخزون'!$F$2:$F$99,'تسجيل المخزون'!$D$2:$D$99,B18,'تسجيل المخزون'!#REF!,\"بيع\")-SUMIFS('تسجيل المخزون'!$F$2:$F$99,'تسجيل المخزون'!$D$2:$D$99,B18,'تسجيل المخزون'!#REF!,\"تالف\")","v":{"$error":"#REF!"}}]
[{"$f":"'بطاقة المواد'!B18","v":0},{"$f":"IFERROR(VLOOKUP(A19,'بطاقة المواد'!B$3:E$19,3),\"\")","v":""},{"$f":"SUMIFS('تسجيل المخزون'!$F$2:$F$99,'تسجيل المخزون'!$D$2:$D$99,B19,'تسجيل المخزون'!#REF!,\"وارد\")-SUMIFS('تسجيل المخزون'!$F$2:$F$99,'تسجيل المخزون'!$D$2:$D$99,B19,'تسجيل المخزون'!#REF!,\"بيع\")-SUMIFS('تسجيل المخزون'!$F$2:$F$99,'تسجيل المخزون'!$D$2:$D$99,B19,'تسجيل المخزون'!#REF!,\"تالف\")","v":{"$error":"#REF!"}}]
[{"$f":"'بطاقة المواد'!B19","v":0},{"$f":"IFERROR(VLOOKUP(A20,'بطاقة المواد'!B$3:E$19,3),\"\")","v":""},{"$f":"SUMIFS('تسجيل المخزون'!$F$2:$F$99,'تسجيل المخزون'!$D$2:$D$99,B20,'تسجيل المخزون'!#REF!,\"وارد\")-SUMIFS('تسجيل المخزون'!$F$2:$F$99,'تسجيل المخزون'!$D$2:$D$99,B20,'تسجيل المخزون'!#REF!,\"بيع\")-SUMIFS('تسجيل المخزون'!$F$2:$F$99,'تسجيل المخزون'!$D$2:$D$99,B20,'تسجيل المخزون'!#REF!,\"تالف\")","v":{"$error":"#REF!"}}]
[{"$f":"'بطاقة المواد'!B20","v":0},{"$f":"IFERROR(VLOOKUP(A21,'بطاقة المواد'!B$3:E$19,3),\"\")","v":""},{"$f":"SUMIFS('تسجيل المخزون'!$F$2:$F$99,'تسجيل المخزون'!$D$2:$D$99,B21,'تسجيل المخزون'!#REF!,\"وارد\")-SUMIFS('تسجيل المخزون'!$F$2:$F$99,'تسجيل المخزون'!$D$2:$D$99,B21,'تسجيل المخزون'!#REF!,\"بيع\")-SUMIFS('تسجيل المخزون'!$F$2:$F$99,'تسجيل المخزون'!$D$2:$D$99,B21,'تسجيل المخزون'!#REF!,\"تالف\")","v":{"$error":"#REF!"}}]
[{"$f":"'بطاقة المواد'!B21","v":0},{"$f":"IFERROR(VLOOKUP(A22,'بطاقة المواد'!B$3:E$19,3),\"\")","v":""},{"$f":"SUMIFS('تسجيل المخزون'!$F$2:$F$99,'تسجيل المخزون'!$D$2:$D$99,B22,'تسجيل المخزون'!#REF!,\"وارد\")-SUMIFS('تسجيل المخزون'!$F$2:$F$99,'تسجيل المخزون'!$D$2:$D$99,B22,'تسجيل المخزون'!#REF!,\"بيع\")-SUMIFS('تسجيل المخزون'!$F$2:$F$99,'تسجيل المخزون'!$D$2:$D$99,B22,'تسجيل المخزون'!#REF!,\"تالف\")","v":{"$error":"#REF!"}}]
[{"$f":"'بطاقة المواد'!B22","v":0},{"$f":"IFERROR(VLOOKUP(A23,'بطاقة المواد'!B$3:E$19,3),\"\")","v":""},{"$f":"SUMIFS('تسجيل المخزون'!$F$2:$F$99,'تسجيل المخزون'!$D$2:$D$99,B23,'تسجيل المخزون'!#REF!,\"وارد\")-SUMIFS('تسجيل المخزون'!$F$2:$F$99,'تسجيل المخزون'!$D$2:$D$99,B23,'تسجيل المخزون'!#REF!,\"بيع\")-SUMIFS('تسجيل المخزون'!$F$2:$F$99,'تسجيل المخزون'!$D$2:$D$99,B23,'تسجيل المخزون'!#REF!,\"تالف\")","v":{"$error":"#REF!"}}]
[{"$f":"'بطاقة المواد'!B23","v":0},{"$f":"IFERROR(VLOOKUP(A24,'بطاقة المواد'!B$3:E$19,3),\"\")","v":""},{"$f":"SUMIFS('تسجيل المخزون'!$F$2:$F$99,'تسجيل المخزون'!$D$2:$D$99,B24,'تسجيل المخزون'!#REF!,\"وارد\")-SUMIFS('تسجيل المخزون'!$F$2:$F$99,'تسجيل المخزون'!$D$2:$D$99,B24,'تسجيل المخزون'!#REF!,\"بيع\")-SUMIFS('تسجيل المخزون'!$F$2:$F$99,'تسجيل المخزون'!$D$2:$D$99,B24,'تسجيل المخزون'!#REF!,\"تالف\")","v":{"$error":"#REF!"}}]
[{"$f":"'بطاقة المواد'!B24","v":0},{"$f":"IFERROR(VLOOKUP(A25,'بطاقة المواد'!B$3:E$19,3),\"\")","v":""},{"$f":"SUMIFS('تسجيل المخزون'!$F$2:$F$99,'تسجيل المخزون'!$D$2:$D$99,B25,'تسجيل المخزون'!#REF!,\"وارد\")-SUMIFS('تسجيل المخزون'!$F$2:$F$99,'تسجيل المخزون'!$D$2:$D$99,B25,'تسجيل المخزون'!#REF!,\"بيع\")-SUMIFS('تسجيل المخزون'!$F$2:$F$99,'تسجيل المخزون'!$D$2:$D$99,B25,'تسجيل المخزون'!#REF!,\"تالف\")","v":{"$error":"#REF!"}}]

{"sheet":"الاشهر","index":5,"n_rows":35,"n_cols":25,"rows_kept":35,"cut":false,"hidden":false,"merged":[[1,0,1,12],[0,0,0,1],[0,2,0,3],[0,4,0,5],[0,6,0,11]]}
["كود الصنف",null,1,null,"الصنف",null,{"$f":"IFERROR(VLOOKUP(C1,'بطاقة المواد'!B3:E19,3,0),\"\")","v":"مواد خام"}]
[2023]
["الايام / الاشهر","يناير","فبراير","مارس","أبريل","مايو","يونيو","يوليو","أغسطس","سبتمبر","أكتوبر","نوفمبر","ديسمبر"]
[1,{"$f":"SUMIFS('تسجيل المخزون'!$F$2:$F$93,'تسجيل المخزون'!$D$2:$D$93,$G$1,'تسجيل المخزون'!#REF!,N4,'تسجيل المخزون'!#REF!,\"وارد\")-SUMIFS('تسجيل المخزون'!$F$2:$F$93,'تسجيل المخزون'!$D$2:$D$93,$G$1,'تسجيل المخزون'!#REF!,N4,'تسجيل المخزون'!#REF!,\"بيع\")-SUMIFS('تسجيل المخزون'!$F$2:$F$93,'تسجيل المخزون'!$D$2:$D$93,$G$1,'تسجيل المخزون'!#REF!,N4,'تسجيل المخزون'!#REF!,\"تالف\")","v":{"$error":"#REF!"}},{"$f":"SUMIFS('تسجيل المخزون'!$F$2:$F$93,'تسجيل المخزون'!$D$2:$D$93,$G$1,'تسجيل المخزون'!#REF!,O4,'تسجيل المخزون'!#REF!,\"وارد\")-SUMIFS('تسجيل المخزون'!$F$2:$F$93,'تسجيل المخزون'!$D$2:$D$93,$G$1,'تسجيل المخزون'!#REF!,O4,'تسجيل المخزون'!#REF!,\"بيع\")-SUMIFS('تسجيل المخزون'!$F$2:$F$93,'تسجيل المخزون'!$D$2:$D$93,$G$1,'تسجيل المخزون'!#REF!,O4,'تسجيل المخزون'!#REF!,\"تالف\")","v":{"$error":"#REF!"}},{"$f":"SUMIFS('تسجيل المخزون'!$F$2:$F$93,'تسجيل المخزون'!$D$2:$D$93,$G$1,'تسجيل المخزون'!#REF!,P4,'تسجيل المخزون'!#REF!,\"وارد\")-SUMIFS('تسجيل المخزون'!$F$2:$F$93,'تسجيل المخزون'!$D$2:$D$93,$G$1,'تسجيل المخزون'!#REF!,P4,'تسجيل المخزون'!#REF!,\"بيع\")-SUMIFS('تسجيل المخزون'!$F$2:$F$93,'تسجيل المخزون'!$D$2:$D$93,$G$1,'تسجيل المخزون'!#REF!,P4,'تسجيل المخزون'!#REF!,\"تالف\")","v":{"$error":"#REF!"}},{"$f":"SUMIFS('تسجيل المخزون'!$F$2:$F$93,'تسجيل المخزون'!$D$2:$D$93,$G$1,'تسجيل المخزون'!#REF!,Q4,'تسجيل المخزون'!#REF!,\"وارد\")-SUMIFS('تسجيل المخزون'!$F$2:$F$93,'تسجيل المخزون'!$D$2:$D$93,$G$1,'تسجيل المخزون'!#REF!,Q4,'تسجيل المخزون'!#REF!,\"بيع\")-SUMIFS('تسجيل المخزون'!$F$2:$F$93,'تسجيل المخزون'!$D$2:$D$93,$G$1,'تسجيل المخزون'!#REF!,Q4,'تسجيل المخزون'!#REF!,\"تالف\")","v":{"$error":"#REF!"}},{"$f":"SUMIFS('تسجيل المخزون'!$F$2:$F$93,'تسجيل المخزون'!$D$2:$D$93,$G$1,'تسجيل المخزون'!#REF!,R4,'تسجيل المخزون'!#REF!,\"وارد\")-SUMIFS('تسجيل المخزون'!$F$2:$F$93,'تسجيل المخزون'!$D$2:$D$93,$G$1,'تسجيل المخزون'!#REF!,R4,'تسجيل المخزون'!#REF!,\"بيع\")-SUMIFS('تسجيل المخزون'!$F$2:$F$93,'تسجيل المخزون'!$D$2:$D$93,$G$1,'تسجيل المخزون'!#REF!,R4,'تسجيل المخزون'!#REF!,\"تالف\")","v":{"$error":"#REF!"}},{"$f":"SUMIFS('تسجيل المخزون'!$F$2:$F$93,'تسجيل المخزون'!$D$2:$D$93,$G$1,'تسجيل المخزون'!#REF!,S4,'تسجيل المخزون'!#REF!,\"وارد\")-SUMIFS('تسجيل المخزون'!$F$2:$F$93,'تسجيل المخزون'!$D$2:$D$93,$G$1,'تسجيل المخزون'!#REF!,S4,'تسجيل المخزون'!#REF!,\"بيع\")-SUMIFS('تسجيل المخزون'!$F$2:$F$93,'تسجيل المخزون'!$D$2:$D$93,$G$1,'تسجيل المخزون'!#REF!,S4,'تسجيل المخزون'!#REF!,\"تالف\")","v":{"$error":"#REF!"}},{"$f":"SUMIFS('تسجيل المخزون'!$F$2:$F$93,'تسجيل المخزون'!$D$2:$D$93,$G$1,'تسجيل المخزون'!#REF!,T4,'تسجيل المخزون'!#REF!,\"وارد\")-SUMIFS('تسجيل المخزون'!$F$2:$F$93,'تسجيل المخزون'!$D$2:$D$93,$G$1,'تسجيل المخزون'!#REF!,T4,'تسجيل المخزون'!#REF!,\"بيع\")-SUMIFS('تسجيل المخزون'!$F$2:$F$93,'تسجيل المخزون'!$D$2:$D$93,$G$1,'تسجيل المخزون'!#REF!,T4,'تسجيل المخزون'!#REF!,\"تالف\")","v":{"$error":"#REF!"}},{"$f":"SUMIFS('تسجيل المخزون'!$F$2:$F$93,'تسجيل المخزون'!$D$2:$D$93,$G$1,'تسجيل المخزون'!#REF!,U4,'تسجيل المخزون'!#REF!,\"وارد\")-SUMIFS('تسجيل المخزون'!$F$2:$F$93,'تسجيل المخزون'!$D$2:$D$93,$G$1,'تسجيل المخزون'!#REF!,U4,'تسجيل المخزون'!#REF!,\"بيع\")-SUMIFS('تسجيل المخزون'!$F$2:$F$93,'تسجيل المخزون'!$D$2:$D$93,$G$1,'تسجيل المخزون'!#REF!,U4,'تسجيل المخزون'!#REF!,\"تالف\")","v":{"$error":"#REF!"}},{"$f":"SUMIFS('تسجيل المخزون'!$F$2:$F$93,'تسجيل المخزون'!$D$2:$D$93,$G$1,'تسجيل المخزون'!#REF!,V4,'تسجيل المخزون'!#REF!,\"وارد\")-SUMIFS('تسجيل المخزون'!$F$2:$F$93,'تسجيل المخزون'!$D$2:$D$93,$G$1,'تسجيل المخزون'!#REF!,V4,'تسجيل المخزون'!#REF!,\"بيع\")-SUMIFS('تسجيل المخزون'!$F$2:$F$93,'تسجيل المخزون'!$D$2:$D$93,$G$1,'تسجيل المخزون'!#REF!,V4,'تسجيل المخزون'!#REF!,\"تالف\")","v":{"$error":"#REF!"}},{"$f":"SUMIFS('تسجيل المخزون'!$F$2:$F$93,'تسجيل المخزون'!$D$2:$D$93,$G$1,'تسجيل المخزون'!#REF!,W4,'تسجيل المخزون'!#REF!,\"وارد\")-SUMIFS('تسجيل المخزون'!$F$2:$F$93,'تسجيل المخزون'!$D$2:$D$93,$G$1,'تسجيل المخزون'!#REF!,W4,'تسجيل المخزون'!#REF!,\"بيع\")-SUMIFS('تسجيل المخزون'!$F$2:$F$93,'تسجيل المخزون'!$D$2:$D$93,$G$1,'تسجيل المخزون'!#REF!,W4,'تسجيل المخزون'!#REF!,\"تالف\")","v":{"$error":"#REF!"}},{"$f":"SUMIFS('تسجيل المخزون'!$F$2:$F$93,'تسجيل المخزون'!$D$2:$D$93,$G$1,'تسجيل المخزون'!#REF!,X4,'تسجيل المخزون'!#REF!,\"وارد\")-SUMIFS('تسجيل المخزون'!$F$2:$F$93,'تسجيل المخزون'!$D$2:$D$93,$G$1,'تسجيل المخزون'!#REF!,X4,'تسجيل المخزون'!#REF!,\"بيع\")-SUMIFS('تسجيل المخزون'!$F$2:$F$93,'تسجيل المخزون'!$D$2:$D$93,$G$1,'تسجيل المخزون'!#REF!,X4,'تسجيل المخزون'!#REF!,\"تالف\")","v":{"$error":"#REF!"}},{"$f":"SUMIFS('تسجيل المخزون'!$F$2:$F$93,'تسجيل المخزون'!$D$2:$D$93,$G$1,'تسجيل المخزون'!#REF!,Y4,'تسجيل المخزون'!#REF!,\"وارد\")-SUMIFS('تسجيل المخزون'!$F$2:$F$93,'تسجيل المخزون'!$D$2:$D$93,$G$1,'تسجيل المخزون'!#REF!,Y4,'تسجيل المخزون'!#REF!,\"بيع\")-SUMIFS('تسجيل المخزون'!$F$2:$F$93,'تسجيل المخزون'!$D$2:$D$93,$G$1,'تسجيل المخزون'!#REF!,Y4,'تسجيل المخزون'!#REF!,\"تالف\")","v":{"$error":"#REF!"}},"2023-01-01","2023-02-01","2023-03-01","2023-04-01","2023-05-01","2023-06-01","2023-07-01","2023-08-01","2023-09-01","2023-10-01","2023-11-01","2023-12-01"]
[2,{"$f":"SUMIFS('تسجيل المخزون'!$F$2:$F$93,'تسجيل المخزون'!$D$2:$D$93,$G$1,'تسجيل المخزون'!#REF!,N5,'تسجيل المخزون'!#REF!,\"وارد\")-SUMIFS('تسجيل المخزون'!$F$2:$F$93,'تسجيل المخزون'!$D$2:$D$93,$G$1,'تسجيل المخزون'!#REF!,N5,'تسجيل المخزون'!#REF!,\"بيع\")-SUMIFS('تسجيل المخزون'!$F$2:$F$93,'تسجيل المخزون'!$D$2:$D$93,$G$1,'تسجيل المخزون'!#REF!,N5,'تسجيل المخزون'!#REF!,\"تالف\")","v":{"$error":"#REF!"}},{"$f":"SUMIFS('تسجيل المخزون'!$F$2:$F$93,'تسجيل المخزون'!$D$2:$D$93,$G$1,'تسجيل المخزون'!#REF!,O5,'تسجيل المخزون'!#REF!,\"وارد\")-SUMIFS('تسجيل المخزون'!$F$2:$F$93,'تسجيل المخزون'!$D$2:$D$93,$G$1,'تسجيل المخزون'!#REF!,O5,'تسجيل المخزون'!#REF!,\"بيع\")-SUMIFS('تسجيل المخزون'!$F$2:$F$93,'تسجيل المخزون'!$D$2:$D$93,$G$1,'تسجيل المخزون'!#REF!,O5,'تسجيل المخزون'!#REF!,\"تالف\")","v":{"$error":"#REF!"}},{"$f":"SUMIFS('تسجيل المخزون'!$F$2:$F$93,'تسجيل المخزون'!$D$2:$D$93,$G$1,'تسجيل المخزون'!#REF!,P5,'تسجيل المخزون'!#REF!,\"وارد\")-SUMIFS('تسجيل المخزون'!$F$2:$F$93,'تسجيل المخزون'!$D$2:$D$93,$G$1,'تسجيل المخزون'!#REF!,P5,'تسجيل المخزون'!#REF!,\"بيع\")-SUMIFS('تسجيل المخزون'!$F$2:$F$93,'تسجيل المخزون'!$D$2:$D$93,$G$1,'تسجيل المخزون'!#REF!,P5,'تسجيل المخزون'!#REF!,\"تالف\")","v":{"$error":"#REF!"}},{"$f":"SUMIFS('تسجيل المخزون'!$F$2:$F$93,'تسجيل المخزون'!$D$2:$D$93,$G$1,'تسجيل المخزون'!#REF!,Q5,'تسجيل المخزون'!#REF!,\"وارد\")-SUMIFS('تسجيل المخزون'!$F$2:$F$93,'تسجيل المخزون'!$D$2:$D$93,$G$1,'تسجيل المخزون'!#REF!,Q5,'تسجيل المخزون'!#REF!,\"بيع\")-SUMIFS('تسجيل المخزون'!$F$2:$F$93,'تسجيل المخزون'!$D$2:$D$93,$G$1,'تسجيل المخزون'!#REF!,Q5,'تسجيل المخزون'!#REF!,\"تالف\")","v":{"$error":"#REF!"}},{"$f":"SUMIFS('تسجيل المخزون'!$F$2:$F$93,'تسجيل المخزون'!$D$2:$D$93,$G$1,'تسجيل المخزون'!#REF!,R5,'تسجيل المخزون'!#REF!,\"وارد\")-SUMIFS('تسجيل المخزون'!$F$2:$F$93,'تسجيل المخزون'!$D$2:$D$93,$G$1,'تسجيل المخزون'!#REF!,R5,'تسجيل المخزون'!#REF!,\"بيع\")-SUMIFS('تسجيل المخزون'!$F$2:$F$93,'تسجيل المخزون'!$D$2:$D$93,$G$1,'تسجيل المخزون'!#REF!,R5,'تسجيل المخزون'!#REF!,\"تالف\")","v":{"$error":"#REF!"}},{"$f":"SUMIFS('تسجيل المخزون'!$F$2:$F$93,'تسجيل المخزون'!$D$2:$D$93,$G$1,'تسجيل المخزون'!#REF!,S5,'تسجيل المخزون'!#REF!,\"وارد\")-SUMIFS('تسجيل المخزون'!$F$2:$F$93,'تسجيل المخزون'!$D$2:$D$93,$G$1,'تسجيل المخزون'!#REF!,S5,'تسجيل المخزون'!#REF!,\"بيع\")-SUMIFS('تسجيل المخزون'!$F$2:$F$93,'تسجيل المخزون'!$D$2:$D$93,$G$1,'تسجيل المخزون'!#REF!,S5,'تسجيل المخزون'!#REF!,\"تالف\")","v":{"$error":"#REF!"}},{"$f":"SUMIFS('تسجيل المخزون'!$F$2:$F$93,'تسجيل المخزون'!$D$2:$D$93,$G$1,'تسجيل المخزون'!#REF!,T5,'تسجيل المخزون'!#REF!,\"وارد\")-SUMIFS('تسجيل المخزون'!$F$2:$F$93,'تسجيل المخزون'!$D$2:$D$93,$G$1,'تسجيل المخزون'!#REF!,T5,'تسجيل المخزون'!#REF!,\"بيع\")-SUMIFS('تسجيل المخزون'!$F$2:$F$93,'تسجيل المخزون'!$D$2:$D$93,$G$1,'تسجيل المخزون'!#REF!,T5,'تسجيل المخزون'!#REF!,\"تالف\")","v":{"$error":"#REF!"}},{"$f":"SUMIFS('تسجيل المخزون'!$F$2:$F$93,'تسجيل المخزون'!$D$2:$D$93,$G$1,'تسجيل المخزون'!#REF!,U5,'تسجيل المخزون'!#REF!,\"وارد\")-SUMIFS('تسجيل المخزون'!$F$2:$F$93,'تسجيل المخزون'!$D$2:$D$93,$G$1,'تسجيل المخزون'!#REF!,U5,'تسجيل المخزون'!#REF!,\"بيع\")-SUMIFS('تسجيل المخزون'!$F$2:$F$93,'تسجيل المخزون'!$D$2:$D$93,$G$1,'تسجيل المخزون'!#REF!,U5,'تسجيل المخزون'!#REF!,\"تالف\")","v":{"$error":"#REF!"}},{"$f":"SUMIFS('تسجيل المخزون'!$F$2:$F$93,'تسجيل المخزون'!$D$2:$D$93,$G$1,'تسجيل المخزون'!#REF!,V5,'تسجيل المخزون'!#REF!,\"وارد\")-SUMIFS('تسجيل المخزون'!$F$2:$F$93,'تسجيل المخزون'!$D$2:$D$93,$G$1,'تسجيل المخزون'!#REF!,V5,'تسجيل المخزون'!#REF!,\"بيع\")-SUMIFS('تسجيل المخزون'!$F$2:$F$93,'تسجيل المخزون'!$D$2:$D$93,$G$1,'تسجيل المخزون'!#REF!,V5,'تسجيل المخزون'!#REF!,\"تالف\")","v":{"$error":"#REF!"}},{"$f":"SUMIFS('تسجيل المخزون'!$F$2:$F$93,'تسجيل المخزون'!$D$2:$D$93,$G$1,'تسجيل المخزون'!#REF!,W5,'تسجيل المخزون'!#REF!,\"وارد\")-SUMIFS('تسجيل المخزون'!$F$2:$F$93,'تسجيل المخزون'!$D$2:$D$93,$G$1,'تسجيل المخزون'!#REF!,W5,'تسجيل المخزون'!#REF!,\"بيع\")-SUMIFS('تسجيل المخزون'!$F$2:$F$93,'تسجيل المخزون'!$D$2:$D$93,$G$1,'تسجيل المخزون'!#REF!,W5,'تسجيل المخزون'!#REF!,\"تالف\")","v":{"$error":"#REF!"}},{"$f":"SUMIFS('تسجيل المخزون'!$F$2:$F$93,'تسجيل المخزون'!$D$2:$D$93,$G$1,'تسجيل المخزون'!#REF!,X5,'تسجيل المخزون'!#REF!,\"وارد\")-SUMIFS('تسجيل المخزون'!$F$2:$F$93,'تسجيل المخزون'!$D$2:$D$93,$G$1,'تسجيل المخزون'!#REF!,X5,'تسجيل المخزون'!#REF!,\"بيع\")-SUMIFS('تسجيل المخزون'!$F$2:$F$93,'تسجيل المخزون'!$D$2:$D$93,$G$1,'تسجيل المخزون'!#REF!,X5,'تسجيل المخزون'!#REF!,\"تالف\")","v":{"$error":"#REF!"}},{"$f":"SUMIFS('تسجيل المخزون'!$F$2:$F$93,'تسجيل المخزون'!$D$2:$D$93,$G$1,'تسجيل المخزون'!#REF!,Y5,'تسجيل المخزون'!#REF!,\"وارد\")-SUMIFS('تسجيل المخزون'!$F$2:$F$93,'تسجيل المخزون'!$D$2:$D$93,$G$1,'تسجيل المخزون'!#REF!,Y5,'تسجيل المخزون'!#REF!,\"بيع\")-SUMIFS('تسجيل المخزون'!$F$2:$F$93,'تسجيل المخزون'!$D$2:$D$93,$G$1,'تسجيل المخزون'!#REF!,Y5,'تسجيل المخزون'!#REF!,\"تالف\")","v":{"$error":"#REF!"}},"2023-01-02","2023-02-02","2023-03-02","2023-04-02","2023-05-02","2023-06-02","2023-07-02","2023-08-02","2023-09-02","2023-10-02","2023-11-02","2023-12-02"]
[3,{"$f":"SUMIFS('تسجيل المخزون'!$F$2:$F$93,'تسجيل المخزون'!$D$2:$D$93,$G$1,'تسجيل المخزون'!#REF!,N6,'تسجيل المخزون'!#REF!,\"وارد\")-SUMIFS('تسجيل المخزون'!$F$2:$F$93,'تسجيل المخزون'!$D$2:$D$93,$G$1,'تسجيل المخزون'!#REF!,N6,'تسجيل المخزون'!#REF!,\"بيع\")-SUMIFS('تسجيل المخزون'!$F$2:$F$93,'تسجيل المخزون'!$D$2:$D$93,$G$1,'تسجيل المخزون'!#REF!,N6,'تسجيل المخزون'!#REF!,\"تالف\")","v":{"$error":"#REF!"}},{"$f":"SUMIFS('تسجيل المخزون'!$F$2:$F$93,'تسجيل المخزون'!$D$2:$D$93,$G$1,'تسجيل المخزون'!#REF!,O6,'تسجيل المخزون'!#REF!,\"وارد\")-SUMIFS('تسجيل المخزون'!$F$2:$F$93,'تسجيل المخزون'!$D$2:$D$93,$G$1,'تسجيل المخزون'!#REF!,O6,'تسجيل المخزون'!#REF!,\"بيع\")-SUMIFS('تسجيل المخزون'!$F$2:$F$93,'تسجيل المخزون'!$D$2:$D$93,$G$1,'تسجيل المخزون'!#REF!,O6,'تسجيل المخزون'!#REF!,\"تالف\")","v":{"$error":"#REF!"}},{"$f":"SUMIFS('تسجيل المخزون'!$F$2:$F$93,'تسجيل المخزون'!$D$2:$D$93,$G$1,'تسجيل المخزون'!#REF!,P6,'تسجيل المخزون'!#REF!,\"وارد\")-SUMIFS('تسجيل المخزون'!$F$2:$F$93,'تسجيل المخزون'!$D$2:$D$93,$G$1,'تسجيل المخزون'!#REF!,P6,'تسجيل المخزون'!#REF!,\"بيع\")-SUMIFS('تسجيل المخزون'!$F$2:$F$93,'تسجيل المخزون'!$D$2:$D$93,$G$1,'تسجيل المخزون'!#REF!,P6,'تسجيل المخزون'!#REF!,\"تالف\")","v":{"$error":"#REF!"}},{"$f":"SUMIFS('تسجيل المخزون'!$F$2:$F$93,'تسجيل المخزون'!$D$2:$D$93,$G$1,'تسجيل المخزون'!#REF!,Q6,'تسجيل المخزون'!#REF!,\"وارد\")-SUMIFS('تسجيل المخزون'!$F$2:$F$93,'تسجيل المخزون'!$D$2:$D$93,$G$1,'تسجيل المخزون'!#REF!,Q6,'تسجيل المخزون'!#REF!,\"بيع\")-SUMIFS('تسجيل المخزون'!$F$2:$F$93,'تسجيل المخزون'!$D$2:$D$93,$G$1,'تسجيل المخزون'!#REF!,Q6,'تسجيل المخزون'!#REF!,\"تالف\")","v":{"$error":"#REF!"}},{"$f":"SUMIFS('تسجيل المخزون'!$F$2:$F$93,'تسجيل المخزون'!$D$2:$D$93,$G$1,'تسجيل المخزون'!#REF!,R6,'تسجيل المخزون'!#REF!,\"وارد\")-SUMIFS('تسجيل المخزون'!$F$2:$F$93,'تسجيل المخزون'!$D$2:$D$93,$G$1,'تسجيل المخزون'!#REF!,R6,'تسجيل المخزون'!#REF!,\"بيع\")-SUMIFS('تسجيل المخزون'!$F$2:$F$93,'تسجيل المخزون'!$D$2:$D$93,$G$1,'تسجيل المخزون'!#REF!,R6,'تسجيل المخزون'!#REF!,\"تالف\")","v":{"$error":"#REF!"}},{"$f":"SUMIFS('تسجيل المخزون'!$F$2:$F$93,'تسجيل المخزون'!$D$2:$D$93,$G$1,'تسجيل المخزون'!#REF!,S6,'تسجيل المخزون'!#REF!,\"وارد\")-SUMIFS('تسجيل المخزون'!$F$2:$F$93,'تسجيل المخزون'!$D$2:$D$93,$G$1,'تسجيل المخزون'!#REF!,S6,'تسجيل المخزون'!#REF!,\"بيع\")-SUMIFS('تسجيل المخزون'!$F$2:$F$93,'تسجيل المخزون'!$D$2:$D$93,$G$1,'تسجيل المخزون'!#REF!,S6,'تسجيل المخزون'!#REF!,\"تالف\")","v":{"$error":"#REF!"}},{"$f":"SUMIFS('تسجيل المخزون'!$F$2:$F$93,'تسجيل المخزون'!$D$2:$D$93,$G$1,'تسجيل المخزون'!#REF!,T6,'تسجيل المخزون'!#REF!,\"وارد\")-SUMIFS('تسجيل المخزون'!$F$2:$F$93,'تسجيل المخزون'!$D$2:$D$93,$G$1,'تسجيل المخزون'!#REF!,T6,'تسجيل المخزون'!#REF!,\"بيع\")-SUMIFS('تسجيل المخزون'!$F$2:$F$93,'تسجيل المخزون'!$D$2:$D$93,$G$1,'تسجيل المخزون'!#REF!,T6,'تسجيل المخزون'!#REF!,\"تالف\")","v":{"$error":"#REF!"}},{"$f":"SUMIFS('تسجيل المخزون'!$F$2:$F$93,'تسجيل المخزون'!$D$2:$D$93,$G$1,'تسجيل المخزون'!#REF!,U6,'تسجيل المخزون'!#REF!,\"وارد\")-SUMIFS('تسجيل المخزون'!$F$2:$F$93,'تسجيل المخزون'!$D$2:$D$93,$G$1,'تسجيل المخزون'!#REF!,U6,'تسجيل المخزون'!#REF!,\"بيع\")-SUMIFS('تسجيل المخزون'!$F$2:$F$93,'تسجيل المخزون'!$D$2:$D$93,$G$1,'تسجيل المخزون'!#REF!,U6,'تسجيل المخزون'!#REF!,\"تالف\")","v":{"$error":"#REF!"}},{"$f":"SUMIFS('تسجيل المخزون'!$F$2:$F$93,'تسجيل المخزون'!$D$2:$D$93,$G$1,'تسجيل المخزون'!#REF!,V6,'تسجيل المخزون'!#REF!,\"وارد\")-SUMIFS('تسجيل المخزون'!$F$2:$F$93,'تسجيل المخزون'!$D$2:$D$93,$G$1,'تسجيل المخزون'!#REF!,V6,'تسجيل المخزون'!#REF!,\"بيع\")-SUMIFS('تسجيل المخزون'!$F$2:$F$93,'تسجيل المخزون'!$D$2:$D$93,$G$1,'تسجيل المخزون'!#REF!,V6,'تسجيل المخزون'!#REF!,\"تالف\")","v":{"$error":"#REF!"}},{"$f":"SUMIFS('تسجيل المخزون'!$F$2:$F$93,'تسجيل المخزون'!$D$2:$D$93,$G$1,'تسجيل المخزون'!#REF!,W6,'تسجيل المخزون'!#REF!,\"وارد\")-SUMIFS('تسجيل المخزون'!$F$2:$F$93,'تسجيل المخزون'!$D$2:$D$93,$G$1,'تسجيل المخزون'!#REF!,W6,'تسجيل المخزون'!#REF!,\"بيع\")-SUMIFS('تسجيل المخزون'!$F$2:$F$93,'تسجيل المخزون'!$D$2:$D$93,$G$1,'تسجيل المخزون'!#REF!,W6,'تسجيل المخزون'!#REF!,\"تالف\")","v":{"$error":"#REF!"}},{"$f":"SUMIFS('تسجيل المخزون'!$F$2:$F$93,'تسجيل المخزون'!$D$2:$D$93,$G$1,'تسجيل المخزون'!#REF!,X6,'تسجيل المخزون'!#REF!,\"وارد\")-SUMIFS('تسجيل المخزون'!$F$2:$F$93,'تسجيل المخزون'!$D$2:$D$93,$G$1,'تسجيل المخزون'!#REF!,X6,'تسجيل المخزون'!#REF!,\"بيع\")-SUMIFS('تسجيل المخزون'!$F$2:$F$93,'تسجيل المخزون'!$D$2:$D$93,$G$1,'تسجيل المخزون'!#REF!,X6,'تسجيل المخزون'!#REF!,\"تالف\")","v":{"$error":"#REF!"}},{"$f":"SUMIFS('تسجيل المخزون'!$F$2:$F$93,'تسجيل المخزون'!$D$2:$D$93,$G$1,'تسجيل المخزون'!#REF!,Y6,'تسجيل المخزون'!#REF!,\"وارد\")-SUMIFS('تسجيل المخزون'!$F$2:$F$93,'تسجيل المخزون'!$D$2:$D$93,$G$1,'تسجيل المخزون'!#REF!,Y6,'تسجيل المخزون'!#REF!,\"بيع\")-SUMIFS('تسجيل المخزون'!$F$2:$F$93,'تسجيل المخزون'!$D$2:$D$93,$G$1,'تسجيل المخزون'!#REF!,Y6,'تسجيل المخزون'!#REF!,\"تالف\")","v":{"$error":"#REF!"}},"2023-01-03","2023-02-03","2023-03-03","2023-04-03","2023-05-03","2023-06-03","2023-07-03","2023-08-03","2023-09-03","2023-10-03","2023-11-03","2023-12-03"]
[4,{"$f":"SUMIFS('تسجيل المخزون'!$F$2:$F$93,'تسجيل المخزون'!$D$2:$D$93,$G$1,'تسجيل المخزون'!#REF!,N7,'تسجيل المخزون'!#REF!,\"وارد\")-SUMIFS('تسجيل المخزون'!$F$2:$F$93,'تسجيل المخزون'!$D$2:$D$93,$G$1,'تسجيل المخزون'!#REF!,N7,'تسجيل المخزون'!#REF!,\"بيع\")-SUMIFS('تسجيل المخزون'!$F$2:$F$93,'تسجيل المخزون'!$D$2:$D$93,$G$1,'تسجيل المخزون'!#REF!,N7,'تسجيل المخزون'!#REF!,\"تالف\")","v":{"$error":"#REF!"}},{"$f":"SUMIFS('تسجيل المخزون'!$F$2:$F$93,'تسجيل المخزون'!$D$2:$D$93,$G$1,'تسجيل المخزون'!#REF!,O7,'تسجيل المخزون'!#REF!,\"وارد\")-SUMIFS('تسجيل المخزون'!$F$2:$F$93,'تسجيل المخزون'!$D$2:$D$93,$G$1,'تسجيل المخزون'!#REF!,O7,'تسجيل المخزون'!#REF!,\"بيع\")-SUMIFS('تسجيل المخزون'!$F$2:$F$93,'تسجيل المخزون'!$D$2:$D$93,$G$1,'تسجيل المخزون'!#REF!,O7,'تسجيل المخزون'!#REF!,\"تالف\")","v":{"$error":"#REF!"}},{"$f":"SUMIFS('تسجيل المخزون'!$F$2:$F$93,'تسجيل المخزون'!$D$2:$D$93,$G$1,'تسجيل المخزون'!#REF!,P7,'تسجيل المخزون'!#REF!,\"وارد\")-SUMIFS('تسجيل المخزون'!$F$2:$F$93,'تسجيل المخزون'!$D$2:$D$93,$G$1,'تسجيل المخزون'!#REF!,P7,'تسجيل المخزون'!#REF!,\"بيع\")-SUMIFS('تسجيل المخزون'!$F$2:$F$93,'تسجيل المخزون'!$D$2:$D$93,$G$1,'تسجيل المخزون'!#REF!,P7,'تسجيل المخزون'!#REF!,\"تالف\")","v":{"$error":"#REF!"}},{"$f":"SUMIFS('تسجيل المخزون'!$F$2:$F$93,'تسجيل المخزون'!$D$2:$D$93,$G$1,'تسجيل المخزون'!#REF!,Q7,'تسجيل المخزون'!#REF!,\"وارد\")-SUMIFS('تسجيل المخزون'!$F$2:$F$93,'تسجيل المخزون'!$D$2:$D$93,$G$1,'تسجيل المخزون'!#REF!,Q7,'تسجيل المخزون'!#REF!,\"بيع\")-SUMIFS('تسجيل المخزون'!$F$2:$F$93,'تسجيل المخزون'!$D$2:$D$93,$G$1,'تسجيل المخزون'!#REF!,Q7,'تسجيل المخزون'!#REF!,\"تالف\")","v":{"$error":"#REF!"}},{"$f":"SUMIFS('تسجيل المخزون'!$F$2:$F$93,'تسجيل المخزون'!$D$2:$D$93,$G$1,'تسجيل المخزون'!#REF!,R7,'تسجيل المخزون'!#REF!,\"وارد\")-SUMIFS('تسجيل المخزون'!$F$2:$F$93,'تسجيل المخزون'!$D$2:$D$93,$G$1,'تسجيل المخزون'!#REF!,R7,'تسجيل المخزون'!#REF!,\"بيع\")-SUMIFS('تسجيل المخزون'!$F$2:$F$93,'تسجيل المخزون'!$D$2:$D$93,$G$1,'تسجيل المخزون'!#REF!,R7,'تسجيل المخزون'!#REF!,\"تالف\")","v":{"$error":"#REF!"}},{"$f":"SUMIFS('تسجيل المخزون'!$F$2:$F$93,'تسجيل المخزون'!$D$2:$D$93,$G$1,'تسجيل المخزون'!#REF!,S7,'تسجيل المخزون'!#REF!,\"وارد\")-SUMIFS('تسجيل المخزون'!$F$2:$F$93,'تسجيل المخزون'!$D$2:$D$93,$G$1,'تسجيل المخزون'!#REF!,S7,'تسجيل المخزون'!#REF!,\"بيع\")-SUMIFS('تسجيل المخزون'!$F$2:$F$93,'تسجيل المخزون'!$D$2:$D$93,$G$1,'تسجيل المخزون'!#REF!,S7,'تسجيل المخزون'!#REF!,\"تالف\")","v":{"$error":"#REF!"}},{"$f":"SUMIFS('تسجيل المخزون'!$F$2:$F$93,'تسجيل المخزون'!$D$2:$D$93,$G$1,'تسجيل المخزون'!#REF!,T7,'تسجيل المخزون'!#REF!,\"وارد\")-SUMIFS('تسجيل المخزون'!$F$2:$F$93,'تسجيل المخزون'!$D$2:$D$93,$G$1,'تسجيل المخزون'!#REF!,T7,'تسجيل المخزون'!#REF!,\"بيع\")-SUMIFS('تسجيل المخزون'!$F$2:$F$93,'تسجيل المخزون'!$D$2:$D$93,$G$1,'تسجيل المخزون'!#REF!,T7,'تسجيل المخزون'!#REF!,\"تالف\")","v":{"$error":"#REF!"}},{"$f":"SUMIFS('تسجيل المخزون'!$F$2:$F$93,'تسجيل المخزون'!$D$2:$D$93,$G$1,'تسجيل المخزون'!#REF!,U7,'تسجيل المخزون'!#REF!,\"وارد\")-SUMIFS('تسجيل المخزون'!$F$2:$F$93,'تسجيل المخزون'!$D$2:$D$93,$G$1,'تسجيل المخزون'!#REF!,U7,'تسجيل المخزون'!#REF!,\"بيع\")-SUMIFS('تسجيل المخزون'!$F$2:$F$93,'تسجيل المخزون'!$D$2:$D$93,$G$1,'تسجيل المخزون'!#REF!,U7,'تسجيل المخزون'!#REF!,\"تالف\")","v":{"$error":"#REF!"}},{"$f":"SUMIFS('تسجيل المخزون'!$F$2:$F$93,'تسجيل المخزون'!$D$2:$D$93,$G$1,'تسجيل المخزون'!#REF!,V7,'تسجيل المخزون'!#REF!,\"وارد\")-SUMIFS('تسجيل المخزون'!$F$2:$F$93,'تسجيل المخزون'!$D$2:$D$93,$G$1,'تسجيل المخزون'!#REF!,V7,'تسجيل المخزون'!#REF!,\"بيع\")-SUMIFS('تسجيل المخزون'!$F$2:$F$93,'تسجيل المخزون'!$D$2:$D$93,$G$1,'تسجيل المخزون'!#REF!,V7,'تسجيل المخزون'!#REF!,\"تالف\")","v":{"$error":"#REF!"}},{"$f":"SUMIFS('تسجيل المخزون'!$F$2:$F$93,'تسجيل المخزون'!$D$2:$D$93,$G$1,'تسجيل المخزون'!#REF!,W7,'تسجيل المخزون'!#REF!,\"وارد\")-SUMIFS('تسجيل المخزون'!$F$2:$F$93,'تسجيل المخزون'!$D$2:$D$93,$G$1,'تسجيل المخزون'!#REF!,W7,'تسجيل المخزون'!#REF!,\"بيع\")-SUMIFS('تسجيل المخزون'!$F$2:$F$93,'تسجيل المخزون'!$D$2:$D$93,$G$1,'تسجيل المخزون'!#REF!,W7,'تسجيل المخزون'!#REF!,\"تالف\")","v":{"$error":"#REF!"}},{"$f":"SUMIFS('تسجيل المخزون'!$F$2:$F$93,'تسجيل المخزون'!$D$2:$D$93,$G$1,'تسجيل المخزون'!#REF!,X7,'تسجيل المخزون'!#REF!,\"وارد\")-SUMIFS('تسجيل المخزون'!$F$2:$F$93,'تسجيل المخزون'!$D$2:$D$93,$G$1,'تسجيل المخزون'!#REF!,X7,'تسجيل المخزون'!#REF!,\"بيع\")-SUMIFS('تسجيل المخزون'!$F$2:$F$93,'تسجيل المخزون'!$D$2:$D$93,$G$1,'تسجيل المخزون'!#REF!,X7,'تسجيل المخزون'!#REF!,\"تالف\")","v":{"$error":"#REF!"}},{"$f":"SUMIFS('تسجيل المخزون'!$F$2:$F$93,'تسجيل المخزون'!$D$2:$D$93,$G$1,'تسجيل المخزون'!#REF!,Y7,'تسجيل المخزون'!#REF!,\"وارد\")-SUMIFS('تسجيل المخزون'!$F$2:$F$93,'تسجيل المخزون'!$D$2:$D$93,$G$1,'تسجيل المخزون'!#REF!,Y7,'تسجيل المخزون'!#REF!,\"بيع\")-SUMIFS('تسجيل المخزون'!$F$2:$F$93,'تسجيل المخزون'!$D$2:$D$93,$G$1,'تسجيل المخزون'!#REF!,Y7,'تسجيل المخزون'!#REF!,\"تالف\")","v":{"$error":"#REF!"}},"2023-01-04","2023-02-04","2023-03-04","2023-04-04","2023-05-04","2023-06-04","2023-07-04","2023-08-04","2023-09-04","2023-10-04","2023-11-04","2023-12-04"]
[5,{"$f":"SUMIFS('تسجيل المخزون'!$F$2:$F$93,'تسجيل المخزون'!$D$2:$D$93,$G$1,'تسجيل المخزون'!#REF!,N8,'تسجيل المخزون'!#REF!,\"وارد\")-SUMIFS('تسجيل المخزون'!$F$2:$F$93,'تسجيل المخزون'!$D$2:$D$93,$G$1,'تسجيل المخزون'!#REF!,N8,'تسجيل المخزون'!#REF!,\"بيع\")-SUMIFS('تسجيل المخزون'!$F$2:$F$93,'تسجيل المخزون'!$D$2:$D$93,$G$1,'تسجيل المخزون'!#REF!,N8,'تسجيل المخزون'!#REF!,\"تالف\")","v":{"$error":"#REF!"}},{"$f":"SUMIFS('تسجيل المخزون'!$F$2:$F$93,'تسجيل المخزون'!$D$2:$D$93,$G$1,'تسجيل المخزون'!#REF!,O8,'تسجيل المخزون'!#REF!,\"وارد\")-SUMIFS('تسجيل المخزون'!$F$2:$F$93,'تسجيل المخزون'!$D$2:$D$93,$G$1,'تسجيل المخزون'!#REF!,O8,'تسجيل المخزون'!#REF!,\"بيع\")-SUMIFS('تسجيل المخزون'!$F$2:$F$93,'تسجيل المخزون'!$D$2:$D$93,$G$1,'تسجيل المخزون'!#REF!,O8,'تسجيل المخزون'!#REF!,\"تالف\")","v":{"$error":"#REF!"}},{"$f":"SUMIFS('تسجيل المخزون'!$F$2:$F$93,'تسجيل المخزون'!$D$2:$D$93,$G$1,'تسجيل المخزون'!#REF!,P8,'تسجيل المخزون'!#REF!,\"وارد\")-SUMIFS('تسجيل المخزون'!$F$2:$F$93,'تسجيل المخزون'!$D$2:$D$93,$G$1,'تسجيل المخزون'!#REF!,P8,'تسجيل المخزون'!#REF!,\"بيع\")-SUMIFS('تسجيل المخزون'!$F$2:$F$93,'تسجيل المخزون'!$D$2:$D$93,$G$1,'تسجيل المخزون'!#REF!,P8,'تسجيل المخزون'!#REF!,\"تالف\")","v":{"$error":"#REF!"}},{"$f":"SUMIFS('تسجيل المخزون'!$F$2:$F$93,'تسجيل المخزون'!$D$2:$D$93,$G$1,'تسجيل المخزون'!#REF!,Q8,'تسجيل المخزون'!#REF!,\"وارد\")-SUMIFS('تسجيل المخزون'!$F$2:$F$93,'تسجيل المخزون'!$D$2:$D$93,$G$1,'تسجيل المخزون'!#REF!,Q8,'تسجيل المخزون'!#REF!,\"بيع\")-SUMIFS('تسجيل المخزون'!$F$2:$F$93,'تسجيل المخزون'!$D$2:$D$93,$G$1,'تسجيل المخزون'!#REF!,Q8,'تسجيل المخزون'!#REF!,\"تالف\")","v":{"$error":"#REF!"}},{"$f":"SUMIFS('تسجيل المخزون'!$F$2:$F$93,'تسجيل المخزون'!$D$2:$D$93,$G$1,'تسجيل المخزون'!#REF!,R8,'تسجيل المخزون'!#REF!,\"وارد\")-SUMIFS('تسجيل المخزون'!$F$2:$F$93,'تسجيل المخزون'!$D$2:$D$93,$G$1,'تسجيل المخزون'!#REF!,R8,'تسجيل المخزون'!#REF!,\"بيع\")-SUMIFS('تسجيل المخزون'!$F$2:$F$93,'تسجيل المخزون'!$D$2:$D$93,$G$1,'تسجيل المخزون'!#REF!,R8,'تسجيل المخزون'!#REF!,\"تالف\")","v":{"$error":"#REF!"}},{"$f":"SUMIFS('تسجيل المخزون'!$F$2:$F$93,'تسجيل المخزون'!$D$2:$D$93,$G$1,'تسجيل المخزون'!#REF!,S8,'تسجيل المخزون'!#REF!,\"وارد\")-SUMIFS('تسجيل المخزون'!$F$2:$F$93,'تسجيل المخزون'!$D$2:$D$93,$G$1,'تسجيل المخزون'!#REF!,S8,'تسجيل المخزون'!#REF!,\"بيع\")-SUMIFS('تسجيل المخزون'!$F$2:$F$93,'تسجيل المخزون'!$D$2:$D$93,$G$1,'تسجيل المخزون'!#REF!,S8,'تسجيل المخزون'!#REF!,\"تالف\")","v":{"$error":"#REF!"}},{"$f":"SUMIFS('تسجيل المخزون'!$F$2:$F$93,'تسجيل المخزون'!$D$2:$D$93,$G$1,'تسجيل المخزون'!#REF!,T8,'تسجيل المخزون'!#REF!,\"وارد\")-SUMIFS('تسجيل المخزون'!$F$2:$F$93,'تسجيل المخزون'!$D$2:$D$93,$G$1,'تسجيل المخزون'!#REF!,T8,'تسجيل المخزون'!#REF!,\"بيع\")-SUMIFS('تسجيل المخزون'!$F$2:$F$93,'تسجيل المخزون'!$D$2:$D$93,$G$1,'تسجيل المخزون'!#REF!,T8,'تسجيل المخزون'!#REF!,\"تالف\")","v":{"$error":"#REF!"}},{"$f":"SUMIFS('تسجيل المخزون'!$F$2:$F$93,'تسجيل المخزون'!$D$2:$D$93,$G$1,'تسجيل المخزون'!#REF!,U8,'تسجيل المخزون'!#REF!,\"وارد\")-SUMIFS('تسجيل المخزون'!$F$2:$F$93,'تسجيل المخزون'!$D$2:$D$93,$G$1,'تسجيل المخزون'!#REF!,U8,'تسجيل المخزون'!#REF!,\"بيع\")-SUMIFS('تسجيل المخزون'!$F$2:$F$93,'تسجيل المخزون'!$D$2:$D$93,$G$1,'تسجيل المخزون'!#REF!,U8,'تسجيل المخزون'!#REF!,\"تالف\")","v":{"$error":"#REF!"}},{"$f":"SUMIFS('تسجيل المخزون'!$F$2:$F$93,'تسجيل المخزون'!$D$2:$D$93,$G$1,'تسجيل المخزون'!#REF!,V8,'تسجيل المخزون'!#REF!,\"وارد\")-SUMIFS('تسجيل المخزون'!$F$2:$F$93,'تسجيل المخزون'!$D$2:$D$93,$G$1,'تسجيل المخزون'!#REF!,V8,'تسجيل المخزون'!#REF!,\"بيع\")-SUMIFS('تسجيل المخزون'!$F$2:$F$93,'تسجيل المخزون'!$D$2:$D$93,$G$1,'تسجيل المخزون'!#REF!,V8,'تسجيل المخزون'!#REF!,\"تالف\")","v":{"$error":"#REF!"}},{"$f":"SUMIFS('تسجيل المخزون'!$F$2:$F$93,'تسجيل المخزون'!$D$2:$D$93,$G$1,'تسجيل المخزون'!#REF!,W8,'تسجيل المخزون'!#REF!,\"وارد\")-SUMIFS('تسجيل المخزون'!$F$2:$F$93,'تسجيل المخزون'!$D$2:$D$93,$G$1,'تسجيل المخزون'!#REF!,W8,'تسجيل المخزون'!#REF!,\"بيع\")-SUMIFS('تسجيل المخزون'!$F$2:$F$93,'تسجيل المخزون'!$D$2:$D$93,$G$1,'تسجيل المخزون'!#REF!,W8,'تسجيل المخزون'!#REF!,\"تالف\")","v":{"$error":"#REF!"}},{"$f":"SUMIFS('تسجيل المخزون'!$F$2:$F$93,'تسجيل المخزون'!$D$2:$D$93,$G$1,'تسجيل المخزون'!#REF!,X8,'تسجيل المخزون'!#REF!,\"وارد\")-SUMIFS('تسجيل المخزون'!$F$2:$F$93,'تسجيل المخزون'!$D$2:$D$93,$G$1,'تسجيل المخزون'!#REF!,X8,'تسجيل المخزون'!#REF!,\"بيع\")-SUMIFS('تسجيل المخزون'!$F$2:$F$93,'تسجيل المخزون'!$D$2:$D$93,$G$1,'تسجيل المخزون'!#REF!,X8,'تسجيل المخزون'!#REF!,\"تالف\")","v":{"$error":"#REF!"}},{"$f":"SUMIFS('تسجيل المخزون'!$F$2:$F$93,'تسجيل المخزون'!$D$2:$D$93,$G$1,'تسجيل المخزون'!#REF!,Y8,'تسجيل المخزون'!#REF!,\"وارد\")-SUMIFS('تسجيل المخزون'!$F$2:$F$93,'تسجيل المخزون'!$D$2:$D$93,$G$1,'تسجيل المخزون'!#REF!,Y8,'تسجيل المخزون'!#REF!,\"بيع\")-SUMIFS('تسجيل المخزون'!$F$2:$F$93,'تسجيل المخزون'!$D$2:$D$93,$G$1,'تسجيل المخزون'!#REF!,Y8,'تسجيل المخزون'!#REF!,\"تالف\")","v":{"$error":"#REF!"}},"2023-01-05","2023-02-05","2023-03-05","2023-04-05","2023-05-05","2023-06-05","2023-07-05","2023-08-05","2023-09-05","2023-10-05","2023-11-05","2023-12-05"]
[6,{"$f":"SUMIFS('تسجيل المخزون'!$F$2:$F$93,'تسجيل المخزون'!$D$2:$D$93,$G$1,'تسجيل المخزون'!#REF!,N9,'تسجيل المخزون'!#REF!,\"وارد\")-SUMIFS('تسجيل المخزون'!$F$2:$F$93,'تسجيل المخزون'!$D$2:$D$93,$G$1,'تسجيل المخزون'!#REF!,N9,'تسجيل المخزون'!#REF!,\"بيع\")-SUMIFS('تسجيل المخزون'!$F$2:$F$93,'تسجيل المخزون'!$D$2:$D$93,$G$1,'تسجيل المخزون'!#REF!,N9,'تسجيل المخزون'!#REF!,\"تالف\")","v":{"$error":"#REF!"}},{"$f":"SUMIFS('تسجيل المخزون'!$F$2:$F$93,'تسجيل المخزون'!$D$2:$D$93,$G$1,'تسجيل المخزون'!#REF!,O9,'تسجيل المخزون'!#REF!,\"وارد\")-SUMIFS('تسجيل المخزون'!$F$2:$F$93,'تسجيل المخزون'!$D$2:$D$93,$G$1,'تسجيل المخزون'!#REF!,O9,'تسجيل المخزون'!#REF!,\"بيع\")-SUMIFS('تسجيل المخزون'!$F$2:$F$93,'تسجيل المخزون'!$D$2:$D$93,$G$1,'تسجيل المخزون'!#REF!,O9,'تسجيل المخزون'!#REF!,\"تالف\")","v":{"$error":"#REF!"}},{"$f":"SUMIFS('تسجيل المخزون'!$F$2:$F$93,'تسجيل المخزون'!$D$2:$D$93,$G$1,'تسجيل المخزون'!#REF!,P9,'تسجيل المخزون'!#REF!,\"وارد\")-SUMIFS('تسجيل المخزون'!$F$2:$F$93,'تسجيل المخزون'!$D$2:$D$93,$G$1,'تسجيل المخزون'!#REF!,P9,'تسجيل المخزون'!#REF!,\"بيع\")-SUMIFS('تسجيل المخزون'!$F$2:$F$93,'تسجيل المخزون'!$D$2:$D$93,$G$1,'تسجيل المخزون'!#REF!,P9,'تسجيل المخزون'!#REF!,\"تالف\")","v":{"$error":"#REF!"}},{"$f":"SUMIFS('تسجيل المخزون'!$F$2:$F$93,'تسجيل المخزون'!$D$2:$D$93,$G$1,'تسجيل المخزون'!#REF!,Q9,'تسجيل المخزون'!#REF!,\"وارد\")-SUMIFS('تسجيل المخزون'!$F$2:$F$93,'تسجيل المخزون'!$D$2:$D$93,$G$1,'تسجيل المخزون'!#REF!,Q9,'تسجيل المخزون'!#REF!,\"بيع\")-SUMIFS('تسجيل المخزون'!$F$2:$F$93,'تسجيل المخزون'!$D$2:$D$93,$G$1,'تسجيل المخزون'!#REF!,Q9,'تسجيل المخزون'!#REF!,\"تالف\")","v":{"$error":"#REF!"}},{"$f":"SUMIFS('تسجيل المخزون'!$F$2:$F$93,'تسجيل المخزون'!$D$2:$D$93,$G$1,'تسجيل المخزون'!#REF!,R9,'تسجيل المخزون'!#REF!,\"وارد\")-SUMIFS('تسجيل المخزون'!$F$2:$F$93,'تسجيل المخزون'!$D$2:$D$93,$G$1,'تسجيل المخزون'!#REF!,R9,'تسجيل المخزون'!#REF!,\"بيع\")-SUMIFS('تسجيل المخزون'!$F$2:$F$93,'تسجيل المخزون'!$D$2:$D$93,$G$1,'تسجيل المخزون'!#REF!,R9,'تسجيل المخزون'!#REF!,\"تالف\")","v":{"$error":"#REF!"}},{"$f":"SUMIFS('تسجيل المخزون'!$F$2:$F$93,'تسجيل المخزون'!$D$2:$D$93,$G$1,'تسجيل المخزون'!#REF!,S9,'تسجيل المخزون'!#REF!,\"وارد\")-SUMIFS('تسجيل المخزون'!$F$2:$F$93,'تسجيل المخزون'!$D$2:$D$93,$G$1,'تسجيل المخزون'!#REF!,S9,'تسجيل المخزون'!#REF!,\"بيع\")-SUMIFS('تسجيل المخزون'!$F$2:$F$93,'تسجيل المخزون'!$D$2:$D$93,$G$1,'تسجيل المخزون'!#REF!,S9,'تسجيل المخزون'!#REF!,\"تالف\")","v":{"$error":"#REF!"}},{"$f":"SUMIFS('تسجيل المخزون'!$F$2:$F$93,'تسجيل المخزون'!$D$2:$D$93,$G$1,'تسجيل المخزون'!#REF!,T9,'تسجيل المخزون'!#REF!,\"وارد\")-SUMIFS('تسجيل المخزون'!$F$2:$F$93,'تسجيل المخزون'!$D$2:$D$93,$G$1,'تسجيل المخزون'!#REF!,T9,'تسجيل المخزون'!#REF!,\"بيع\")-SUMIFS('تسجيل المخزون'!$F$2:$F$93,'تسجيل المخزون'!$D$2:$D$93,$G$1,'تسجيل المخزون'!#REF!,T9,'تسجيل المخزون'!#REF!,\"تالف\")","v":{"$error":"#REF!"}},{"$f":"SUMIFS('تسجيل المخزون'!$F$2:$F$93,'تسجيل المخزون'!$D$2:$D$93,$G$1,'تسجيل المخزون'!#REF!,U9,'تسجيل المخزون'!#REF!,\"وارد\")-SUMIFS('تسجيل المخزون'!$F$2:$F$93,'تسجيل المخزون'!$D$2:$D$93,$G$1,'تسجيل المخزون'!#REF!,U9,'تسجيل المخزون'!#REF!,\"بيع\")-SUMIFS('تسجيل المخزون'!$F$2:$F$93,'تسجيل المخزون'!$D$2:$D$93,$G$1,'تسجيل المخزون'!#REF!,U9,'تسجيل المخزون'!#REF!,\"تالف\")","v":{"$error":"#REF!"}},{"$f":"SUMIFS('تسجيل المخزون'!$F$2:$F$93,'تسجيل المخزون'!$D$2:$D$93,$G$1,'تسجيل المخزون'!#REF!,V9,'تسجيل المخزون'!#REF!,\"وارد\")-SUMIFS('تسجيل المخزون'!$F$2:$F$93,'تسجيل المخزون'!$D$2:$D$93,$G$1,'تسجيل المخزون'!#REF!,V9,'تسجيل المخزون'!#REF!,\"بيع\")-SUMIFS('تسجيل المخزون'!$F$2:$F$93,'تسجيل المخزون'!$D$2:$D$93,$G$1,'تسجيل المخزون'!#REF!,V9,'تسجيل المخزون'!#REF!,\"تالف\")","v":{"$error":"#REF!"}},{"$f":"SUMIFS('تسجيل المخزون'!$F$2:$F$93,'تسجيل المخزون'!$D$2:$D$93,$G$1,'تسجيل المخزون'!#REF!,W9,'تسجيل المخزون'!#REF!,\"وارد\")-SUMIFS('تسجيل المخزون'!$F$2:$F$93,'تسجيل المخزون'!$D$2:$D$93,$G$1,'تسجيل المخزون'!#REF!,W9,'تسجيل المخزون'!#REF!,\"بيع\")-SUMIFS('تسجيل المخزون'!$F$2:$F$93,'تسجيل المخزون'!$D$2:$D$93,$G$1,'تسجيل المخزون'!#REF!,W9,'تسجيل المخزون'!#REF!,\"تالف\")","v":{"$error":"#REF!"}},{"$f":"SUMIFS('تسجيل المخزون'!$F$2:$F$93,'تسجيل المخزون'!$D$2:$D$93,$G$1,'تسجيل المخزون'!#REF!,X9,'تسجيل المخزون'!#REF!,\"وارد\")-SUMIFS('تسجيل المخزون'!$F$2:$F$93,'تسجيل المخزون'!$D$2:$D$93,$G$1,'تسجيل المخزون'!#REF!,X9,'تسجيل المخزون'!#REF!,\"بيع\")-SUMIFS('تسجيل المخزون'!$F$2:$F$93,'تسجيل المخزون'!$D$2:$D$93,$G$1,'تسجيل المخزون'!#REF!,X9,'تسجيل المخزون'!#REF!,\"تالف\")","v":{"$error":"#REF!"}},{"$f":"SUMIFS('تسجيل المخزون'!$F$2:$F$93,'تسجيل المخزون'!$D$2:$D$93,$G$1,'تسجيل المخزون'!#REF!,Y9,'تسجيل المخزون'!#REF!,\"وارد\")-SUMIFS('تسجيل المخزون'!$F$2:$F$93,'تسجيل المخزون'!$D$2:$D$93,$G$1,'تسجيل المخزون'!#REF!,Y9,'تسجيل المخزون'!#REF!,\"بيع\")-SUMIFS('تسجيل المخزون'!$F$2:$F$93,'تسجيل المخزون'!$D$2:$D$93,$G$1,'تسجيل المخزون'!#REF!,Y9,'تسجيل المخزون'!#REF!,\"تالف\")","v":{"$error":"#REF!"}},"2023-01-06","2023-02-06","2023-03-06","2023-04-06","2023-05-06","2023-06-06","2023-07-06","2023-08-06","2023-09-06","2023-10-06","2023-11-06","2023-12-06"]
[7,{"$f":"SUMIFS('تسجيل المخزون'!$F$2:$F$93,'تسجيل المخزون'!$D$2:$D$93,$G$1,'تسجيل المخزون'!#REF!,N10,'تسجيل المخزون'!#REF!,\"وارد\")-SUMIFS('تسجيل المخزون'!$F$2:$F$93,'تسجيل المخزون'!$D$2:$D$93,$G$1,'تسجيل المخزون'!#REF!,N10,'تسجيل المخزون'!#REF!,\"بيع\")-SUMIFS('تسجيل المخزون'!$F$2:$F$93,'تسجيل المخزون'!$D$2:$D$93,$G$1,'تسجيل المخزون'!#REF!,N10,'تسجيل المخزون'!#REF!,\"تالف\")","v":{"$error":"#REF!"}},{"$f":"SUMIFS('تسجيل المخزون'!$F$2:$F$93,'تسجيل المخزون'!$D$2:$D$93,$G$1,'تسجيل المخزون'!#REF!,O10,'تسجيل المخزون'!#REF!,\"وارد\")-SUMIFS('تسجيل المخزون'!$F$2:$F$93,'تسجيل المخزون'!$D$2:$D$93,$G$1,'تسجيل المخزون'!#REF!,O10,'تسجيل المخزون'!#REF!,\"بيع\")-SUMIFS('تسجيل المخزون'!$F$2:$F$93,'تسجيل المخزون'!$D$2:$D$93,$G$1,'تسجيل المخزون'!#REF!,O10,'تسجيل المخزون'!#REF!,\"تالف\")","v":{"$error":"#REF!"}},{"$f":"SUMIFS('تسجيل المخزون'!$F$2:$F$93,'تسجيل المخزون'!$D$2:$D$93,$G$1,'تسجيل المخزون'!#REF!,P10,'تسجيل المخزون'!#REF!,\"وارد\")-SUMIFS('تسجيل المخزون'!$F$2:$F$93,'تسجيل المخزون'!$D$2:$D$93,$G$1,'تسجيل المخزون'!#REF!,P10,'تسجيل المخزون'!#REF!,\"بيع\")-SUMIFS('تسجيل المخزون'!$F$2:$F$93,'تسجيل المخزون'!$D$2:$D$93,$G$1,'تسجيل المخزون'!#REF!,P10,'تسجيل المخزون'!#REF!,\"تالف\")","v":{"$error":"#REF!"}},{"$f":"SUMIFS('تسجيل المخزون'!$F$2:$F$93,'تسجيل المخزون'!$D$2:$D$93,$G$1,'تسجيل المخزون'!#REF!,Q10,'تسجيل المخزون'!#REF!,\"وارد\")-SUMIFS('تسجيل المخزون'!$F$2:$F$93,'تسجيل المخزون'!$D$2:$D$93,$G$1,'تسجيل المخزون'!#REF!,Q10,'تسجيل المخزون'!#REF!,\"بيع\")-SUMIFS('تسجيل المخزون'!$F$2:$F$93,'تسجيل المخزون'!$D$2:$D$93,$G$1,'تسجيل المخزون'!#REF!,Q10,'تسجيل المخزون'!#REF!,\"تالف\")","v":{"$error":"#REF!"}},{"$f":"SUMIFS('تسجيل المخزون'!$F$2:$F$93,'تسجيل المخزون'!$D$2:$D$93,$G$1,'تسجيل المخزون'!#REF!,R10,'تسجيل المخزون'!#REF!,\"وارد\")-SUMIFS('تسجيل المخزون'!$F$2:$F$93,'تسجيل المخزون'!$D$2:$D$93,$G$1,'تسجيل المخزون'!#REF!,R10,'تسجيل المخزون'!#REF!,\"بيع\")-SUMIFS('تسجيل المخزون'!$F$2:$F$93,'تسجيل المخزون'!$D$2:$D$93,$G$1,'تسجيل المخزون'!#REF!,R10,'تسجيل المخزون'!#REF!,\"تالف\")","v":{"$error":"#REF!"}},{"$f":"SUMIFS('تسجيل المخزون'!$F$2:$F$93,'تسجيل المخزون'!$D$2:$D$93,$G$1,'تسجيل المخزون'!#REF!,S10,'تسجيل المخزون'!#REF!,\"وارد\")-SUMIFS('تسجيل المخزون'!$F$2:$F$93,'تسجيل المخزون'!$D$2:$D$93,$G$1,'تسجيل المخزون'!#REF!,S10,'تسجيل المخزون'!#REF!,\"بيع\")-SUMIFS('تسجيل المخزون'!$F$2:$F$93,'تسجيل المخزون'!$D$2:$D$93,$G$1,'تسجيل المخزون'!#REF!,S10,'تسجيل المخزون'!#REF!,\"تالف\")","v":{"$error":"#REF!"}},{"$f":"SUMIFS('تسجيل المخزون'!$F$2:$F$93,'تسجيل المخزون'!$D$2:$D$93,$G$1,'تسجيل المخزون'!#REF!,T10,'تسجيل المخزون'!#REF!,\"وارد\")-SUMIFS('تسجيل المخزون'!$F$2:$F$93,'تسجيل المخزون'!$D$2:$D$93,$G$1,'تسجيل المخزون'!#REF!,T10,'تسجيل المخزون'!#REF!,\"بيع\")-SUMIFS('تسجيل المخزون'!$F$2:$F$93,'تسجيل المخزون'!$D$2:$D$93,$G$1,'تسجيل المخزون'!#REF!,T10,'تسجيل المخزون'!#REF!,\"تالف\")","v":{"$error":"#REF!"}},{"$f":"SUMIFS('تسجيل المخزون'!$F$2:$F$93,'تسجيل المخزون'!$D$2:$D$93,$G$1,'تسجيل المخزون'!#REF!,U10,'تسجيل المخزون'!#REF!,\"وارد\")-SUMIFS('تسجيل المخزون'!$F$2:$F$93,'تسجيل المخزون'!$D$2:$D$93,$G$1,'تسجيل المخزون'!#REF!,U10,'تسجيل المخزون'!#REF!,\"بيع\")-SUMIFS('تسجيل المخزون'!$F$2:$F$93,'تسجيل المخزون'!$D$2:$D$93,$G$1,'تسجيل المخزون'!#REF!,U10,'تسجيل المخزون'!#REF!,\"تالف\")","v":{"$error":"#REF!"}},{"$f":"SUMIFS('تسجيل المخزون'!$F$2:$F$93,'تسجيل المخزون'!$D$2:$D$93,$G$1,'تسجيل المخزون'!#REF!,V10,'تسجيل المخزون'!#REF!,\"وارد\")-SUMIFS('تسجيل المخزون'!$F$2:$F$93,'تسجيل المخزون'!$D$2:$D$93,$G$1,'تسجيل المخزون'!#REF!,V10,'تسجيل المخزون'!#REF!,\"بيع\")-SUMIFS('تسجيل المخزون'!$F$2:$F$93,'تسجيل المخزون'!$D$2:$D$93,$G$1,'تسجيل المخزون'!#REF!,V10,'تسجيل المخزون'!#REF!,\"تالف\")","v":{"$error":"#REF!"}},{"$f":"SUMIFS('تسجيل المخزون'!$F$2:$F$93,'تسجيل المخزون'!$D$2:$D$93,$G$1,'تسجيل المخزون'!#REF!,W10,'تسجيل المخزون'!#REF!,\"وارد\")-SUMIFS('تسجيل المخزون'!$F$2:$F$93,'تسجيل المخزون'!$D$2:$D$93,$G$1,'تسجيل المخزون'!#REF!,W10,'تسجيل المخزون'!#REF!,\"بيع\")-SUMIFS('تسجيل المخزون'!$F$2:$F$93,'تسجيل المخزون'!$D$2:$D$93,$G$1,'تسجيل المخزون'!#REF!,W10,'تسجيل المخزون'!#REF!,\"تالف\")","v":{"$error":"#REF!"}},{"$f":"SUMIFS('تسجيل المخزون'!$F$2:$F$93,'تسجيل المخزون'!$D$2:$D$93,$G$1,'تسجيل المخزون'!#REF!,X10,'تسجيل المخزون'!#REF!,\"وارد\")-SUMIFS('تسجيل المخزون'!$F$2:$F$93,'تسجيل المخزون'!$D$2:$D$93,$G$1,'تسجيل المخزون'!#REF!,X10,'تسجيل المخزون'!#REF!,\"بيع\")-SUMIFS('تسجيل المخزون'!$F$2:$F$93,'تسجيل المخزون'!$D$2:$D$93,$G$1,'تسجيل المخزون'!#REF!,X10,'تسجيل المخزون'!#REF!,\"تالف\")","v":{"$error":"#REF!"}},{"$f":"SUMIFS('تسجيل المخزون'!$F$2:$F$93,'تسجيل المخزون'!$D$2:$D$93,$G$1,'تسجيل المخزون'!#REF!,Y10,'تسجيل المخزون'!#REF!,\"وارد\")-SUMIFS('تسجيل المخزون'!$F$2:$F$93,'تسجيل المخزون'!$D$2:$D$93,$G$1,'تسجيل المخزون'!#REF!,Y10,'تسجيل المخزون'!#REF!,\"بيع\")-SUMIFS('تسجيل المخزون'!$F$2:$F$93,'تسجيل المخزون'!$D$2:$D$93,$G$1,'تسجيل المخزون'!#REF!,Y10,'تسجيل المخزون'!#REF!,\"تالف\")","v":{"$error":"#REF!"}},"2023-01-07","2023-02-07","2023-03-07","2023-04-07","2023-05-07","2023-06-07","2023-07-07","2023-08-07","2023-09-07","2023-10-07","2023-11-07","2023-12-07"]
[8,{"$f":"SUMIFS('تسجيل المخزون'!$F$2:$F$93,'تسجيل المخزون'!$D$2:$D$93,$G$1,'تسجيل المخزون'!#REF!,N11,'تسجيل المخزون'!#REF!,\"وارد\")-SUMIFS('تسجيل المخزون'!$F$2:$F$93,'تسجيل المخزون'!$D$2:$D$93,$G$1,'تسجيل المخزون'!#REF!,N11,'تسجيل المخزون'!#REF!,\"بيع\")-SUMIFS('تسجيل المخزون'!$F$2:$F$93,'تسجيل المخزون'!$D$2:$D$93,$G$1,'تسجيل المخزون'!#REF!,N11,'تسجيل المخزون'!#REF!,\"تالف\")","v":{"$error":"#REF!"}},{"$f":"SUMIFS('تسجيل المخزون'!$F$2:$F$93,'تسجيل المخزون'!$D$2:$D$93,$G$1,'تسجيل المخزون'!#REF!,O11,'تسجيل المخزون'!#REF!,\"وارد\")-SUMIFS('تسجيل المخزون'!$F$2:$F$93,'تسجيل المخزون'!$D$2:$D$93,$G$1,'تسجيل المخزون'!#REF!,O11,'تسجيل المخزون'!#REF!,\"بيع\")-SUMIFS('تسجيل المخزون'!$F$2:$F$93,'تسجيل المخزون'!$D$2:$D$93,$G$1,'تسجيل المخزون'!#REF!,O11,'تسجيل المخزون'!#REF!,\"تالف\")","v":{"$error":"#REF!"}},{"$f":"SUMIFS('تسجيل المخزون'!$F$2:$F$93,'تسجيل المخزون'!$D$2:$D$93,$G$1,'تسجيل المخزون'!#REF!,P11,'تسجيل المخزون'!#REF!,\"وارد\")-SUMIFS('تسجيل المخزون'!$F$2:$F$93,'تسجيل المخزون'!$D$2:$D$93,$G$1,'تسجيل المخزون'!#REF!,P11,'تسجيل المخزون'!#REF!,\"بيع\")-SUMIFS('تسجيل المخزون'!$F$2:$F$93,'تسجيل المخزون'!$D$2:$D$93,$G$1,'تسجيل المخزون'!#REF!,P11,'تسجيل المخزون'!#REF!,\"تالف\")","v":{"$error":"#REF!"}},{"$f":"SUMIFS('تسجيل المخزون'!$F$2:$F$93,'تسجيل المخزون'!$D$2:$D$93,$G$1,'تسجيل المخزون'!#REF!,Q11,'تسجيل المخزون'!#REF!,\"وارد\")-SUMIFS('تسجيل المخزون'!$F$2:$F$93,'تسجيل المخزون'!$D$2:$D$93,$G$1,'تسجيل المخزون'!#REF!,Q11,'تسجيل المخزون'!#REF!,\"بيع\")-SUMIFS('تسجيل المخزون'!$F$2:$F$93,'تسجيل المخزون'!$D$2:$D$93,$G$1,'تسجيل المخزون'!#REF!,Q11,'تسجيل المخزون'!#REF!,\"تالف\")","v":{"$error":"#REF!"}},{"$f":"SUMIFS('تسجيل المخزون'!$F$2:$F$93,'تسجيل المخزون'!$D$2:$D$93,$G$1,'تسجيل المخزون'!#REF!,R11,'تسجيل المخزون'!#REF!,\"وارد\")-SUMIFS('تسجيل المخزون'!$F$2:$F$93,'تسجيل المخزون'!$D$2:$D$93,$G$1,'تسجيل المخزون'!#REF!,R11,'تسجيل المخزون'!#REF!,\"بيع\")-SUMIFS('تسجيل المخزون'!$F$2:$F$93,'تسجيل المخزون'!$D$2:$D$93,$G$1,'تسجيل المخزون'!#REF!,R11,'تسجيل المخزون'!#REF!,\"تالف\")","v":{"$error":"#REF!"}},{"$f":"SUMIFS('تسجيل المخزون'!$F$2:$F$93,'تسجيل المخزون'!$D$2:$D$93,$G$1,'تسجيل المخزون'!#REF!,S11,'تسجيل المخزون'!#REF!,\"وارد\")-SUMIFS('تسجيل المخزون'!$F$2:$F$93,'تسجيل المخزون'!$D$2:$D$93,$G$1,'تسجيل المخزون'!#REF!,S11,'تسجيل المخزون'!#REF!,\"بيع\")-SUMIFS('تسجيل المخزون'!$F$2:$F$93,'تسجيل المخزون'!$D$2:$D$93,$G$1,'تسجيل المخزون'!#REF!,S11,'تسجيل المخزون'!#REF!,\"تالف\")","v":{"$error":"#REF!"}},{"$f":"SUMIFS('تسجيل المخزون'!$F$2:$F$93,'تسجيل المخزون'!$D$2:$D$93,$G$1,'تسجيل المخزون'!#REF!,T11,'تسجيل المخزون'!#REF!,\"وارد\")-SUMIFS('تسجيل المخزون'!$F$2:$F$93,'تسجيل المخزون'!$D$2:$D$93,$G$1,'تسجيل المخزون'!#REF!,T11,'تسجيل المخزون'!#REF!,\"بيع\")-SUMIFS('تسجيل المخزون'!$F$2:$F$93,'تسجيل المخزون'!$D$2:$D$93,$G$1,'تسجيل المخزون'!#REF!,T11,'تسجيل المخزون'!#REF!,\"تالف\")","v":{"$error":"#REF!"}},{"$f":"SUMIFS('تسجيل المخزون'!$F$2:$F$93,'تسجيل المخزون'!$D$2:$D$93,$G$1,'تسجيل المخزون'!#REF!,U11,'تسجيل المخزون'!#REF!,\"وارد\")-SUMIFS('تسجيل المخزون'!$F$2:$F$93,'تسجيل المخزون'!$D$2:$D$93,$G$1,'تسجيل المخزون'!#REF!,U11,'تسجيل المخزون'!#REF!,\"بيع\")-SUMIFS('تسجيل المخزون'!$F$2:$F$93,'تسجيل المخزون'!$D$2:$D$93,$G$1,'تسجيل المخزون'!#REF!,U11,'تسجيل المخزون'!#REF!,\"تالف\")","v":{"$error":"#REF!"}},{"$f":"SUMIFS('تسجيل المخزون'!$F$2:$F$93,'تسجيل المخزون'!$D$2:$D$93,$G$1,'تسجيل المخزون'!#REF!,V11,'تسجيل المخزون'!#REF!,\"وارد\")-SUMIFS('تسجيل المخزون'!$F$2:$F$93,'تسجيل المخزون'!$D$2:$D$93,$G$1,'تسجيل المخزون'!#REF!,V11,'تسجيل المخزون'!#REF!,\"بيع\")-SUMIFS('تسجيل المخزون'!$F$2:$F$93,'تسجيل المخزون'!$D$2:$D$93,$G$1,'تسجيل المخزون'!#REF!,V11,'تسجيل المخزون'!#REF!,\"تالف\")","v":{"$error":"#REF!"}},{"$f":"SUMIFS('تسجيل المخزون'!$F$2:$F$93,'تسجيل المخزون'!$D$2:$D$93,$G$1,'تسجيل المخزون'!#REF!,W11,'تسجيل المخزون'!#REF!,\"وارد\")-SUMIFS('تسجيل المخزون'!$F$2:$F$93,'تسجيل المخزون'!$D$2:$D$93,$G$1,'تسجيل المخزون'!#REF!,W11,'تسجيل المخزون'!#REF!,\"بيع\")-SUMIFS('تسجيل المخزون'!$F$2:$F$93,'تسجيل المخزون'!$D$2:$D$93,$G$1,'تسجيل المخزون'!#REF!,W11,'تسجيل المخزون'!#REF!,\"تالف\")","v":{"$error":"#REF!"}},{"$f":"SUMIFS('تسجيل المخزون'!$F$2:$F$93,'تسجيل المخزون'!$D$2:$D$93,$G$1,'تسجيل المخزون'!#REF!,X11,'تسجيل المخزون'!#REF!,\"وارد\")-SUMIFS('تسجيل المخزون'!$F$2:$F$93,'تسجيل المخزون'!$D$2:$D$93,$G$1,'تسجيل المخزون'!#REF!,X11,'تسجيل المخزون'!#REF!,\"بيع\")-SUMIFS('تسجيل المخزون'!$F$2:$F$93,'تسجيل المخزون'!$D$2:$D$93,$G$1,'تسجيل المخزون'!#REF!,X11,'تسجيل المخزون'!#REF!,\"تالف\")","v":{"$error":"#REF!"}},{"$f":"SUMIFS('تسجيل المخزون'!$F$2:$F$93,'تسجيل المخزون'!$D$2:$D$93,$G$1,'تسجيل المخزون'!#REF!,Y11,'تسجيل المخزون'!#REF!,\"وارد\")-SUMIFS('تسجيل المخزون'!$F$2:$F$93,'تسجيل المخزون'!$D$2:$D$93,$G$1,'تسجيل المخزون'!#REF!,Y11,'تسجيل المخزون'!#REF!,\"بيع\")-SUMIFS('تسجيل المخزون'!$F$2:$F$93,'تسجيل المخزون'!$D$2:$D$93,$G$1,'تسجيل المخزون'!#REF!,Y11,'تسجيل المخزون'!#REF!,\"تالف\")","v":{"$error":"#REF!"}},"2023-01-08","2023-02-08","2023-03-08","2023-04-08","2023-05-08","2023-06-08","2023-07-08","2023-08-08","2023-09-08","2023-10-08","2023-11-08","2023-12-08"]
[9,{"$f":"SUMIFS('تسجيل المخزون'!$F$2:$F$93,'تسجيل المخزون'!$D$2:$D$93,$G$1,'تسجيل المخزون'!#REF!,N12,'تسجيل المخزون'!#REF!,\"وارد\")-SUMIFS('تسجيل المخزون'!$F$2:$F$93,'تسجيل المخزون'!$D$2:$D$93,$G$1,'تسجيل المخزون'!#REF!,N12,'تسجيل المخزون'!#REF!,\"بيع\")-SUMIFS('تسجيل المخزون'!$F$2:$F$93,'تسجيل المخزون'!$D$2:$D$93,$G$1,'تسجيل المخزون'!#REF!,N12,'تسجيل المخزون'!#REF!,\"تالف\")","v":{"$error":"#REF!"}},{"$f":"SUMIFS('تسجيل المخزون'!$F$2:$F$93,'تسجيل المخزون'!$D$2:$D$93,$G$1,'تسجيل المخزون'!#REF!,O12,'تسجيل المخزون'!#REF!,\"وارد\")-SUMIFS('تسجيل المخزون'!$F$2:$F$93,'تسجيل المخزون'!$D$2:$D$93,$G$1,'تسجيل المخزون'!#REF!,O12,'تسجيل المخزون'!#REF!,\"بيع\")-SUMIFS('تسجيل المخزون'!$F$2:$F$93,'تسجيل المخزون'!$D$2:$D$93,$G$1,'تسجيل المخزون'!#REF!,O12,'تسجيل المخزون'!#REF!,\"تالف\")","v":{"$error":"#REF!"}},{"$f":"SUMIFS('تسجيل المخزون'!$F$2:$F$93,'تسجيل المخزون'!$D$2:$D$93,$G$1,'تسجيل المخزون'!#REF!,P12,'تسجيل المخزون'!#REF!,\"وارد\")-SUMIFS('تسجيل المخزون'!$F$2:$F$93,'تسجيل المخزون'!$D$2:$D$93,$G$1,'تسجيل المخزون'!#REF!,P12,'تسجيل المخزون'!#REF!,\"بيع\")-SUMIFS('تسجيل المخزون'!$F$2:$F$93,'تسجيل المخزون'!$D$2:$D$93,$G$1,'تسجيل المخزون'!#REF!,P12,'تسجيل المخزون'!#REF!,\"تالف\")","v":{"$error":"#REF!"}},{"$f":"SUMIFS('تسجيل المخزون'!$F$2:$F$93,'تسجيل المخزون'!$D$2:$D$93,$G$1,'تسجيل المخزون'!#REF!,Q12,'تسجيل المخزون'!#REF!,\"وارد\")-SUMIFS('تسجيل المخزون'!$F$2:$F$93,'تسجيل المخزون'!$D$2:$D$93,$G$1,'تسجيل المخزون'!#REF!,Q12,'تسجيل المخزون'!#REF!,\"بيع\")-SUMIFS('تسجيل المخزون'!$F$2:$F$93,'تسجيل المخزون'!$D$2:$D$93,$G$1,'تسجيل المخزون'!#REF!,Q12,'تسجيل المخزون'!#REF!,\"تالف\")","v":{"$error":"#REF!"}},{"$f":"SUMIFS('تسجيل المخزون'!$F$2:$F$93,'تسجيل المخزون'!$D$2:$D$93,$G$1,'تسجيل المخزون'!#REF!,R12,'تسجيل المخزون'!#REF!,\"وارد\")-SUMIFS('تسجيل المخزون'!$F$2:$F$93,'تسجيل المخزون'!$D$2:$D$93,$G$1,'تسجيل المخزون'!#REF!,R12,'تسجيل المخزون'!#REF!,\"بيع\")-SUMIFS('تسجيل المخزون'!$F$2:$F$93,'تسجيل المخزون'!$D$2:$D$93,$G$1,'تسجيل المخزون'!#REF!,R12,'تسجيل المخزون'!#REF!,\"تالف\")","v":{"$error":"#REF!"}},{"$f":"SUMIFS('تسجيل المخزون'!$F$2:$F$93,'تسجيل المخزون'!$D$2:$D$93,$G$1,'تسجيل المخزون'!#REF!,S12,'تسجيل المخزون'!#REF!,\"وارد\")-SUMIFS('تسجيل المخزون'!$F$2:$F$93,'تسجيل المخزون'!$D$2:$D$93,$G$1,'تسجيل المخزون'!#REF!,S12,'تسجيل المخزون'!#REF!,\"بيع\")-SUMIFS('تسجيل المخزون'!$F$2:$F$93,'تسجيل المخزون'!$D$2:$D$93,$G$1,'تسجيل المخزون'!#REF!,S12,'تسجيل المخزون'!#REF!,\"تالف\")","v":{"$error":"#REF!"}},{"$f":"SUMIFS('تسجيل المخزون'!$F$2:$F$93,'تسجيل المخزون'!$D$2:$D$93,$G$1,'تسجيل المخزون'!#REF!,T12,'تسجيل المخزون'!#REF!,\"وارد\")-SUMIFS('تسجيل المخزون'!$F$2:$F$93,'تسجيل المخزون'!$D$2:$D$93,$G$1,'تسجيل المخزون'!#REF!,T12,'تسجيل المخزون'!#REF!,\"بيع\")-SUMIFS('تسجيل المخزون'!$F$2:$F$93,'تسجيل المخزون'!$D$2:$D$93,$G$1,'تسجيل المخزون'!#REF!,T12,'تسجيل المخزون'!#REF!,\"تالف\")","v":{"$error":"#REF!"}},{"$f":"SUMIFS('تسجيل المخزون'!$F$2:$F$93,'تسجيل المخزون'!$D$2:$D$93,$G$1,'تسجيل المخزون'!#REF!,U12,'تسجيل المخزون'!#REF!,\"وارد\")-SUMIFS('تسجيل المخزون'!$F$2:$F$93,'تسجيل المخزون'!$D$2:$D$93,$G$1,'تسجيل المخزون'!#REF!,U12,'تسجيل المخزون'!#REF!,\"بيع\")-SUMIFS('تسجيل المخزون'!$F$2:$F$93,'تسجيل المخزون'!$D$2:$D$93,$G$1,'تسجيل المخزون'!#REF!,U12,'تسجيل المخزون'!#REF!,\"تالف\")","v":{"$error":"#REF!"}},{"$f":"SUMIFS('تسجيل المخزون'!$F$2:$F$93,'تسجيل المخزون'!$D$2:$D$93,$G$1,'تسجيل المخزون'!#REF!,V12,'تسجيل المخزون'!#REF!,\"وارد\")-SUMIFS('تسجيل المخزون'!$F$2:$F$93,'تسجيل المخزون'!$D$2:$D$93,$G$1,'تسجيل المخزون'!#REF!,V12,'تسجيل المخزون'!#REF!,\"بيع\")-SUMIFS('تسجيل المخزون'!$F$2:$F$93,'تسجيل المخزون'!$D$2:$D$93,$G$1,'تسجيل المخزون'!#REF!,V12,'تسجيل المخزون'!#REF!,\"تالف\")","v":{"$error":"#REF!"}},{"$f":"SUMIFS('تسجيل المخزون'!$F$2:$F$93,'تسجيل المخزون'!$D$2:$D$93,$G$1,'تسجيل المخزون'!#REF!,W12,'تسجيل المخزون'!#REF!,\"وارد\")-SUMIFS('تسجيل المخزون'!$F$2:$F$93,'تسجيل المخزون'!$D$2:$D$93,$G$1,'تسجيل المخزون'!#REF!,W12,'تسجيل المخزون'!#REF!,\"بيع\")-SUMIFS('تسجيل المخزون'!$F$2:$F$93,'تسجيل المخزون'!$D$2:$D$93,$G$1,'تسجيل المخزون'!#REF!,W12,'تسجيل المخزون'!#REF!,\"تالف\")","v":{"$error":"#REF!"}},{"$f":"SUMIFS('تسجيل المخزون'!$F$2:$F$93,'تسجيل المخزون'!$D$2:$D$93,$G$1,'تسجيل المخزون'!#REF!,X12,'تسجيل المخزون'!#REF!,\"وارد\")-SUMIFS('تسجيل المخزون'!$F$2:$F$93,'تسجيل المخزون'!$D$2:$D$93,$G$1,'تسجيل المخزون'!#REF!,X12,'تسجيل المخزون'!#REF!,\"بيع\")-SUMIFS('تسجيل المخزون'!$F$2:$F$93,'تسجيل المخزون'!$D$2:$D$93,$G$1,'تسجيل المخزون'!#REF!,X12,'تسجيل المخزون'!#REF!,\"تالف\")","v":{"$error":"#REF!"}},{"$f":"SUMIFS('تسجيل المخزون'!$F$2:$F$93,'تسجيل المخزون'!$D$2:$D$93,$G$1,'تسجيل المخزون'!#REF!,Y12,'تسجيل المخزون'!#REF!,\"وارد\")-SUMIFS('تسجيل المخزون'!$F$2:$F$93,'تسجيل المخزون'!$D$2:$D$93,$G$1,'تسجيل المخزون'!#REF!,Y12,'تسجيل المخزون'!#REF!,\"بيع\")-SUMIFS('تسجيل المخزون'!$F$2:$F$93,'تسجيل المخزون'!$D$2:$D$93,$G$1,'تسجيل المخزون'!#REF!,Y12,'تسجيل المخزون'!#REF!,\"تالف\")","v":{"$error":"#REF!"}},"2023-01-09","2023-02-09","2023-03-09","2023-04-09","2023-05-09","2023-06-09","2023-07-09","2023-08-09","2023-09-09","2023-10-09","2023-11-09","2023-12-09"]
[10,{"$f":"SUMIFS('تسجيل المخزون'!$F$2:$F$93,'تسجيل المخزون'!$D$2:$D$93,$G$1,'تسجيل المخزون'!#REF!,N13,'تسجيل المخزون'!#REF!,\"وارد\")-SUMIFS('تسجيل المخزون'!$F$2:$F$93,'تسجيل المخزون'!$D$2:$D$93,$G$1,'تسجيل المخزون'!#REF!,N13,'تسجيل المخزون'!#REF!,\"بيع\")-SUMIFS('تسجيل المخزون'!$F$2:$F$93,'تسجيل المخزون'!$D$2:$D$93,$G$1,'تسجيل المخزون'!#REF!,N13,'تسجيل المخزون'!#REF!,\"تالف\")","v":{"$error":"#REF!"}},{"$f":"SUMIFS('تسجيل المخزون'!$F$2:$F$93,'تسجيل المخزون'!$D$2:$D$93,$G$1,'تسجيل المخزون'!#REF!,O13,'تسجيل المخزون'!#REF!,\"وارد\")-SUMIFS('تسجيل المخزون'!$F$2:$F$93,'تسجيل المخزون'!$D$2:$D$93,$G$1,'تسجيل المخزون'!#REF!,O13,'تسجيل المخزون'!#REF!,\"بيع\")-SUMIFS('تسجيل المخزون'!$F$2:$F$93,'تسجيل المخزون'!$D$2:$D$93,$G$1,'تسجيل المخزون'!#REF!,O13,'تسجيل المخزون'!#REF!,\"تالف\")","v":{"$error":"#REF!"}},{"$f":"SUMIFS('تسجيل المخزون'!$F$2:$F$93,'تسجيل المخزون'!$D$2:$D$93,$G$1,'تسجيل المخزون'!#REF!,P13,'تسجيل المخزون'!#REF!,\"وارد\")-SUMIFS('تسجيل المخزون'!$F$2:$F$93,'تسجيل المخزون'!$D$2:$D$93,$G$1,'تسجيل المخزون'!#REF!,P13,'تسجيل المخزون'!#REF!,\"بيع\")-SUMIFS('تسجيل المخزون'!$F$2:$F$93,'تسجيل المخزون'!$D$2:$D$93,$G$1,'تسجيل المخزون'!#REF!,P13,'تسجيل المخزون'!#REF!,\"تالف\")","v":{"$error":"#REF!"}},{"$f":"SUMIFS('تسجيل المخزون'!$F$2:$F$93,'تسجيل المخزون'!$D$2:$D$93,$G$1,'تسجيل المخزون'!#REF!,Q13,'تسجيل المخزون'!#REF!,\"وارد\")-SUMIFS('تسجيل المخزون'!$F$2:$F$93,'تسجيل المخزون'!$D$2:$D$93,$G$1,'تسجيل المخزون'!#REF!,Q13,'تسجيل المخزون'!#REF!,\"بيع\")-SUMIFS('تسجيل المخزون'!$F$2:$F$93,'تسجيل المخزون'!$D$2:$D$93,$G$1,'تسجيل المخزون'!#REF!,Q13,'تسجيل المخزون'!#REF!,\"تالف\")","v":{"$error":"#REF!"}},{"$f":"SUMIFS('تسجيل المخزون'!$F$2:$F$93,'تسجيل المخزون'!$D$2:$D$93,$G$1,'تسجيل المخزون'!#REF!,R13,'تسجيل المخزون'!#REF!,\"وارد\")-SUMIFS('تسجيل المخزون'!$F$2:$F$93,'تسجيل المخزون'!$D$2:$D$93,$G$1,'تسجيل المخزون'!#REF!,R13,'تسجيل المخزون'!#REF!,\"بيع\")-SUMIFS('تسجيل المخزون'!$F$2:$F$93,'تسجيل المخزون'!$D$2:$D$93,$G$1,'تسجيل المخزون'!#REF!,R13,'تسجيل المخزون'!#REF!,\"تالف\")","v":{"$error":"#REF!"}},{"$f":"SUMIFS('تسجيل المخزون'!$F$2:$F$93,'تسجيل المخزون'!$D$2:$D$93,$G$1,'تسجيل المخزون'!#REF!,S13,'تسجيل المخزون'!#REF!,\"وارد\")-SUMIFS('تسجيل المخزون'!$F$2:$F$93,'تسجيل المخزون'!$D$2:$D$93,$G$1,'تسجيل المخزون'!#REF!,S13,'تسجيل المخزون'!#REF!,\"بيع\")-SUMIFS('تسجيل المخزون'!$F$2:$F$93,'تسجيل المخزون'!$D$2:$D$93,$G$1,'تسجيل المخزون'!#REF!,S13,'تسجيل المخزون'!#REF!,\"تالف\")","v":{"$error":"#REF!"}},{"$f":"SUMIFS('تسجيل المخزون'!$F$2:$F$93,'تسجيل المخزون'!$D$2:$D$93,$G$1,'تسجيل المخزون'!#REF!,T13,'تسجيل المخزون'!#REF!,\"وارد\")-SUMIFS('تسجيل المخزون'!$F$2:$F$93,'تسجيل المخزون'!$D$2:$D$93,$G$1,'تسجيل المخزون'!#REF!,T13,'تسجيل المخزون'!#REF!,\"بيع\")-SUMIFS('تسجيل المخزون'!$F$2:$F$93,'تسجيل المخزون'!$D$2:$D$93,$G$1,'تسجيل المخزون'!#REF!,T13,'تسجيل المخزون'!#REF!,\"تالف\")","v":{"$error":"#REF!"}},{"$f":"SUMIFS('تسجيل المخزون'!$F$2:$F$93,'تسجيل المخزون'!$D$2:$D$93,$G$1,'تسجيل المخزون'!#REF!,U13,'تسجيل المخزون'!#REF!,\"وارد\")-SUMIFS('تسجيل المخزون'!$F$2:$F$93,'تسجيل المخزون'!$D$2:$D$93,$G$1,'تسجيل المخزون'!#REF!,U13,'تسجيل المخزون'!#REF!,\"بيع\")-SUMIFS('تسجيل المخزون'!$F$2:$F$93,'تسجيل المخزون'!$D$2:$D$93,$G$1,'تسجيل المخزون'!#REF!,U13,'تسجيل المخزون'!#REF!,\"تالف\")","v":{"$error":"#REF!"}},{"$f":"SUMIFS('تسجيل المخزون'!$F$2:$F$93,'تسجيل المخزون'!$D$2:$D$93,$G$1,'تسجيل المخزون'!#REF!,V13,'تسجيل المخزون'!#REF!,\"وارد\")-SUMIFS('تسجيل المخزون'!$F$2:$F$93,'تسجيل المخزون'!$D$2:$D$93,$G$1,'تسجيل المخزون'!#REF!,V13,'تسجيل المخزون'!#REF!,\"بيع\")-SUMIFS('تسجيل المخزون'!$F$2:$F$93,'تسجيل المخزون'!$D$2:$D$93,$G$1,'تسجيل المخزون'!#REF!,V13,'تسجيل المخزون'!#REF!,\"تالف\")","v":{"$error":"#REF!"}},{"$f":"SUMIFS('تسجيل المخزون'!$F$2:$F$93,'تسجيل المخزون'!$D$2:$D$93,$G$1,'تسجيل المخزون'!#REF!,W13,'تسجيل المخزون'!#REF!,\"وارد\")-SUMIFS('تسجيل المخزون'!$F$2:$F$93,'تسجيل المخزون'!$D$2:$D$93,$G$1,'تسجيل المخزون'!#REF!,W13,'تسجيل المخزون'!#REF!,\"بيع\")-SUMIFS('تسجيل المخزون'!$F$2:$F$93,'تسجيل المخزون'!$D$2:$D$93,$G$1,'تسجيل المخزون'!#REF!,W13,'تسجيل المخزون'!#REF!,\"تالف\")","v":{"$error":"#REF!"}},{"$f":"SUMIFS('تسجيل المخزون'!$F$2:$F$93,'تسجيل المخزون'!$D$2:$D$93,$G$1,'تسجيل المخزون'!#REF!,X13,'تسجيل المخزون'!#REF!,\"وارد\")-SUMIFS('تسجيل المخزون'!$F$2:$F$93,'تسجيل المخزون'!$D$2:$D$93,$G$1,'تسجيل المخزون'!#REF!,X13,'تسجيل المخزون'!#REF!,\"بيع\")-SUMIFS('تسجيل المخزون'!$F$2:$F$93,'تسجيل المخزون'!$D$2:$D$93,$G$1,'تسجيل المخزون'!#REF!,X13,'تسجيل المخزون'!#REF!,\"تالف\")","v":{"$error":"#REF!"}},{"$f":"SUMIFS('تسجيل المخزون'!$F$2:$F$93,'تسجيل المخزون'!$D$2:$D$93,$G$1,'تسجيل المخزون'!#REF!,Y13,'تسجيل المخزون'!#REF!,\"وارد\")-SUMIFS('تسجيل المخزون'!$F$2:$F$93,'تسجيل المخزون'!$D$2:$D$93,$G$1,'تسجيل المخزون'!#REF!,Y13,'تسجيل المخزون'!#REF!,\"بيع\")-SUMIFS('تسجيل المخزون'!$F$2:$F$93,'تسجيل المخزون'!$D$2:$D$93,$G$1,'تسجيل المخزون'!#REF!,Y13,'تسجيل المخزون'!#REF!,\"تالف\")","v":{"$error":"#REF!"}},"2023-01-10","2023-02-10","2023-03-10","2023-04-10","2023-05-10","2023-06-10","2023-07-10","2023-08-10","2023-09-10","2023-10-10","2023-11-10","2023-12-10"]
[11,{"$f":"SUMIFS('تسجيل المخزون'!$F$2:$F$93,'تسجيل المخزون'!$D$2:$D$93,$G$1,'تسجيل المخزون'!#REF!,N14,'تسجيل المخزون'!#REF!,\"وارد\")-SUMIFS('تسجيل المخزون'!$F$2:$F$93,'تسجيل المخزون'!$D$2:$D$93,$G$1,'تسجيل المخزون'!#REF!,N14,'تسجيل المخزون'!#REF!,\"بيع\")-SUMIFS('تسجيل المخزون'!$F$2:$F$93,'تسجيل المخزون'!$D$2:$D$93,$G$1,'تسجيل المخزون'!#REF!,N14,'تسجيل المخزون'!#REF!,\"تالف\")","v":{"$error":"#REF!"}},{"$f":"SUMIFS('تسجيل المخزون'!$F$2:$F$93,'تسجيل المخزون'!$D$2:$D$93,$G$1,'تسجيل المخزون'!#REF!,O14,'تسجيل المخزون'!#REF!,\"وارد\")-SUMIFS('تسجيل المخزون'!$F$2:$F$93,'تسجيل المخزون'!$D$2:$D$93,$G$1,'تسجيل المخزون'!#REF!,O14,'تسجيل المخزون'!#REF!,\"بيع\")-SUMIFS('تسجيل المخزون'!$F$2:$F$93,'تسجيل المخزون'!$D$2:$D$93,$G$1,'تسجيل المخزون'!#REF!,O14,'تسجيل المخزون'!#REF!,\"تالف\")","v":{"$error":"#REF!"}},{"$f":"SUMIFS('تسجيل المخزون'!$F$2:$F$93,'تسجيل المخزون'!$D$2:$D$93,$G$1,'تسجيل المخزون'!#REF!,P14,'تسجيل المخزون'!#REF!,\"وارد\")-SUMIFS('تسجيل المخزون'!$F$2:$F$93,'تسجيل المخزون'!$D$2:$D$93,$G$1,'تسجيل المخزون'!#REF!,P14,'تسجيل المخزون'!#REF!,\"بيع\")-SUMIFS('تسجيل المخزون'!$F$2:$F$93,'تسجيل المخزون'!$D$2:$D$93,$G$1,'تسجيل المخزون'!#REF!,P14,'تسجيل المخزون'!#REF!,\"تالف\")","v":{"$error":"#REF!"}},{"$f":"SUMIFS('تسجيل المخزون'!$F$2:$F$93,'تسجيل المخزون'!$D$2:$D$93,$G$1,'تسجيل المخزون'!#REF!,Q14,'تسجيل المخزون'!#REF!,\"وارد\")-SUMIFS('تسجيل المخزون'!$F$2:$F$93,'تسجيل المخزون'!$D$2:$D$93,$G$1,'تسجيل المخزون'!#REF!,Q14,'تسجيل المخزون'!#REF!,\"بيع\")-SUMIFS('تسجيل المخزون'!$F$2:$F$93,'تسجيل المخزون'!$D$2:$D$93,$G$1,'تسجيل المخزون'!#REF!,Q14,'تسجيل المخزون'!#REF!,\"تالف\")","v":{"$error":"#REF!"}},{"$f":"SUMIFS('تسجيل المخزون'!$F$2:$F$93,'تسجيل المخزون'!$D$2:$D$93,$G$1,'تسجيل المخزون'!#REF!,R14,'تسجيل المخزون'!#REF!,\"وارد\")-SUMIFS('تسجيل المخزون'!$F$2:$F$93,'تسجيل المخزون'!$D$2:$D$93,$G$1,'تسجيل المخزون'!#REF!,R14,'تسجيل المخزون'!#REF!,\"بيع\")-SUMIFS('تسجيل المخزون'!$F$2:$F$93,'تسجيل المخزون'!$D$2:$D$93,$G$1,'تسجيل المخزون'!#REF!,R14,'تسجيل المخزون'!#REF!,\"تالف\")","v":{"$error":"#REF!"}},{"$f":"SUMIFS('تسجيل المخزون'!$F$2:$F$93,'تسجيل المخزون'!$D$2:$D$93,$G$1,'تسجيل المخزون'!#REF!,S14,'تسجيل المخزون'!#REF!,\"وارد\")-SUMIFS('تسجيل المخزون'!$F$2:$F$93,'تسجيل المخزون'!$D$2:$D$93,$G$1,'تسجيل المخزون'!#REF!,S14,'تسجيل المخزون'!#REF!,\"بيع\")-SUMIFS('تسجيل المخزون'!$F$2:$F$93,'تسجيل المخزون'!$D$2:$D$93,$G$1,'تسجيل المخزون'!#REF!,S14,'تسجيل المخزون'!#REF!,\"تالف\")","v":{"$error":"#REF!"}},{"$f":"SUMIFS('تسجيل المخزون'!$F$2:$F$93,'تسجيل المخزون'!$D$2:$D$93,$G$1,'تسجيل المخزون'!#REF!,T14,'تسجيل المخزون'!#REF!,\"وارد\")-SUMIFS('تسجيل المخزون'!$F$2:$F$93,'تسجيل المخزون'!$D$2:$D$93,$G$1,'تسجيل المخزون'!#REF!,T14,'تسجيل المخزون'!#REF!,\"بيع\")-SUMIFS('تسجيل المخزون'!$F$2:$F$93,'تسجيل المخزون'!$D$2:$D$93,$G$1,'تسجيل المخزون'!#REF!,T14,'تسجيل المخزون'!#REF!,\"تالف\")","v":{"$error":"#REF!"}},{"$f":"SUMIFS('تسجيل المخزون'!$F$2:$F$93,'تسجيل المخزون'!$D$2:$D$93,$G$1,'تسجيل المخزون'!#REF!,U14,'تسجيل المخزون'!#REF!,\"وارد\")-SUMIFS('تسجيل المخزون'!$F$2:$F$93,'تسجيل المخزون'!$D$2:$D$93,$G$1,'تسجيل المخزون'!#REF!,U14,'تسجيل المخزون'!#REF!,\"بيع\")-SUMIFS('تسجيل المخزون'!$F$2:$F$93,'تسجيل المخزون'!$D$2:$D$93,$G$1,'تسجيل المخزون'!#REF!,U14,'تسجيل المخزون'!#REF!,\"تالف\")","v":{"$error":"#REF!"}},{"$f":"SUMIFS('تسجيل المخزون'!$F$2:$F$93,'تسجيل المخزون'!$D$2:$D$93,$G$1,'تسجيل المخزون'!#REF!,V14,'تسجيل المخزون'!#REF!,\"وارد\")-SUMIFS('تسجيل المخزون'!$F$2:$F$93,'تسجيل المخزون'!$D$2:$D$93,$G$1,'تسجيل المخزون'!#REF!,V14,'تسجيل المخزون'!#REF!,\"بيع\")-SUMIFS('تسجيل المخزون'!$F$2:$F$93,'تسجيل المخزون'!$D$2:$D$93,$G$1,'تسجيل المخزون'!#REF!,V14,'تسجيل المخزون'!#REF!,\"تالف\")","v":{"$error":"#REF!"}},{"$f":"SUMIFS('تسجيل المخزون'!$F$2:$F$93,'تسجيل المخزون'!$D$2:$D$93,$G$1,'تسجيل المخزون'!#REF!,W14,'تسجيل المخزون'!#REF!,\"وارد\")-SUMIFS('تسجيل المخزون'!$F$2:$F$93,'تسجيل المخزون'!$D$2:$D$93,$G$1,'تسجيل المخزون'!#REF!,W14,'تسجيل المخزون'!#REF!,\"بيع\")-SUMIFS('تسجيل المخزون'!$F$2:$F$93,'تسجيل المخزون'!$D$2:$D$93,$G$1,'تسجيل المخزون'!#REF!,W14,'تسجيل المخزون'!#REF!,\"تالف\")","v":{"$error":"#REF!"}},{"$f":"SUMIFS('تسجيل المخزون'!$F$2:$F$93,'تسجيل المخزون'!$D$2:$D$93,$G$1,'تسجيل المخزون'!#REF!,X14,'تسجيل المخزون'!#REF!,\"وارد\")-SUMIFS('تسجيل المخزون'!$F$2:$F$93,'تسجيل المخزون'!$D$2:$D$93,$G$1,'تسجيل المخزون'!#REF!,X14,'تسجيل المخزون'!#REF!,\"بيع\")-SUMIFS('تسجيل المخزون'!$F$2:$F$93,'تسجيل المخزون'!$D$2:$D$93,$G$1,'تسجيل المخزون'!#REF!,X14,'تسجيل المخزون'!#REF!,\"تالف\")","v":{"$error":"#REF!"}},{"$f":"SUMIFS('تسجيل المخزون'!$F$2:$F$93,'تسجيل المخزون'!$D$2:$D$93,$G$1,'تسجيل المخزون'!#REF!,Y14,'تسجيل المخزون'!#REF!,\"وارد\")-SUMIFS('تسجيل المخزون'!$F$2:$F$93,'تسجيل المخزون'!$D$2:$D$93,$G$1,'تسجيل المخزون'!#REF!,Y14,'تسجيل المخزون'!#REF!,\"بيع\")-SUMIFS('تسجيل المخزون'!$F$2:$F$93,'تسجيل المخزون'!$D$2:$D$93,$G$1,'تسجيل المخزون'!#REF!,Y14,'تسجيل المخزون'!#REF!,\"تالف\")","v":{"$error":"#REF!"}},"2023-01-11","2023-02-11","2023-03-11","2023-04-11","2023-05-11","2023-06-11","2023-07-11","2023-08-11","2023-09-11","2023-10-11","2023-11-11","2023-12-11"]
[12,{"$f":"SUMIFS('تسجيل المخزون'!$F$2:$F$93,'تسجيل المخزون'!$D$2:$D$93,$G$1,'تسجيل المخزون'!#REF!,N15,'تسجيل المخزون'!#REF!,\"وارد\")-SUMIFS('تسجيل المخزون'!$F$2:$F$93,'تسجيل المخزون'!$D$2:$D$93,$G$1,'تسجيل المخزون'!#REF!,N15,'تسجيل المخزون'!#REF!,\"بيع\")-SUMIFS('تسجيل المخزون'!$F$2:$F$93,'تسجيل المخزون'!$D$2:$D$93,$G$1,'تسجيل المخزون'!#REF!,N15,'تسجيل المخزون'!#REF!,\"تالف\")","v":{"$error":"#REF!"}},{"$f":"SUMIFS('تسجيل المخزون'!$F$2:$F$93,'تسجيل المخزون'!$D$2:$D$93,$G$1,'تسجيل المخزون'!#REF!,O15,'تسجيل المخزون'!#REF!,\"وارد\")-SUMIFS('تسجيل المخزون'!$F$2:$F$93,'تسجيل المخزون'!$D$2:$D$93,$G$1,'تسجيل المخزون'!#REF!,O15,'تسجيل المخزون'!#REF!,\"بيع\")-SUMIFS('تسجيل المخزون'!$F$2:$F$93,'تسجيل المخزون'!$D$2:$D$93,$G$1,'تسجيل المخزون'!#REF!,O15,'تسجيل المخزون'!#REF!,\"تالف\")","v":{"$error":"#REF!"}},{"$f":"SUMIFS('تسجيل المخزون'!$F$2:$F$93,'تسجيل المخزون'!$D$2:$D$93,$G$1,'تسجيل المخزون'!#REF!,P15,'تسجيل المخزون'!#REF!,\"وارد\")-SUMIFS('تسجيل المخزون'!$F$2:$F$93,'تسجيل المخزون'!$D$2:$D$93,$G$1,'تسجيل المخزون'!#REF!,P15,'تسجيل المخزون'!#REF!,\"بيع\")-SUMIFS('تسجيل المخزون'!$F$2:$F$93,'تسجيل المخزون'!$D$2:$D$93,$G$1,'تسجيل المخزون'!#REF!,P15,'تسجيل المخزون'!#REF!,\"تالف\")","v":{"$error":"#REF!"}},{"$f":"SUMIFS('تسجيل المخزون'!$F$2:$F$93,'تسجيل المخزون'!$D$2:$D$93,$G$1,'تسجيل المخزون'!#REF!,Q15,'تسجيل المخزون'!#REF!,\"وارد\")-SUMIFS('تسجيل المخزون'!$F$2:$F$93,'تسجيل المخزون'!$D$2:$D$93,$G$1,'تسجيل المخزون'!#REF!,Q15,'تسجيل المخزون'!#REF!,\"بيع\")-SUMIFS('تسجيل المخزون'!$F$2:$F$93,'تسجيل المخزون'!$D$2:$D$93,$G$1,'تسجيل المخزون'!#REF!,Q15,'تسجيل المخزون'!#REF!,\"تالف\")","v":{"$error":"#REF!"}},{"$f":"SUMIFS('تسجيل المخزون'!$F$2:$F$93,'تسجيل المخزون'!$D$2:$D$93,$G$1,'تسجيل المخزون'!#REF!,R15,'تسجيل المخزون'!#REF!,\"وارد\")-SUMIFS('تسجيل المخزون'!$F$2:$F$93,'تسجيل المخزون'!$D$2:$D$93,$G$1,'تسجيل المخزون'!#REF!,R15,'تسجيل المخزون'!#REF!,\"بيع\")-SUMIFS('تسجيل المخزون'!$F$2:$F$93,'تسجيل المخزون'!$D$2:$D$93,$G$1,'تسجيل المخزون'!#REF!,R15,'تسجيل المخزون'!#REF!,\"تالف\")","v":{"$error":"#REF!"}},{"$f":"SUMIFS('تسجيل المخزون'!$F$2:$F$93,'تسجيل المخزون'!$D$2:$D$93,$G$1,'تسجيل المخزون'!#REF!,S15,'تسجيل المخزون'!#REF!,\"وارد\")-SUMIFS('تسجيل المخزون'!$F$2:$F$93,'تسجيل المخزون'!$D$2:$D$93,$G$1,'تسجيل المخزون'!#REF!,S15,'تسجيل المخزون'!#REF!,\"بيع\")-SUMIFS('تسجيل المخزون'!$F$2:$F$93,'تسجيل المخزون'!$D$2:$D$93,$G$1,'تسجيل المخزون'!#REF!,S15,'تسجيل المخزون'!#REF!,\"تالف\")","v":{"$error":"#REF!"}},{"$f":"SUMIFS('تسجيل المخزون'!$F$2:$F$93,'تسجيل المخزون'!$D$2:$D$93,$G$1,'تسجيل المخزون'!#REF!,T15,'تسجيل المخزون'!#REF!,\"وارد\")-SUMIFS('تسجيل المخزون'!$F$2:$F$93,'تسجيل المخزون'!$D$2:$D$93,$G$1,'تسجيل المخزون'!#REF!,T15,'تسجيل المخزون'!#REF!,\"بيع\")-SUMIFS('تسجيل المخزون'!$F$2:$F$93,'تسجيل المخزون'!$D$2:$D$93,$G$1,'تسجيل المخزون'!#REF!,T15,'تسجيل المخزون'!#REF!,\"تالف\")","v":{"$error":"#REF!"}},{"$f":"SUMIFS('تسجيل المخزون'!$F$2:$F$93,'تسجيل المخزون'!$D$2:$D$93,$G$1,'تسجيل المخزون'!#REF!,U15,'تسجيل المخزون'!#REF!,\"وارد\")-SUMIFS('تسجيل المخزون'!$F$2:$F$93,'تسجيل المخزون'!$D$2:$D$93,$G$1,'تسجيل المخزون'!#REF!,U15,'تسجيل المخزون'!#REF!,\"بيع\")-SUMIFS('تسجيل المخزون'!$F$2:$F$93,'تسجيل المخزون'!$D$2:$D$93,$G$1,'تسجيل المخزون'!#REF!,U15,'تسجيل المخزون'!#REF!,\"تالف\")","v":{"$error":"#REF!"}},{"$f":"SUMIFS('تسجيل المخزون'!$F$2:$F$93,'تسجيل المخزون'!$D$2:$D$93,$G$1,'تسجيل المخزون'!#REF!,V15,'تسجيل المخزون'!#REF!,\"وارد\")-SUMIFS('تسجيل المخزون'!$F$2:$F$93,'تسجيل المخزون'!$D$2:$D$93,$G$1,'تسجيل المخزون'!#REF!,V15,'تسجيل المخزون'!#REF!,\"بيع\")-SUMIFS('تسجيل المخزون'!$F$2:$F$93,'تسجيل المخزون'!$D$2:$D$93,$G$1,'تسجيل المخزون'!#REF!,V15,'تسجيل المخزون'!#REF!,\"تالف\")","v":{"$error":"#REF!"}},{"$f":"SUMIFS('تسجيل المخزون'!$F$2:$F$93,'تسجيل المخزون'!$D$2:$D$93,$G$1,'تسجيل المخزون'!#REF!,W15,'تسجيل المخزون'!#REF!,\"وارد\")-SUMIFS('تسجيل المخزون'!$F$2:$F$93,'تسجيل المخزون'!$D$2:$D$93,$G$1,'تسجيل المخزون'!#REF!,W15,'تسجيل المخزون'!#REF!,\"بيع\")-SUMIFS('تسجيل المخزون'!$F$2:$F$93,'تسجيل المخزون'!$D$2:$D$93,$G$1,'تسجيل المخزون'!#REF!,W15,'تسجيل المخزون'!#REF!,\"تالف\")","v":{"$error":"#REF!"}},{"$f":"SUMIFS('تسجيل المخزون'!$F$2:$F$93,'تسجيل المخزون'!$D$2:$D$93,$G$1,'تسجيل المخزون'!#REF!,X15,'تسجيل المخزون'!#REF!,\"وارد\")-SUMIFS('تسجيل المخزون'!$F$2:$F$93,'تسجيل المخزون'!$D$2:$D$93,$G$1,'تسجيل المخزون'!#REF!,X15,'تسجيل المخزون'!#REF!,\"بيع\")-SUMIFS('تسجيل المخزون'!$F$2:$F$93,'تسجيل المخزون'!$D$2:$D$93,$G$1,'تسجيل المخزون'!#REF!,X15,'تسجيل المخزون'!#REF!,\"تالف\")","v":{"$error":"#REF!"}},{"$f":"SUMIFS('تسجيل المخزون'!$F$2:$F$93,'تسجيل المخزون'!$D$2:$D$93,$G$1,'تسجيل المخزون'!#REF!,Y15,'تسجيل المخزون'!#REF!,\"وارد\")-SUMIFS('تسجيل المخزون'!$F$2:$F$93,'تسجيل المخزون'!$D$2:$D$93,$G$1,'تسجيل المخزون'!#REF!,Y15,'تسجيل المخزون'!#REF!,\"بيع\")-SUMIFS('تسجيل المخزون'!$F$2:$F$93,'تسجيل المخزون'!$D$2:$D$93,$G$1,'تسجيل المخزون'!#REF!,Y15,'تسجيل المخزون'!#REF!,\"تالف\")","v":{"$error":"#REF!"}},"2023-01-12","2023-02-12","2023-03-12","2023-04-12","2023-05-12","2023-06-12","2023-07-12","2023-08-12","2023-09-12","2023-10-12","2023-11-12","2023-12-12"]
[13,{"$f":"SUMIFS('تسجيل المخزون'!$F$2:$F$93,'تسجيل المخزون'!$D$2:$D$93,$G$1,'تسجيل المخزون'!#REF!,N16,'تسجيل المخزون'!#REF!,\"وارد\")-SUMIFS('تسجيل المخزون'!$F$2:$F$93,'تسجيل المخزون'!$D$2:$D$93,$G$1,'تسجيل المخزون'!#REF!,N16,'تسجيل المخزون'!#REF!,\"بيع\")-SUMIFS('تسجيل المخزون'!$F$2:$F$93,'تسجيل المخزون'!$D$2:$D$93,$G$1,'تسجيل المخزون'!#REF!,N16,'تسجيل المخزون'!#REF!,\"تالف\")","v":{"$error":"#REF!"}},{"$f":"SUMIFS('تسجيل المخزون'!$F$2:$F$93,'تسجيل المخزون'!$D$2:$D$93,$G$1,'تسجيل المخزون'!#REF!,O16,'تسجيل المخزون'!#REF!,\"وارد\")-SUMIFS('تسجيل المخزون'!$F$2:$F$93,'تسجيل المخزون'!$D$2:$D$93,$G$1,'تسجيل المخزون'!#REF!,O16,'تسجيل المخزون'!#REF!,\"بيع\")-SUMIFS('تسجيل المخزون'!$F$2:$F$93,'تسجيل المخزون'!$D$2:$D$93,$G$1,'تسجيل المخزون'!#REF!,O16,'تسجيل المخزون'!#REF!,\"تالف\")","v":{"$error":"#REF!"}},{"$f":"SUMIFS('تسجيل المخزون'!$F$2:$F$93,'تسجيل المخزون'!$D$2:$D$93,$G$1,'تسجيل المخزون'!#REF!,P16,'تسجيل المخزون'!#REF!,\"وارد\")-SUMIFS('تسجيل المخزون'!$F$2:$F$93,'تسجيل المخزون'!$D$2:$D$93,$G$1,'تسجيل المخزون'!#REF!,P16,'تسجيل المخزون'!#REF!,\"بيع\")-SUMIFS('تسجيل المخزون'!$F$2:$F$93,'تسجيل المخزون'!$D$2:$D$93,$G$1,'تسجيل المخزون'!#REF!,P16,'تسجيل المخزون'!#REF!,\"تالف\")","v":{"$error":"#REF!"}},{"$f":"SUMIFS('تسجيل المخزون'!$F$2:$F$93,'تسجيل المخزون'!$D$2:$D$93,$G$1,'تسجيل المخزون'!#REF!,Q16,'تسجيل المخزون'!#REF!,\"وارد\")-SUMIFS('تسجيل المخزون'!$F$2:$F$93,'تسجيل المخزون'!$D$2:$D$93,$G$1,'تسجيل المخزون'!#REF!,Q16,'تسجيل المخزون'!#REF!,\"بيع\")-SUMIFS('تسجيل المخزون'!$F$2:$F$93,'تسجيل المخزون'!$D$2:$D$93,$G$1,'تسجيل المخزون'!#REF!,Q16,'تسجيل المخزون'!#REF!,\"تالف\")","v":{"$error":"#REF!"}},{"$f":"SUMIFS('تسجيل المخزون'!$F$2:$F$93,'تسجيل المخزون'!$D$2:$D$93,$G$1,'تسجيل المخزون'!#REF!,R16,'تسجيل المخزون'!#REF!,\"وارد\")-SUMIFS('تسجيل المخزون'!$F$2:$F$93,'تسجيل المخزون'!$D$2:$D$93,$G$1,'تسجيل المخزون'!#REF!,R16,'تسجيل المخزون'!#REF!,\"بيع\")-SUMIFS('تسجيل المخزون'!$F$2:$F$93,'تسجيل المخزون'!$D$2:$D$93,$G$1,'تسجيل المخزون'!#REF!,R16,'تسجيل المخزون'!#REF!,\"تالف\")","v":{"$error":"#REF!"}},{"$f":"SUMIFS('تسجيل المخزون'!$F$2:$F$93,'تسجيل المخزون'!$D$2:$D$93,$G$1,'تسجيل المخزون'!#REF!,S16,'تسجيل المخزون'!#REF!,\"وارد\")-SUMIFS('تسجيل المخزون'!$F$2:$F$93,'تسجيل المخزون'!$D$2:$D$93,$G$1,'تسجيل المخزون'!#REF!,S16,'تسجيل المخزون'!#REF!,\"بيع\")-SUMIFS('تسجيل المخزون'!$F$2:$F$93,'تسجيل المخزون'!$D$2:$D$93,$G$1,'تسجيل المخزون'!#REF!,S16,'تسجيل المخزون'!#REF!,\"تالف\")","v":{"$error":"#REF!"}},{"$f":"SUMIFS('تسجيل المخزون'!$F$2:$F$93,'تسجيل المخزون'!$D$2:$D$93,$G$1,'تسجيل المخزون'!#REF!,T16,'تسجيل المخزون'!#REF!,\"وارد\")-SUMIFS('تسجيل المخزون'!$F$2:$F$93,'تسجيل المخزون'!$D$2:$D$93,$G$1,'تسجيل المخزون'!#REF!,T16,'تسجيل المخزون'!#REF!,\"بيع\")-SUMIFS('تسجيل المخزون'!$F$2:$F$93,'تسجيل المخزون'!$D$2:$D$93,$G$1,'تسجيل المخزون'!#REF!,T16,'تسجيل المخزون'!#REF!,\"تالف\")","v":{"$error":"#REF!"}},{"$f":"SUMIFS('تسجيل المخزون'!$F$2:$F$93,'تسجيل المخزون'!$D$2:$D$93,$G$1,'تسجيل المخزون'!#REF!,U16,'تسجيل المخزون'!#REF!,\"وارد\")-SUMIFS('تسجيل المخزون'!$F$2:$F$93,'تسجيل المخزون'!$D$2:$D$93,$G$1,'تسجيل المخزون'!#REF!,U16,'تسجيل المخزون'!#REF!,\"بيع\")-SUMIFS('تسجيل المخزون'!$F$2:$F$93,'تسجيل المخزون'!$D$2:$D$93,$G$1,'تسجيل المخزون'!#REF!,U16,'تسجيل المخزون'!#REF!,\"تالف\")","v":{"$error":"#REF!"}},{"$f":"SUMIFS('تسجيل المخزون'!$F$2:$F$93,'تسجيل المخزون'!$D$2:$D$93,$G$1,'تسجيل المخزون'!#REF!,V16,'تسجيل المخزون'!#REF!,\"وارد\")-SUMIFS('تسجيل المخزون'!$F$2:$F$93,'تسجيل المخزون'!$D$2:$D$93,$G$1,'تسجيل المخزون'!#REF!,V16,'تسجيل المخزون'!#REF!,\"بيع\")-SUMIFS('تسجيل المخزون'!$F$2:$F$93,'تسجيل المخزون'!$D$2:$D$93,$G$1,'تسجيل المخزون'!#REF!,V16,'تسجيل المخزون'!#REF!,\"تالف\")","v":{"$error":"#REF!"}},{"$f":"SUMIFS('تسجيل المخزون'!$F$2:$F$93,'تسجيل المخزون'!$D$2:$D$93,$G$1,'تسجيل المخزون'!#REF!,W16,'تسجيل المخزون'!#REF!,\"وارد\")-SUMIFS('تسجيل المخزون'!$F$2:$F$93,'تسجيل المخزون'!$D$2:$D$93,$G$1,'تسجيل المخزون'!#REF!,W16,'تسجيل المخزون'!#REF!,\"بيع\")-SUMIFS('تسجيل المخزون'!$F$2:$F$93,'تسجيل المخزون'!$D$2:$D$93,$G$1,'تسجيل المخزون'!#REF!,W16,'تسجيل المخزون'!#REF!,\"تالف\")","v":{"$error":"#REF!"}},{"$f":"SUMIFS('تسجيل المخزون'!$F$2:$F$93,'تسجيل المخزون'!$D$2:$D$93,$G$1,'تسجيل المخزون'!#REF!,X16,'تسجيل المخزون'!#REF!,\"وارد\")-SUMIFS('تسجيل المخزون'!$F$2:$F$93,'تسجيل المخزون'!$D$2:$D$93,$G$1,'تسجيل المخزون'!#REF!,X16,'تسجيل المخزون'!#REF!,\"بيع\")-SUMIFS('تسجيل المخزون'!$F$2:$F$93,'تسجيل المخزون'!$D$2:$D$93,$G$1,'تسجيل المخزون'!#REF!,X16,'تسجيل المخزون'!#REF!,\"تالف\")","v":{"$error":"#REF!"}},{"$f":"SUMIFS('تسجيل المخزون'!$F$2:$F$93,'تسجيل المخزون'!$D$2:$D$93,$G$1,'تسجيل المخزون'!#REF!,Y16,'تسجيل المخزون'!#REF!,\"وارد\")-SUMIFS('تسجيل المخزون'!$F$2:$F$93,'تسجيل المخزون'!$D$2:$D$93,$G$1,'تسجيل المخزون'!#REF!,Y16,'تسجيل المخزون'!#REF!,\"بيع\")-SUMIFS('تسجيل المخزون'!$F$2:$F$93,'تسجيل المخزون'!$D$2:$D$93,$G$1,'تسجيل المخزون'!#REF!,Y16,'تسجيل المخزون'!#REF!,\"تالف\")","v":{"$error":"#REF!"}},"2023-01-13","2023-02-13","2023-03-13","2023-04-13","2023-05-13","2023-06-13","2023-07-13","2023-08-13","2023-09-13","2023-10-13","2023-11-13","2023-12-13"]
[14,{"$f":"SUMIFS('تسجيل المخزون'!$F$2:$F$93,'تسجيل المخزون'!$D$2:$D$93,$G$1,'تسجيل المخزون'!#REF!,N17,'تسجيل المخزون'!#REF!,\"وارد\")-SUMIFS('تسجيل المخزون'!$F$2:$F$93,'تسجيل المخزون'!$D$2:$D$93,$G$1,'تسجيل المخزون'!#REF!,N17,'تسجيل المخزون'!#REF!,\"بيع\")-SUMIFS('تسجيل المخزون'!$F$2:$F$93,'تسجيل المخزون'!$D$2:$D$93,$G$1,'تسجيل المخزون'!#REF!,N17,'تسجيل المخزون'!#REF!,\"تالف\")","v":{"$error":"#REF!"}},{"$f":"SUMIFS('تسجيل المخزون'!$F$2:$F$93,'تسجيل المخزون'!$D$2:$D$93,$G$1,'تسجيل المخزون'!#REF!,O17,'تسجيل المخزون'!#REF!,\"وارد\")-SUMIFS('تسجيل المخزون'!$F$2:$F$93,'تسجيل المخزون'!$D$2:$D$93,$G$1,'تسجيل المخزون'!#REF!,O17,'تسجيل المخزون'!#REF!,\"بيع\")-SUMIFS('تسجيل المخزون'!$F$2:$F$93,'تسجيل المخزون'!$D$2:$D$93,$G$1,'تسجيل المخزون'!#REF!,O17,'تسجيل المخزون'!#REF!,\"تالف\")","v":{"$error":"#REF!"}},{"$f":"SUMIFS('تسجيل المخزون'!$F$2:$F$93,'تسجيل المخزون'!$D$2:$D$93,$G$1,'تسجيل المخزون'!#REF!,P17,'تسجيل المخزون'!#REF!,\"وارد\")-SUMIFS('تسجيل المخزون'!$F$2:$F$93,'تسجيل المخزون'!$D$2:$D$93,$G$1,'تسجيل المخزون'!#REF!,P17,'تسجيل المخزون'!#REF!,\"بيع\")-SUMIFS('تسجيل المخزون'!$F$2:$F$93,'تسجيل المخزون'!$D$2:$D$93,$G$1,'تسجيل المخزون'!#REF!,P17,'تسجيل المخزون'!#REF!,\"تالف\")","v":{"$error":"#REF!"}},{"$f":"SUMIFS('تسجيل المخزون'!$F$2:$F$93,'تسجيل المخزون'!$D$2:$D$93,$G$1,'تسجيل المخزون'!#REF!,Q17,'تسجيل المخزون'!#REF!,\"وارد\")-SUMIFS('تسجيل المخزون'!$F$2:$F$93,'تسجيل المخزون'!$D$2:$D$93,$G$1,'تسجيل المخزون'!#REF!,Q17,'تسجيل المخزون'!#REF!,\"بيع\")-SUMIFS('تسجيل المخزون'!$F$2:$F$93,'تسجيل المخزون'!$D$2:$D$93,$G$1,'تسجيل المخزون'!#REF!,Q17,'تسجيل المخزون'!#REF!,\"تالف\")","v":{"$error":"#REF!"}},{"$f":"SUMIFS('تسجيل المخزون'!$F$2:$F$93,'تسجيل المخزون'!$D$2:$D$93,$G$1,'تسجيل المخزون'!#REF!,R17,'تسجيل المخزون'!#REF!,\"وارد\")-SUMIFS('تسجيل المخزون'!$F$2:$F$93,'تسجيل المخزون'!$D$2:$D$93,$G$1,'تسجيل المخزون'!#REF!,R17,'تسجيل المخزون'!#REF!,\"بيع\")-SUMIFS('تسجيل المخزون'!$F$2:$F$93,'تسجيل المخزون'!$D$2:$D$93,$G$1,'تسجيل المخزون'!#REF!,R17,'تسجيل المخزون'!#REF!,\"تالف\")","v":{"$error":"#REF!"}},{"$f":"SUMIFS('تسجيل المخزون'!$F$2:$F$93,'تسجيل المخزون'!$D$2:$D$93,$G$1,'تسجيل المخزون'!#REF!,S17,'تسجيل المخزون'!#REF!,\"وارد\")-SUMIFS('تسجيل المخزون'!$F$2:$F$93,'تسجيل المخزون'!$D$2:$D$93,$G$1,'تسجيل المخزون'!#REF!,S17,'تسجيل المخزون'!#REF!,\"بيع\")-SUMIFS('تسجيل المخزون'!$F$2:$F$93,'تسجيل المخزون'!$D$2:$D$93,$G$1,'تسجيل المخزون'!#REF!,S17,'تسجيل المخزون'!#REF!,\"تالف\")","v":{"$error":"#REF!"}},{"$f":"SUMIFS('تسجيل المخزون'!$F$2:$F$93,'تسجيل المخزون'!$D$2:$D$93,$G$1,'تسجيل المخزون'!#REF!,T17,'تسجيل المخزون'!#REF!,\"وارد\")-SUMIFS('تسجيل المخزون'!$F$2:$F$93,'تسجيل المخزون'!$D$2:$D$93,$G$1,'تسجيل المخزون'!#REF!,T17,'تسجيل المخزون'!#REF!,\"بيع\")-SUMIFS('تسجيل المخزون'!$F$2:$F$93,'تسجيل المخزون'!$D$2:$D$93,$G$1,'تسجيل المخزون'!#REF!,T17,'تسجيل المخزون'!#REF!,\"تالف\")","v":{"$error":"#REF!"}},{"$f":"SUMIFS('تسجيل المخزون'!$F$2:$F$93,'تسجيل المخزون'!$D$2:$D$93,$G$1,'تسجيل المخزون'!#REF!,U17,'تسجيل المخزون'!#REF!,\"وارد\")-SUMIFS('تسجيل المخزون'!$F$2:$F$93,'تسجيل المخزون'!$D$2:$D$93,$G$1,'تسجيل المخزون'!#REF!,U17,'تسجيل المخزون'!#REF!,\"بيع\")-SUMIFS('تسجيل المخزون'!$F$2:$F$93,'تسجيل المخزون'!$D$2:$D$93,$G$1,'تسجيل المخزون'!#REF!,U17,'تسجيل المخزون'!#REF!,\"تالف\")","v":{"$error":"#REF!"}},{"$f":"SUMIFS('تسجيل المخزون'!$F$2:$F$93,'تسجيل المخزون'!$D$2:$D$93,$G$1,'تسجيل المخزون'!#REF!,V17,'تسجيل المخزون'!#REF!,\"وارد\")-SUMIFS('تسجيل المخزون'!$F$2:$F$93,'تسجيل المخزون'!$D$2:$D$93,$G$1,'تسجيل المخزون'!#REF!,V17,'تسجيل المخزون'!#REF!,\"بيع\")-SUMIFS('تسجيل المخزون'!$F$2:$F$93,'تسجيل المخزون'!$D$2:$D$93,$G$1,'تسجيل المخزون'!#REF!,V17,'تسجيل المخزون'!#REF!,\"تالف\")","v":{"$error":"#REF!"}},{"$f":"SUMIFS('تسجيل المخزون'!$F$2:$F$93,'تسجيل المخزون'!$D$2:$D$93,$G$1,'تسجيل المخزون'!#REF!,W17,'تسجيل المخزون'!#REF!,\"وارد\")-SUMIFS('تسجيل المخزون'!$F$2:$F$93,'تسجيل المخزون'!$D$2:$D$93,$G$1,'تسجيل المخزون'!#REF!,W17,'تسجيل المخزون'!#REF!,\"بيع\")-SUMIFS('تسجيل المخزون'!$F$2:$F$93,'تسجيل المخزون'!$D$2:$D$93,$G$1,'تسجيل المخزون'!#REF!,W17,'تسجيل المخزون'!#REF!,\"تالف\")","v":{"$error":"#REF!"}},{"$f":"SUMIFS('تسجيل المخزون'!$F$2:$F$93,'تسجيل المخزون'!$D$2:$D$93,$G$1,'تسجيل المخزون'!#REF!,X17,'تسجيل المخزون'!#REF!,\"وارد\")-SUMIFS('تسجيل المخزون'!$F$2:$F$93,'تسجيل المخزون'!$D$2:$D$93,$G$1,'تسجيل المخزون'!#REF!,X17,'تسجيل المخزون'!#REF!,\"بيع\")-SUMIFS('تسجيل المخزون'!$F$2:$F$93,'تسجيل المخزون'!$D$2:$D$93,$G$1,'تسجيل المخزون'!#REF!,X17,'تسجيل المخزون'!#REF!,\"تالف\")","v":{"$error":"#REF!"}},{"$f":"SUMIFS('تسجيل المخزون'!$F$2:$F$93,'تسجيل المخزون'!$D$2:$D$93,$G$1,'تسجيل المخزون'!#REF!,Y17,'تسجيل المخزون'!#REF!,\"وارد\")-SUMIFS('تسجيل المخزون'!$F$2:$F$93,'تسجيل المخزون'!$D$2:$D$93,$G$1,'تسجيل المخزون'!#REF!,Y17,'تسجيل المخزون'!#REF!,\"بيع\")-SUMIFS('تسجيل المخزون'!$F$2:$F$93,'تسجيل المخزون'!$D$2:$D$93,$G$1,'تسجيل المخزون'!#REF!,Y17,'تسجيل المخزون'!#REF!,\"تالف\")","v":{"$error":"#REF!"}},"2023-01-14","2023-02-14","2023-03-14","2023-04-14","2023-05-14","2023-06-14","2023-07-14","2023-08-14","2023-09-14","2023-10-14","2023-11-14","2023-12-14"]
[15,{"$f":"SUMIFS('تسجيل المخزون'!$F$2:$F$93,'تسجيل المخزون'!$D$2:$D$93,$G$1,'تسجيل المخزون'!#REF!,N18,'تسجيل المخزون'!#REF!,\"وارد\")-SUMIFS('تسجيل المخزون'!$F$2:$F$93,'تسجيل المخزون'!$D$2:$D$93,$G$1,'تسجيل المخزون'!#REF!,N18,'تسجيل المخزون'!#REF!,\"بيع\")-SUMIFS('تسجيل المخزون'!$F$2:$F$93,'تسجيل المخزون'!$D$2:$D$93,$G$1,'تسجيل المخزون'!#REF!,N18,'تسجيل المخزون'!#REF!,\"تالف\")","v":{"$error":"#REF!"}},{"$f":"SUMIFS('تسجيل المخزون'!$F$2:$F$93,'تسجيل المخزون'!$D$2:$D$93,$G$1,'تسجيل المخزون'!#REF!,O18,'تسجيل المخزون'!#REF!,\"وارد\")-SUMIFS('تسجيل المخزون'!$F$2:$F$93,'تسجيل المخزون'!$D$2:$D$93,$G$1,'تسجيل المخزون'!#REF!,O18,'تسجيل المخزون'!#REF!,\"بيع\")-SUMIFS('تسجيل المخزون'!$F$2:$F$93,'تسجيل المخزون'!$D$2:$D$93,$G$1,'تسجيل المخزون'!#REF!,O18,'تسجيل المخزون'!#REF!,\"تالف\")","v":{"$error":"#REF!"}},{"$f":"SUMIFS('تسجيل المخزون'!$F$2:$F$93,'تسجيل المخزون'!$D$2:$D$93,$G$1,'تسجيل المخزون'!#REF!,P18,'تسجيل المخزون'!#REF!,\"وارد\")-SUMIFS('تسجيل المخزون'!$F$2:$F$93,'تسجيل المخزون'!$D$2:$D$93,$G$1,'تسجيل المخزون'!#REF!,P18,'تسجيل المخزون'!#REF!,\"بيع\")-SUMIFS('تسجيل المخزون'!$F$2:$F$93,'تسجيل المخزون'!$D$2:$D$93,$G$1,'تسجيل المخزون'!#REF!,P18,'تسجيل المخزون'!#REF!,\"تالف\")","v":{"$error":"#REF!"}},{"$f":"SUMIFS('تسجيل المخزون'!$F$2:$F$93,'تسجيل المخزون'!$D$2:$D$93,$G$1,'تسجيل المخزون'!#REF!,Q18,'تسجيل المخزون'!#REF!,\"وارد\")-SUMIFS('تسجيل المخزون'!$F$2:$F$93,'تسجيل المخزون'!$D$2:$D$93,$G$1,'تسجيل المخزون'!#REF!,Q18,'تسجيل المخزون'!#REF!,\"بيع\")-SUMIFS('تسجيل المخزون'!$F$2:$F$93,'تسجيل المخزون'!$D$2:$D$93,$G$1,'تسجيل المخزون'!#REF!,Q18,'تسجيل المخزون'!#REF!,\"تالف\")","v":{"$error":"#REF!"}},{"$f":"SUMIFS('تسجيل المخزون'!$F$2:$F$93,'تسجيل المخزون'!$D$2:$D$93,$G$1,'تسجيل المخزون'!#REF!,R18,'تسجيل المخزون'!#REF!,\"وارد\")-SUMIFS('تسجيل المخزون'!$F$2:$F$93,'تسجيل المخزون'!$D$2:$D$93,$G$1,'تسجيل المخزون'!#REF!,R18,'تسجيل المخزون'!#REF!,\"بيع\")-SUMIFS('تسجيل المخزون'!$F$2:$F$93,'تسجيل المخزون'!$D$2:$D$93,$G$1,'تسجيل المخزون'!#REF!,R18,'تسجيل المخزون'!#REF!,\"تالف\")","v":{"$error":"#REF!"}},{"$f":"SUMIFS('تسجيل المخزون'!$F$2:$F$93,'تسجيل المخزون'!$D$2:$D$93,$G$1,'تسجيل المخزون'!#REF!,S18,'تسجيل المخزون'!#REF!,\"وارد\")-SUMIFS('تسجيل المخزون'!$F$2:$F$93,'تسجيل المخزون'!$D$2:$D$93,$G$1,'تسجيل المخزون'!#REF!,S18,'تسجيل المخزون'!#REF!,\"بيع\")-SUMIFS('تسجيل المخزون'!$F$2:$F$93,'تسجيل المخزون'!$D$2:$D$93,$G$1,'تسجيل المخزون'!#REF!,S18,'تسجيل المخزون'!#REF!,\"تالف\")","v":{"$error":"#REF!"}},{"$f":"SUMIFS('تسجيل المخزون'!$F$2:$F$93,'تسجيل المخزون'!$D$2:$D$93,$G$1,'تسجيل المخزون'!#REF!,T18,'تسجيل المخزون'!#REF!,\"وارد\")-SUMIFS('تسجيل المخزون'!$F$2:$F$93,'تسجيل المخزون'!$D$2:$D$93,$G$1,'تسجيل المخزون'!#REF!,T18,'تسجيل المخزون'!#REF!,\"بيع\")-SUMIFS('تسجيل المخزون'!$F$2:$F$93,'تسجيل المخزون'!$D$2:$D$93,$G$1,'تسجيل المخزون'!#REF!,T18,'تسجيل المخزون'!#REF!,\"تالف\")","v":{"$error":"#REF!"}},{"$f":"SUMIFS('تسجيل المخزون'!$F$2:$F$93,'تسجيل المخزون'!$D$2:$D$93,$G$1,'تسجيل المخزون'!#REF!,U18,'تسجيل المخزون'!#REF!,\"وارد\")-SUMIFS('تسجيل المخزون'!$F$2:$F$93,'تسجيل المخزون'!$D$2:$D$93,$G$1,'تسجيل المخزون'!#REF!,U18,'تسجيل المخزون'!#REF!,\"بيع\")-SUMIFS('تسجيل المخزون'!$F$2:$F$93,'تسجيل المخزون'!$D$2:$D$93,$G$1,'تسجيل المخزون'!#REF!,U18,'تسجيل المخزون'!#REF!,\"تالف\")","v":{"$error":"#REF!"}},{"$f":"SUMIFS('تسجيل المخزون'!$F$2:$F$93,'تسجيل المخزون'!$D$2:$D$93,$G$1,'تسجيل المخزون'!#REF!,V18,'تسجيل المخزون'!#REF!,\"وارد\")-SUMIFS('تسجيل المخزون'!$F$2:$F$93,'تسجيل المخزون'!$D$2:$D$93,$G$1,'تسجيل المخزون'!#REF!,V18,'تسجيل المخزون'!#REF!,\"بيع\")-SUMIFS('تسجيل المخزون'!$F$2:$F$93,'تسجيل المخزون'!$D$2:$D$93,$G$1,'تسجيل المخزون'!#REF!,V18,'تسجيل المخزون'!#REF!,\"تالف\")","v":{"$error":"#REF!"}},{"$f":"SUMIFS('تسجيل المخزون'!$F$2:$F$93,'تسجيل المخزون'!$D$2:$D$93,$G$1,'تسجيل المخزون'!#REF!,W18,'تسجيل المخزون'!#REF!,\"وارد\")-SUMIFS('تسجيل المخزون'!$F$2:$F$93,'تسجيل المخزون'!$D$2:$D$93,$G$1,'تسجيل المخزون'!#REF!,W18,'تسجيل المخزون'!#REF!,\"بيع\")-SUMIFS('تسجيل المخزون'!$F$2:$F$93,'تسجيل المخزون'!$D$2:$D$93,$G$1,'تسجيل المخزون'!#REF!,W18,'تسجيل المخزون'!#REF!,\"تالف\")","v":{"$error":"#REF!"}},{"$f":"SUMIFS('تسجيل المخزون'!$F$2:$F$93,'تسجيل المخزون'!$D$2:$D$93,$G$1,'تسجيل المخزون'!#REF!,X18,'تسجيل المخزون'!#REF!,\"وارد\")-SUMIFS('تسجيل المخزون'!$F$2:$F$93,'تسجيل المخزون'!$D$2:$D$93,$G$1,'تسجيل المخزون'!#REF!,X18,'تسجيل المخزون'!#REF!,\"بيع\")-SUMIFS('تسجيل المخزون'!$F$2:$F$93,'تسجيل المخزون'!$D$2:$D$93,$G$1,'تسجيل المخزون'!#REF!,X18,'تسجيل المخزون'!#REF!,\"تالف\")","v":{"$error":"#REF!"}},{"$f":"SUMIFS('تسجيل المخزون'!$F$2:$F$93,'تسجيل المخزون'!$D$2:$D$93,$G$1,'تسجيل المخزون'!#REF!,Y18,'تسجيل المخزون'!#REF!,\"وارد\")-SUMIFS('تسجيل المخزون'!$F$2:$F$93,'تسجيل المخزون'!$D$2:$D$93,$G$1,'تسجيل المخزون'!#REF!,Y18,'تسجيل المخزون'!#REF!,\"بيع\")-SUMIFS('تسجيل المخزون'!$F$2:$F$93,'تسجيل المخزون'!$D$2:$D$93,$G$1,'تسجيل المخزون'!#REF!,Y18,'تسجيل المخزون'!#REF!,\"تالف\")","v":{"$error":"#REF!"}},"2023-01-15","2023-02-15","2023-03-15","2023-04-15","2023-05-15","2023-06-15","2023-07-15","2023-08-15","2023-09-15","2023-10-15","2023-11-15","2023-12-15"]
[16,{"$f":"SUMIFS('تسجيل المخزون'!$F$2:$F$93,'تسجيل المخزون'!$D$2:$D$93,$G$1,'تسجيل المخزون'!#REF!,N19,'تسجيل المخزون'!#REF!,\"وارد\")-SUMIFS('تسجيل المخزون'!$F$2:$F$93,'تسجيل المخزون'!$D$2:$D$93,$G$1,'تسجيل المخزون'!#REF!,N19,'تسجيل المخزون'!#REF!,\"بيع\")-SUMIFS('تسجيل المخزون'!$F$2:$F$93,'تسجيل المخزون'!$D$2:$D$93,$G$1,'تسجيل المخزون'!#REF!,N19,'تسجيل المخزون'!#REF!,\"تالف\")","v":{"$error":"#REF!"}},{"$f":"SUMIFS('تسجيل المخزون'!$F$2:$F$93,'تسجيل المخزون'!$D$2:$D$93,$G$1,'تسجيل المخزون'!#REF!,O19,'تسجيل المخزون'!#REF!,\"وارد\")-SUMIFS('تسجيل المخزون'!$F$2:$F$93,'تسجيل المخزون'!$D$2:$D$93,$G$1,'تسجيل المخزون'!#REF!,O19,'تسجيل المخزون'!#REF!,\"بيع\")-SUMIFS('تسجيل المخزون'!$F$2:$F$93,'تسجيل المخزون'!$D$2:$D$93,$G$1,'تسجيل المخزون'!#REF!,O19,'تسجيل المخزون'!#REF!,\"تالف\")","v":{"$error":"#REF!"}},{"$f":"SUMIFS('تسجيل المخزون'!$F$2:$F$93,'تسجيل المخزون'!$D$2:$D$93,$G$1,'تسجيل المخزون'!#REF!,P19,'تسجيل المخزون'!#REF!,\"وارد\")-SUMIFS('تسجيل المخزون'!$F$2:$F$93,'تسجيل المخزون'!$D$2:$D$93,$G$1,'تسجيل المخزون'!#REF!,P19,'تسجيل المخزون'!#REF!,\"بيع\")-SUMIFS('تسجيل المخزون'!$F$2:$F$93,'تسجيل المخزون'!$D$2:$D$93,$G$1,'تسجيل المخزون'!#REF!,P19,'تسجيل المخزون'!#REF!,\"تالف\")","v":{"$error":"#REF!"}},{"$f":"SUMIFS('تسجيل المخزون'!$F$2:$F$93,'تسجيل المخزون'!$D$2:$D$93,$G$1,'تسجيل المخزون'!#REF!,Q19,'تسجيل المخزون'!#REF!,\"وارد\")-SUMIFS('تسجيل المخزون'!$F$2:$F$93,'تسجيل المخزون'!$D$2:$D$93,$G$1,'تسجيل المخزون'!#REF!,Q19,'تسجيل المخزون'!#REF!,\"بيع\")-SUMIFS('تسجيل المخزون'!$F$2:$F$93,'تسجيل المخزون'!$D$2:$D$93,$G$1,'تسجيل المخزون'!#REF!,Q19,'تسجيل المخزون'!#REF!,\"تالف\")","v":{"$error":"#REF!"}},{"$f":"SUMIFS('تسجيل المخزون'!$F$2:$F$93,'تسجيل المخزون'!$D$2:$D$93,$G$1,'تسجيل المخزون'!#REF!,R19,'تسجيل المخزون'!#REF!,\"وارد\")-SUMIFS('تسجيل المخزون'!$F$2:$F$93,'تسجيل المخزون'!$D$2:$D$93,$G$1,'تسجيل المخزون'!#REF!,R19,'تسجيل المخزون'!#REF!,\"بيع\")-SUMIFS('تسجيل المخزون'!$F$2:$F$93,'تسجيل المخزون'!$D$2:$D$93,$G$1,'تسجيل المخزون'!#REF!,R19,'تسجيل المخزون'!#REF!,\"تالف\")","v":{"$error":"#REF!"}},{"$f":"SUMIFS('تسجيل المخزون'!$F$2:$F$93,'تسجيل المخزون'!$D$2:$D$93,$G$1,'تسجيل المخزون'!#REF!,S19,'تسجيل المخزون'!#REF!,\"وارد\")-SUMIFS('تسجيل المخزون'!$F$2:$F$93,'تسجيل المخزون'!$D$2:$D$93,$G$1,'تسجيل المخزون'!#REF!,S19,'تسجيل المخزون'!#REF!,\"بيع\")-SUMIFS('تسجيل المخزون'!$F$2:$F$93,'تسجيل المخزون'!$D$2:$D$93,$G$1,'تسجيل المخزون'!#REF!,S19,'تسجيل المخزون'!#REF!,\"تالف\")","v":{"$error":"#REF!"}},{"$f":"SUMIFS('تسجيل المخزون'!$F$2:$F$93,'تسجيل المخزون'!$D$2:$D$93,$G$1,'تسجيل المخزون'!#REF!,T19,'تسجيل المخزون'!#REF!,\"وارد\")-SUMIFS('تسجيل المخزون'!$F$2:$F$93,'تسجيل المخزون'!$D$2:$D$93,$G$1,'تسجيل المخزون'!#REF!,T19,'تسجيل المخزون'!#REF!,\"بيع\")-SUMIFS('تسجيل المخزون'!$F$2:$F$93,'تسجيل المخزون'!$D$2:$D$93,$G$1,'تسجيل المخزون'!#REF!,T19,'تسجيل المخزون'!#REF!,\"تالف\")","v":{"$error":"#REF!"}},{"$f":"SUMIFS('تسجيل المخزون'!$F$2:$F$93,'تسجيل المخزون'!$D$2:$D$93,$G$1,'تسجيل المخزون'!#REF!,U19,'تسجيل المخزون'!#REF!,\"وارد\")-SUMIFS('تسجيل المخزون'!$F$2:$F$93,'تسجيل المخزون'!$D$2:$D$93,$G$1,'تسجيل المخزون'!#REF!,U19,'تسجيل المخزون'!#REF!,\"بيع\")-SUMIFS('تسجيل المخزون'!$F$2:$F$93,'تسجيل المخزون'!$D$2:$D$93,$G$1,'تسجيل المخزون'!#REF!,U19,'تسجيل المخزون'!#REF!,\"تالف\")","v":{"$error":"#REF!"}},{"$f":"SUMIFS('تسجيل المخزون'!$F$2:$F$93,'تسجيل المخزون'!$D$2:$D$93,$G$1,'تسجيل المخزون'!#REF!,V19,'تسجيل المخزون'!#REF!,\"وارد\")-SUMIFS('تسجيل المخزون'!$F$2:$F$93,'تسجيل المخزون'!$D$2:$D$93,$G$1,'تسجيل المخزون'!#REF!,V19,'تسجيل المخزون'!#REF!,\"بيع\")-SUMIFS('تسجيل المخزون'!$F$2:$F$93,'تسجيل المخزون'!$D$2:$D$93,$G$1,'تسجيل المخزون'!#REF!,V19,'تسجيل المخزون'!#REF!,\"تالف\")","v":{"$error":"#REF!"}},{"$f":"SUMIFS('تسجيل المخزون'!$F$2:$F$93,'تسجيل المخزون'!$D$2:$D$93,$G$1,'تسجيل المخزون'!#REF!,W19,'تسجيل المخزون'!#REF!,\"وارد\")-SUMIFS('تسجيل المخزون'!$F$2:$F$93,'تسجيل المخزون'!$D$2:$D$93,$G$1,'تسجيل المخزون'!#REF!,W19,'تسجيل المخزون'!#REF!,\"بيع\")-SUMIFS('تسجيل المخزون'!$F$2:$F$93,'تسجيل المخزون'!$D$2:$D$93,$G$1,'تسجيل المخزون'!#REF!,W19,'تسجيل المخزون'!#REF!,\"تالف\")","v":{"$error":"#REF!"}},{"$f":"SUMIFS('تسجيل المخزون'!$F$2:$F$93,'تسجيل المخزون'!$D$2:$D$93,$G$1,'تسجيل المخزون'!#REF!,X19,'تسجيل المخزون'!#REF!,\"وارد\")-SUMIFS('تسجيل المخزون'!$F$2:$F$93,'تسجيل المخزون'!$D$2:$D$93,$G$1,'تسجيل المخزون'!#REF!,X19,'تسجيل المخزون'!#REF!,\"بيع\")-SUMIFS('تسجيل المخزون'!$F$2:$F$93,'تسجيل المخزون'!$D$2:$D$93,$G$1,'تسجيل المخزون'!#REF!,X19,'تسجيل المخزون'!#REF!,\"تالف\")","v":{"$error":"#REF!"}},{"$f":"SUMIFS('تسجيل المخزون'!$F$2:$F$93,'تسجيل المخزون'!$D$2:$D$93,$G$1,'تسجيل المخزون'!#REF!,Y19,'تسجيل المخزون'!#REF!,\"وارد\")-SUMIFS('تسجيل المخزون'!$F$2:$F$93,'تسجيل المخزون'!$D$2:$D$93,$G$1,'تسجيل المخزون'!#REF!,Y19,'تسجيل المخزون'!#REF!,\"بيع\")-SUMIFS('تسجيل المخزون'!$F$2:$F$93,'تسجيل المخزون'!$D$2:$D$93,$G$1,'تسجيل المخزون'!#REF!,Y19,'تسجيل المخزون'!#REF!,\"تالف\")","v":{"$error":"#REF!"}},"2023-01-16","2023-02-16","2023-03-16","2023-04-16","2023-05-16","2023-06-16","2023-07-16","2023-08-16","2023-09-16","2023-10-16","2023-11-16","2023-12-16"]
[17,{"$f":"SUMIFS('تسجيل المخزون'!$F$2:$F$93,'تسجيل المخزون'!$D$2:$D$93,$G$1,'تسجيل المخزون'!#REF!,N20,'تسجيل المخزون'!#REF!,\"وارد\")-SUMIFS('تسجيل المخزون'!$F$2:$F$93,'تسجيل المخزون'!$D$2:$D$93,$G$1,'تسجيل المخزون'!#REF!,N20,'تسجيل المخزون'!#REF!,\"بيع\")-SUMIFS('تسجيل المخزون'!$F$2:$F$93,'تسجيل المخزون'!$D$2:$D$93,$G$1,'تسجيل المخزون'!#REF!,N20,'تسجيل المخزون'!#REF!,\"تالف\")","v":{"$error":"#REF!"}},{"$f":"SUMIFS('تسجيل المخزون'!$F$2:$F$93,'تسجيل المخزون'!$D$2:$D$93,$G$1,'تسجيل المخزون'!#REF!,O20,'تسجيل المخزون'!#REF!,\"وارد\")-SUMIFS('تسجيل المخزون'!$F$2:$F$93,'تسجيل المخزون'!$D$2:$D$93,$G$1,'تسجيل المخزون'!#REF!,O20,'تسجيل المخزون'!#REF!,\"بيع\")-SUMIFS('تسجيل المخزون'!$F$2:$F$93,'تسجيل المخزون'!$D$2:$D$93,$G$1,'تسجيل المخزون'!#REF!,O20,'تسجيل المخزون'!#REF!,\"تالف\")","v":{"$error":"#REF!"}},{"$f":"SUMIFS('تسجيل المخزون'!$F$2:$F$93,'تسجيل المخزون'!$D$2:$D$93,$G$1,'تسجيل المخزون'!#REF!,P20,'تسجيل المخزون'!#REF!,\"وارد\")-SUMIFS('تسجيل المخزون'!$F$2:$F$93,'تسجيل المخزون'!$D$2:$D$93,$G$1,'تسجيل المخزون'!#REF!,P20,'تسجيل المخزون'!#REF!,\"بيع\")-SUMIFS('تسجيل المخزون'!$F$2:$F$93,'تسجيل المخزون'!$D$2:$D$93,$G$1,'تسجيل المخزون'!#REF!,P20,'تسجيل المخزون'!#REF!,\"تالف\")","v":{"$error":"#REF!"}},{"$f":"SUMIFS('تسجيل المخزون'!$F$2:$F$93,'تسجيل المخزون'!$D$2:$D$93,$G$1,'تسجيل المخزون'!#REF!,Q20,'تسجيل المخزون'!#REF!,\"وارد\")-SUMIFS('تسجيل المخزون'!$F$2:$F$93,'تسجيل المخزون'!$D$2:$D$93,$G$1,'تسجيل المخزون'!#REF!,Q20,'تسجيل المخزون'!#REF!,\"بيع\")-SUMIFS('تسجيل المخزون'!$F$2:$F$93,'تسجيل المخزون'!$D$2:$D$93,$G$1,'تسجيل المخزون'!#REF!,Q20,'تسجيل المخزون'!#REF!,\"تالف\")","v":{"$error":"#REF!"}},{"$f":"SUMIFS('تسجيل المخزون'!$F$2:$F$93,'تسجيل المخزون'!$D$2:$D$93,$G$1,'تسجيل المخزون'!#REF!,R20,'تسجيل المخزون'!#REF!,\"وارد\")-SUMIFS('تسجيل المخزون'!$F$2:$F$93,'تسجيل المخزون'!$D$2:$D$93,$G$1,'تسجيل المخزون'!#REF!,R20,'تسجيل المخزون'!#REF!,\"بيع\")-SUMIFS('تسجيل المخزون'!$F$2:$F$93,'تسجيل المخزون'!$D$2:$D$93,$G$1,'تسجيل المخزون'!#REF!,R20,'تسجيل المخزون'!#REF!,\"تالف\")","v":{"$error":"#REF!"}},{"$f":"SUMIFS('تسجيل المخزون'!$F$2:$F$93,'تسجيل المخزون'!$D$2:$D$93,$G$1,'تسجيل المخزون'!#REF!,S20,'تسجيل المخزون'!#REF!,\"وارد\")-SUMIFS('تسجيل المخزون'!$F$2:$F$93,'تسجيل المخزون'!$D$2:$D$93,$G$1,'تسجيل المخزون'!#REF!,S20,'تسجيل المخزون'!#REF!,\"بيع\")-SUMIFS('تسجيل المخزون'!$F$2:$F$93,'تسجيل المخزون'!$D$2:$D$93,$G$1,'تسجيل المخزون'!#REF!,S20,'تسجيل المخزون'!#REF!,\"تالف\")","v":{"$error":"#REF!"}},{"$f":"SUMIFS('تسجيل المخزون'!$F$2:$F$93,'تسجيل المخزون'!$D$2:$D$93,$G$1,'تسجيل المخزون'!#REF!,T20,'تسجيل المخزون'!#REF!,\"وارد\")-SUMIFS('تسجيل المخزون'!$F$2:$F$93,'تسجيل المخزون'!$D$2:$D$93,$G$1,'تسجيل المخزون'!#REF!,T20,'تسجيل المخزون'!#REF!,\"بيع\")-SUMIFS('تسجيل المخزون'!$F$2:$F$93,'تسجيل المخزون'!$D$2:$D$93,$G$1,'تسجيل المخزون'!#REF!,T20,'تسجيل المخزون'!#REF!,\"تالف\")","v":{"$error":"#REF!"}},{"$f":"SUMIFS('تسجيل المخزون'!$F$2:$F$93,'تسجيل المخزون'!$D$2:$D$93,$G$1,'تسجيل المخزون'!#REF!,U20,'تسجيل المخزون'!#REF!,\"وارد\")-SUMIFS('تسجيل المخزون'!$F$2:$F$93,'تسجيل المخزون'!$D$2:$D$93,$G$1,'تسجيل المخزون'!#REF!,U20,'تسجيل المخزون'!#REF!,\"بيع\")-SUMIFS('تسجيل المخزون'!$F$2:$F$93,'تسجيل المخزون'!$D$2:$D$93,$G$1,'تسجيل المخزون'!#REF!,U20,'تسجيل المخزون'!#REF!,\"تالف\")","v":{"$error":"#REF!"}},{"$f":"SUMIFS('تسجيل المخزون'!$F$2:$F$93,'تسجيل المخزون'!$D$2:$D$93,$G$1,'تسجيل المخزون'!#REF!,V20,'تسجيل المخزون'!#REF!,\"وارد\")-SUMIFS('تسجيل المخزون'!$F$2:$F$93,'تسجيل المخزون'!$D$2:$D$93,$G$1,'تسجيل المخزون'!#REF!,V20,'تسجيل المخزون'!#REF!,\"بيع\")-SUMIFS('تسجيل المخزون'!$F$2:$F$93,'تسجيل المخزون'!$D$2:$D$93,$G$1,'تسجيل المخزون'!#REF!,V20,'تسجيل المخزون'!#REF!,\"تالف\")","v":{"$error":"#REF!"}},{"$f":"SUMIFS('تسجيل المخزون'!$F$2:$F$93,'تسجيل المخزون'!$D$2:$D$93,$G$1,'تسجيل المخزون'!#REF!,W20,'تسجيل المخزون'!#REF!,\"وارد\")-SUMIFS('تسجيل المخزون'!$F$2:$F$93,'تسجيل المخزون'!$D$2:$D$93,$G$1,'تسجيل المخزون'!#REF!,W20,'تسجيل المخزون'!#REF!,\"بيع\")-SUMIFS('تسجيل المخزون'!$F$2:$F$93,'تسجيل المخزون'!$D$2:$D$93,$G$1,'تسجيل المخزون'!#REF!,W20,'تسجيل المخزون'!#REF!,\"تالف\")","v":{"$error":"#REF!"}},{"$f":"SUMIFS('تسجيل المخزون'!$F$2:$F$93,'تسجيل المخزون'!$D$2:$D$93,$G$1,'تسجيل المخزون'!#REF!,X20,'تسجيل المخزون'!#REF!,\"وارد\")-SUMIFS('تسجيل المخزون'!$F$2:$F$93,'تسجيل المخزون'!$D$2:$D$93,$G$1,'تسجيل المخزون'!#REF!,X20,'تسجيل المخزون'!#REF!,\"بيع\")-SUMIFS('تسجيل المخزون'!$F$2:$F$93,'تسجيل المخزون'!$D$2:$D$93,$G$1,'تسجيل المخزون'!#REF!,X20,'تسجيل المخزون'!#REF!,\"تالف\")","v":{"$error":"#REF!"}},{"$f":"SUMIFS('تسجيل المخزون'!$F$2:$F$93,'تسجيل المخزون'!$D$2:$D$93,$G$1,'تسجيل المخزون'!#REF!,Y20,'تسجيل المخزون'!#REF!,\"وارد\")-SUMIFS('تسجيل المخزون'!$F$2:$F$93,'تسجيل المخزون'!$D$2:$D$93,$G$1,'تسجيل المخزون'!#REF!,Y20,'تسجيل المخزون'!#REF!,\"بيع\")-SUMIFS('تسجيل المخزون'!$F$2:$F$93,'تسجيل المخزون'!$D$2:$D$93,$G$1,'تسجيل المخزون'!#REF!,Y20,'تسجيل المخزون'!#REF!,\"تالف\")","v":{"$error":"#REF!"}},"2023-01-17","2023-02-17","2023-03-17","2023-04-17","2023-05-17","2023-06-17","2023-07-17","2023-08-17","2023-09-17","2023-10-17","2023-11-17","2023-12-17"]
[18,{"$f":"SUMIFS('تسجيل المخزون'!$F$2:$F$93,'تسجيل المخزون'!$D$2:$D$93,$G$1,'تسجيل المخزون'!#REF!,N21,'تسجيل المخزون'!#REF!,\"وارد\")-SUMIFS('تسجيل المخزون'!$F$2:$F$93,'تسجيل المخزون'!$D$2:$D$93,$G$1,'تسجيل المخزون'!#REF!,N21,'تسجيل المخزون'!#REF!,\"بيع\")-SUMIFS('تسجيل المخزون'!$F$2:$F$93,'تسجيل المخزون'!$D$2:$D$93,$G$1,'تسجيل المخزون'!#REF!,N21,'تسجيل المخزون'!#REF!,\"تالف\")","v":{"$error":"#REF!"}},{"$f":"SUMIFS('تسجيل المخزون'!$F$2:$F$93,'تسجيل المخزون'!$D$2:$D$93,$G$1,'تسجيل المخزون'!#REF!,O21,'تسجيل المخزون'!#REF!,\"وارد\")-SUMIFS('تسجيل المخزون'!$F$2:$F$93,'تسجيل المخزون'!$D$2:$D$93,$G$1,'تسجيل المخزون'!#REF!,O21,'تسجيل المخزون'!#REF!,\"بيع\")-SUMIFS('تسجيل المخزون'!$F$2:$F$93,'تسجيل المخزون'!$D$2:$D$93,$G$1,'تسجيل المخزون'!#REF!,O21,'تسجيل المخزون'!#REF!,\"تالف\")","v":{"$error":"#REF!"}},{"$f":"SUMIFS('تسجيل المخزون'!$F$2:$F$93,'تسجيل المخزون'!$D$2:$D$93,$G$1,'تسجيل المخزون'!#REF!,P21,'تسجيل المخزون'!#REF!,\"وارد\")-SUMIFS('تسجيل المخزون'!$F$2:$F$93,'تسجيل المخزون'!$D$2:$D$93,$G$1,'تسجيل المخزون'!#REF!,P21,'تسجيل المخزون'!#REF!,\"بيع\")-SUMIFS('تسجيل المخزون'!$F$2:$F$93,'تسجيل المخزون'!$D$2:$D$93,$G$1,'تسجيل المخزون'!#REF!,P21,'تسجيل المخزون'!#REF!,\"تالف\")","v":{"$error":"#REF!"}},{"$f":"SUMIFS('تسجيل المخزون'!$F$2:$F$93,'تسجيل المخزون'!$D$2:$D$93,$G$1,'تسجيل المخزون'!#REF!,Q21,'تسجيل المخزون'!#REF!,\"وارد\")-SUMIFS('تسجيل المخزون'!$F$2:$F$93,'تسجيل المخزون'!$D$2:$D$93,$G$1,'تسجيل المخزون'!#REF!,Q21,'تسجيل المخزون'!#REF!,\"بيع\")-SUMIFS('تسجيل المخزون'!$F$2:$F$93,'تسجيل المخزون'!$D$2:$D$93,$G$1,'تسجيل المخزون'!#REF!,Q21,'تسجيل المخزون'!#REF!,\"تالف\")","v":{"$error":"#REF!"}},{"$f":"SUMIFS('تسجيل المخزون'!$F$2:$F$93,'تسجيل المخزون'!$D$2:$D$93,$G$1,'تسجيل المخزون'!#REF!,R21,'تسجيل المخزون'!#REF!,\"وارد\")-SUMIFS('تسجيل المخزون'!$F$2:$F$93,'تسجيل المخزون'!$D$2:$D$93,$G$1,'تسجيل المخزون'!#REF!,R21,'تسجيل المخزون'!#REF!,\"بيع\")-SUMIFS('تسجيل المخزون'!$F$2:$F$93,'تسجيل المخزون'!$D$2:$D$93,$G$1,'تسجيل المخزون'!#REF!,R21,'تسجيل المخزون'!#REF!,\"تالف\")","v":{"$error":"#REF!"}},{"$f":"SUMIFS('تسجيل المخزون'!$F$2:$F$93,'تسجيل المخزون'!$D$2:$D$93,$G$1,'تسجيل المخزون'!#REF!,S21,'تسجيل المخزون'!#REF!,\"وارد\")-SUMIFS('تسجيل المخزون'!$F$2:$F$93,'تسجيل المخزون'!$D$2:$D$93,$G$1,'تسجيل المخزون'!#REF!,S21,'تسجيل المخزون'!#REF!,\"بيع\")-SUMIFS('تسجيل المخزون'!$F$2:$F$93,'تسجيل المخزون'!$D$2:$D$93,$G$1,'تسجيل المخزون'!#REF!,S21,'تسجيل المخزون'!#REF!,\"تالف\")","v":{"$error":"#REF!"}},{"$f":"SUMIFS('تسجيل المخزون'!$F$2:$F$93,'تسجيل المخزون'!$D$2:$D$93,$G$1,'تسجيل المخزون'!#REF!,T21,'تسجيل المخزون'!#REF!,\"وارد\")-SUMIFS('تسجيل المخزون'!$F$2:$F$93,'تسجيل المخزون'!$D$2:$D$93,$G$1,'تسجيل المخزون'!#REF!,T21,'تسجيل المخزون'!#REF!,\"بيع\")-SUMIFS('تسجيل المخزون'!$F$2:$F$93,'تسجيل المخزون'!$D$2:$D$93,$G$1,'تسجيل المخزون'!#REF!,T21,'تسجيل المخزون'!#REF!,\"تالف\")","v":{"$error":"#REF!"}},{"$f":"SUMIFS('تسجيل المخزون'!$F$2:$F$93,'تسجيل المخزون'!$D$2:$D$93,$G$1,'تسجيل المخزون'!#REF!,U21,'تسجيل المخزون'!#REF!,\"وارد\")-SUMIFS('تسجيل المخزون'!$F$2:$F$93,'تسجيل المخزون'!$D$2:$D$93,$G$1,'تسجيل المخزون'!#REF!,U21,'تسجيل المخزون'!#REF!,\"بيع\")-SUMIFS('تسجيل المخزون'!$F$2:$F$93,'تسجيل المخزون'!$D$2:$D$93,$G$1,'تسجيل المخزون'!#REF!,U21,'تسجيل المخزون'!#REF!,\"تالف\")","v":{"$error":"#REF!"}},{"$f":"SUMIFS('تسجيل المخزون'!$F$2:$F$93,'تسجيل المخزون'!$D$2:$D$93,$G$1,'تسجيل المخزون'!#REF!,V21,'تسجيل المخزون'!#REF!,\"وارد\")-SUMIFS('تسجيل المخزون'!$F$2:$F$93,'تسجيل المخزون'!$D$2:$D$93,$G$1,'تسجيل المخزون'!#REF!,V21,'تسجيل المخزون'!#REF!,\"بيع\")-SUMIFS('تسجيل المخزون'!$F$2:$F$93,'تسجيل المخزون'!$D$2:$D$93,$G$1,'تسجيل المخزون'!#REF!,V21,'تسجيل المخزون'!#REF!,\"تالف\")","v":{"$error":"#REF!"}},{"$f":"SUMIFS('تسجيل المخزون'!$F$2:$F$93,'تسجيل المخزون'!$D$2:$D$93,$G$1,'تسجيل المخزون'!#REF!,W21,'تسجيل المخزون'!#REF!,\"وارد\")-SUMIFS('تسجيل المخزون'!$F$2:$F$93,'تسجيل المخزون'!$D$2:$D$93,$G$1,'تسجيل المخزون'!#REF!,W21,'تسجيل المخزون'!#REF!,\"بيع\")-SUMIFS('تسجيل المخزون'!$F$2:$F$93,'تسجيل المخزون'!$D$2:$D$93,$G$1,'تسجيل المخزون'!#REF!,W21,'تسجيل المخزون'!#REF!,\"تالف\")","v":{"$error":"#REF!"}},{"$f":"SUMIFS('تسجيل المخزون'!$F$2:$F$93,'تسجيل المخزون'!$D$2:$D$93,$G$1,'تسجيل المخزون'!#REF!,X21,'تسجيل المخزون'!#REF!,\"وارد\")-SUMIFS('تسجيل المخزون'!$F$2:$F$93,'تسجيل المخزون'!$D$2:$D$93,$G$1,'تسجيل المخزون'!#REF!,X21,'تسجيل المخزون'!#REF!,\"بيع\")-SUMIFS('تسجيل المخزون'!$F$2:$F$93,'تسجيل المخزون'!$D$2:$D$93,$G$1,'تسجيل المخزون'!#REF!,X21,'تسجيل المخزون'!#REF!,\"تالف\")","v":{"$error":"#REF!"}},{"$f":"SUMIFS('تسجيل المخزون'!$F$2:$F$93,'تسجيل المخزون'!$D$2:$D$93,$G$1,'تسجيل المخزون'!#REF!,Y21,'تسجيل المخزون'!#REF!,\"وارد\")-SUMIFS('تسجيل المخزون'!$F$2:$F$93,'تسجيل المخزون'!$D$2:$D$93,$G$1,'تسجيل المخزون'!#REF!,Y21,'تسجيل المخزون'!#REF!,\"بيع\")-SUMIFS('تسجيل المخزون'!$F$2:$F$93,'تسجيل المخزون'!$D$2:$D$93,$G$1,'تسجيل المخزون'!#REF!,Y21,'تسجيل المخزون'!#REF!,\"تالف\")","v":{"$error":"#REF!"}},"2023-01-18","2023-02-18","2023-03-18","2023-04-18","2023-05-18","2023-06-18","2023-07-18","2023-08-18","2023-09-18","2023-10-18","2023-11-18","2023-12-18"]
[19,{"$f":"SUMIFS('تسجيل المخزون'!$F$2:$F$93,'تسجيل المخزون'!$D$2:$D$93,$G$1,'تسجيل المخزون'!#REF!,N22,'تسجيل المخزون'!#REF!,\"وارد\")-SUMIFS('تسجيل المخزون'!$F$2:$F$93,'تسجيل المخزون'!$D$2:$D$93,$G$1,'تسجيل المخزون'!#REF!,N22,'تسجيل المخزون'!#REF!,\"بيع\")-SUMIFS('تسجيل المخزون'!$F$2:$F$93,'تسجيل المخزون'!$D$2:$D$93,$G$1,'تسجيل المخزون'!#REF!,N22,'تسجيل المخزون'!#REF!,\"تالف\")","v":{"$error":"#REF!"}},{"$f":"SUMIFS('تسجيل المخزون'!$F$2:$F$93,'تسجيل المخزون'!$D$2:$D$93,$G$1,'تسجيل المخزون'!#REF!,O22,'تسجيل المخزون'!#REF!,\"وارد\")-SUMIFS('تسجيل المخزون'!$F$2:$F$93,'تسجيل المخزون'!$D$2:$D$93,$G$1,'تسجيل المخزون'!#REF!,O22,'تسجيل المخزون'!#REF!,\"بيع\")-SUMIFS('تسجيل المخزون'!$F$2:$F$93,'تسجيل المخزون'!$D$2:$D$93,$G$1,'تسجيل المخزون'!#REF!,O22,'تسجيل المخزون'!#REF!,\"تالف\")","v":{"$error":"#REF!"}},{"$f":"SUMIFS('تسجيل المخزون'!$F$2:$F$93,'تسجيل المخزون'!$D$2:$D$93,$G$1,'تسجيل المخزون'!#REF!,P22,'تسجيل المخزون'!#REF!,\"وارد\")-SUMIFS('تسجيل المخزون'!$F$2:$F$93,'تسجيل المخزون'!$D$2:$D$93,$G$1,'تسجيل المخزون'!#REF!,P22,'تسجيل المخزون'!#REF!,\"بيع\")-SUMIFS('تسجيل المخزون'!$F$2:$F$93,'تسجيل المخزون'!$D$2:$D$93,$G$1,'تسجيل المخزون'!#REF!,P22,'تسجيل المخزون'!#REF!,\"تالف\")","v":{"$error":"#REF!"}},{"$f":"SUMIFS('تسجيل المخزون'!$F$2:$F$93,'تسجيل المخزون'!$D$2:$D$93,$G$1,'تسجيل المخزون'!#REF!,Q22,'تسجيل المخزون'!#REF!,\"وارد\")-SUMIFS('تسجيل المخزون'!$F$2:$F$93,'تسجيل المخزون'!$D$2:$D$93,$G$1,'تسجيل المخزون'!#REF!,Q22,'تسجيل المخزون'!#REF!,\"بيع\")-SUMIFS('تسجيل المخزون'!$F$2:$F$93,'تسجيل المخزون'!$D$2:$D$93,$G$1,'تسجيل المخزون'!#REF!,Q22,'تسجيل المخزون'!#REF!,\"تالف\")","v":{"$error":"#REF!"}},{"$f":"SUMIFS('تسجيل المخزون'!$F$2:$F$93,'تسجيل المخزون'!$D$2:$D$93,$G$1,'تسجيل المخزون'!#REF!,R22,'تسجيل المخزون'!#REF!,\"وارد\")-SUMIFS('تسجيل المخزون'!$F$2:$F$93,'تسجيل المخزون'!$D$2:$D$93,$G$1,'تسجيل المخزون'!#REF!,R22,'تسجيل المخزون'!#REF!,\"بيع\")-SUMIFS('تسجيل المخزون'!$F$2:$F$93,'تسجيل المخزون'!$D$2:$D$93,$G$1,'تسجيل المخزون'!#REF!,R22,'تسجيل المخزون'!#REF!,\"تالف\")","v":{"$error":"#REF!"}},{"$f":"SUMIFS('تسجيل المخزون'!$F$2:$F$93,'تسجيل المخزون'!$D$2:$D$93,$G$1,'تسجيل المخزون'!#REF!,S22,'تسجيل المخزون'!#REF!,\"وارد\")-SUMIFS('تسجيل المخزون'!$F$2:$F$93,'تسجيل المخزون'!$D$2:$D$93,$G$1,'تسجيل المخزون'!#REF!,S22,'تسجيل المخزون'!#REF!,\"بيع\")-SUMIFS('تسجيل المخزون'!$F$2:$F$93,'تسجيل المخزون'!$D$2:$D$93,$G$1,'تسجيل المخزون'!#REF!,S22,'تسجيل المخزون'!#REF!,\"تالف\")","v":{"$error":"#REF!"}},{"$f":"SUMIFS('تسجيل المخزون'!$F$2:$F$93,'تسجيل المخزون'!$D$2:$D$93,$G$1,'تسجيل المخزون'!#REF!,T22,'تسجيل المخزون'!#REF!,\"وارد\")-SUMIFS('تسجيل المخزون'!$F$2:$F$93,'تسجيل المخزون'!$D$2:$D$93,$G$1,'تسجيل المخزون'!#REF!,T22,'تسجيل المخزون'!#REF!,\"بيع\")-SUMIFS('تسجيل المخزون'!$F$2:$F$93,'تسجيل المخزون'!$D$2:$D$93,$G$1,'تسجيل المخزون'!#REF!,T22,'تسجيل المخزون'!#REF!,\"تالف\")","v":{"$error":"#REF!"}},{"$f":"SUMIFS('تسجيل المخزون'!$F$2:$F$93,'تسجيل المخزون'!$D$2:$D$93,$G$1,'تسجيل المخزون'!#REF!,U22,'تسجيل المخزون'!#REF!,\"وارد\")-SUMIFS('تسجيل المخزون'!$F$2:$F$93,'تسجيل المخزون'!$D$2:$D$93,$G$1,'تسجيل المخزون'!#REF!,U22,'تسجيل المخزون'!#REF!,\"بيع\")-SUMIFS('تسجيل المخزون'!$F$2:$F$93,'تسجيل المخزون'!$D$2:$D$93,$G$1,'تسجيل المخزون'!#REF!,U22,'تسجيل المخزون'!#REF!,\"تالف\")","v":{"$error":"#REF!"}},{"$f":"SUMIFS('تسجيل المخزون'!$F$2:$F$93,'تسجيل المخزون'!$D$2:$D$93,$G$1,'تسجيل المخزون'!#REF!,V22,'تسجيل المخزون'!#REF!,\"وارد\")-SUMIFS('تسجيل المخزون'!$F$2:$F$93,'تسجيل المخزون'!$D$2:$D$93,$G$1,'تسجيل المخزون'!#REF!,V22,'تسجيل المخزون'!#REF!,\"بيع\")-SUMIFS('تسجيل المخزون'!$F$2:$F$93,'تسجيل المخزون'!$D$2:$D$93,$G$1,'تسجيل المخزون'!#REF!,V22,'تسجيل المخزون'!#REF!,\"تالف\")","v":{"$error":"#REF!"}},{"$f":"SUMIFS('تسجيل المخزون'!$F$2:$F$93,'تسجيل المخزون'!$D$2:$D$93,$G$1,'تسجيل المخزون'!#REF!,W22,'تسجيل المخزون'!#REF!,\"وارد\")-SUMIFS('تسجيل المخزون'!$F$2:$F$93,'تسجيل المخزون'!$D$2:$D$93,$G$1,'تسجيل المخزون'!#REF!,W22,'تسجيل المخزون'!#REF!,\"بيع\")-SUMIFS('تسجيل المخزون'!$F$2:$F$93,'تسجيل المخزون'!$D$2:$D$93,$G$1,'تسجيل المخزون'!#REF!,W22,'تسجيل المخزون'!#REF!,\"تالف\")","v":{"$error":"#REF!"}},{"$f":"SUMIFS('تسجيل المخزون'!$F$2:$F$93,'تسجيل المخزون'!$D$2:$D$93,$G$1,'تسجيل المخزون'!#REF!,X22,'تسجيل المخزون'!#REF!,\"وارد\")-SUMIFS('تسجيل المخزون'!$F$2:$F$93,'تسجيل المخزون'!$D$2:$D$93,$G$1,'تسجيل المخزون'!#REF!,X22,'تسجيل المخزون'!#REF!,\"بيع\")-SUMIFS('تسجيل المخزون'!$F$2:$F$93,'تسجيل المخزون'!$D$2:$D$93,$G$1,'تسجيل المخزون'!#REF!,X22,'تسجيل المخزون'!#REF!,\"تالف\")","v":{"$error":"#REF!"}},{"$f":"SUMIFS('تسجيل المخزون'!$F$2:$F$93,'تسجيل المخزون'!$D$2:$D$93,$G$1,'تسجيل المخزون'!#REF!,Y22,'تسجيل المخزون'!#REF!,\"وارد\")-SUMIFS('تسجيل المخزون'!$F$2:$F$93,'تسجيل المخزون'!$D$2:$D$93,$G$1,'تسجيل المخزون'!#REF!,Y22,'تسجيل المخزون'!#REF!,\"بيع\")-SUMIFS('تسجيل المخزون'!$F$2:$F$93,'تسجيل المخزون'!$D$2:$D$93,$G$1,'تسجيل المخزون'!#REF!,Y22,'تسجيل المخزون'!#REF!,\"تالف\")","v":{"$error":"#REF!"}},"2023-01-19","2023-02-19","2023-03-19","2023-04-19","2023-05-19","2023-06-19","2023-07-19","2023-08-19","2023-09-19","2023-10-19","2023-11-19","2023-12-19"]
[20,{"$f":"SUMIFS('تسجيل المخزون'!$F$2:$F$93,'تسجيل المخزون'!$D$2:$D$93,$G$1,'تسجيل المخزون'!#REF!,N23,'تسجيل المخزون'!#REF!,\"وارد\")-SUMIFS('تسجيل المخزون'!$F$2:$F$93,'تسجيل المخزون'!$D$2:$D$93,$G$1,'تسجيل المخزون'!#REF!,N23,'تسجيل المخزون'!#REF!,\"بيع\")-SUMIFS('تسجيل المخزون'!$F$2:$F$93,'تسجيل المخزون'!$D$2:$D$93,$G$1,'تسجيل المخزون'!#REF!,N23,'تسجيل المخزون'!#REF!,\"تالف\")","v":{"$error":"#REF!"}},{"$f":"SUMIFS('تسجيل المخزون'!$F$2:$F$93,'تسجيل المخزون'!$D$2:$D$93,$G$1,'تسجيل المخزون'!#REF!,O23,'تسجيل المخزون'!#REF!,\"وارد\")-SUMIFS('تسجيل المخزون'!$F$2:$F$93,'تسجيل المخزون'!$D$2:$D$93,$G$1,'تسجيل المخزون'!#REF!,O23,'تسجيل المخزون'!#REF!,\"بيع\")-SUMIFS('تسجيل المخزون'!$F$2:$F$93,'تسجيل المخزون'!$D$2:$D$93,$G$1,'تسجيل المخزون'!#REF!,O23,'تسجيل المخزون'!#REF!,\"تالف\")","v":{"$error":"#REF!"}},{"$f":"SUMIFS('تسجيل المخزون'!$F$2:$F$93,'تسجيل المخزون'!$D$2:$D$93,$G$1,'تسجيل المخزون'!#REF!,P23,'تسجيل المخزون'!#REF!,\"وارد\")-SUMIFS('تسجيل المخزون'!$F$2:$F$93,'تسجيل المخزون'!$D$2:$D$93,$G$1,'تسجيل المخزون'!#REF!,P23,'تسجيل المخزون'!#REF!,\"بيع\")-SUMIFS('تسجيل المخزون'!$F$2:$F$93,'تسجيل المخزون'!$D$2:$D$93,$G$1,'تسجيل المخزون'!#REF!,P23,'تسجيل المخزون'!#REF!,\"تالف\")","v":{"$error":"#REF!"}},{"$f":"SUMIFS('تسجيل المخزون'!$F$2:$F$93,'تسجيل المخزون'!$D$2:$D$93,$G$1,'تسجيل المخزون'!#REF!,Q23,'تسجيل المخزون'!#REF!,\"وارد\")-SUMIFS('تسجيل المخزون'!$F$2:$F$93,'تسجيل المخزون'!$D$2:$D$93,$G$1,'تسجيل المخزون'!#REF!,Q23,'تسجيل المخزون'!#REF!,\"بيع\")-SUMIFS('تسجيل المخزون'!$F$2:$F$93,'تسجيل المخزون'!$D$2:$D$93,$G$1,'تسجيل المخزون'!#REF!,Q23,'تسجيل المخزون'!#REF!,\"تالف\")","v":{"$error":"#REF!"}},{"$f":"SUMIFS('تسجيل المخزون'!$F$2:$F$93,'تسجيل المخزون'!$D$2:$D$93,$G$1,'تسجيل المخزون'!#REF!,R23,'تسجيل المخزون'!#REF!,\"وارد\")-SUMIFS('تسجيل المخزون'!$F$2:$F$93,'تسجيل المخزون'!$D$2:$D$93,$G$1,'تسجيل المخزون'!#REF!,R23,'تسجيل المخزون'!#REF!,\"بيع\")-SUMIFS('تسجيل المخزون'!$F$2:$F$93,'تسجيل المخزون'!$D$2:$D$93,$G$1,'تسجيل المخزون'!#REF!,R23,'تسجيل المخزون'!#REF!,\"تالف\")","v":{"$error":"#REF!"}},{"$f":"SUMIFS('تسجيل المخزون'!$F$2:$F$93,'تسجيل المخزون'!$D$2:$D$93,$G$1,'تسجيل المخزون'!#REF!,S23,'تسجيل المخزون'!#REF!,\"وارد\")-SUMIFS('تسجيل المخزون'!$F$2:$F$93,'تسجيل المخزون'!$D$2:$D$93,$G$1,'تسجيل المخزون'!#REF!,S23,'تسجيل المخزون'!#REF!,\"بيع\")-SUMIFS('تسجيل المخزون'!$F$2:$F$93,'تسجيل المخزون'!$D$2:$D$93,$G$1,'تسجيل المخزون'!#REF!,S23,'تسجيل المخزون'!#REF!,\"تالف\")","v":{"$error":"#REF!"}},{"$f":"SUMIFS('تسجيل المخزون'!$F$2:$F$93,'تسجيل المخزون'!$D$2:$D$93,$G$1,'تسجيل المخزون'!#REF!,T23,'تسجيل المخزون'!#REF!,\"وارد\")-SUMIFS('تسجيل المخزون'!$F$2:$F$93,'تسجيل المخزون'!$D$2:$D$93,$G$1,'تسجيل المخزون'!#REF!,T23,'تسجيل المخزون'!#REF!,\"بيع\")-SUMIFS('تسجيل المخزون'!$F$2:$F$93,'تسجيل المخزون'!$D$2:$D$93,$G$1,'تسجيل المخزون'!#REF!,T23,'تسجيل المخزون'!#REF!,\"تالف\")","v":{"$error":"#REF!"}},{"$f":"SUMIFS('تسجيل المخزون'!$F$2:$F$93,'تسجيل المخزون'!$D$2:$D$93,$G$1,'تسجيل المخزون'!#REF!,U23,'تسجيل المخزون'!#REF!,\"وارد\")-SUMIFS('تسجيل المخزون'!$F$2:$F$93,'تسجيل المخزون'!$D$2:$D$93,$G$1,'تسجيل المخزون'!#REF!,U23,'تسجيل المخزون'!#REF!,\"بيع\")-SUMIFS('تسجيل المخزون'!$F$2:$F$93,'تسجيل المخزون'!$D$2:$D$93,$G$1,'تسجيل المخزون'!#REF!,U23,'تسجيل المخزون'!#REF!,\"تالف\")","v":{"$error":"#REF!"}},{"$f":"SUMIFS('تسجيل المخزون'!$F$2:$F$93,'تسجيل المخزون'!$D$2:$D$93,$G$1,'تسجيل المخزون'!#REF!,V23,'تسجيل المخزون'!#REF!,\"وارد\")-SUMIFS('تسجيل المخزون'!$F$2:$F$93,'تسجيل المخزون'!$D$2:$D$93,$G$1,'تسجيل المخزون'!#REF!,V23,'تسجيل المخزون'!#REF!,\"بيع\")-SUMIFS('تسجيل المخزون'!$F$2:$F$93,'تسجيل المخزون'!$D$2:$D$93,$G$1,'تسجيل المخزون'!#REF!,V23,'تسجيل المخزون'!#REF!,\"تالف\")","v":{"$error":"#REF!"}},{"$f":"SUMIFS('تسجيل المخزون'!$F$2:$F$93,'تسجيل المخزون'!$D$2:$D$93,$G$1,'تسجيل المخزون'!#REF!,W23,'تسجيل المخزون'!#REF!,\"وارد\")-SUMIFS('تسجيل المخزون'!$F$2:$F$93,'تسجيل المخزون'!$D$2:$D$93,$G$1,'تسجيل المخزون'!#REF!,W23,'تسجيل المخزون'!#REF!,\"بيع\")-SUMIFS('تسجيل المخزون'!$F$2:$F$93,'تسجيل المخزون'!$D$2:$D$93,$G$1,'تسجيل المخزون'!#REF!,W23,'تسجيل المخزون'!#REF!,\"تالف\")","v":{"$error":"#REF!"}},{"$f":"SUMIFS('تسجيل المخزون'!$F$2:$F$93,'تسجيل المخزون'!$D$2:$D$93,$G$1,'تسجيل المخزون'!#REF!,X23,'تسجيل المخزون'!#REF!,\"وارد\")-SUMIFS('تسجيل المخزون'!$F$2:$F$93,'تسجيل المخزون'!$D$2:$D$93,$G$1,'تسجيل المخزون'!#REF!,X23,'تسجيل المخزون'!#REF!,\"بيع\")-SUMIFS('تسجيل المخزون'!$F$2:$F$93,'تسجيل المخزون'!$D$2:$D$93,$G$1,'تسجيل المخزون'!#REF!,X23,'تسجيل المخزون'!#REF!,\"تالف\")","v":{"$error":"#REF!"}},{"$f":"SUMIFS('تسجيل المخزون'!$F$2:$F$93,'تسجيل المخزون'!$D$2:$D$93,$G$1,'تسجيل المخزون'!#REF!,Y23,'تسجيل المخزون'!#REF!,\"وارد\")-SUMIFS('تسجيل المخزون'!$F$2:$F$93,'تسجيل المخزون'!$D$2:$D$93,$G$1,'تسجيل المخزون'!#REF!,Y23,'تسجيل المخزون'!#REF!,\"بيع\")-SUMIFS('تسجيل المخزون'!$F$2:$F$93,'تسجيل المخزون'!$D$2:$D$93,$G$1,'تسجيل المخزون'!#REF!,Y23,'تسجيل المخزون'!#REF!,\"تالف\")","v":{"$error":"#REF!"}},"2023-01-20","2023-02-20","2023-03-20","2023-04-20","2023-05-20","2023-06-20","2023-07-20","2023-08-20","2023-09-20","2023-10-20","2023-11-20","2023-12-20"]
[21,{"$f":"SUMIFS('تسجيل المخزون'!$F$2:$F$93,'تسجيل المخزون'!$D$2:$D$93,$G$1,'تسجيل المخزون'!#REF!,N24,'تسجيل المخزون'!#REF!,\"وارد\")-SUMIFS('تسجيل المخزون'!$F$2:$F$93,'تسجيل المخزون'!$D$2:$D$93,$G$1,'تسجيل المخزون'!#REF!,N24,'تسجيل المخزون'!#REF!,\"بيع\")-SUMIFS('تسجيل المخزون'!$F$2:$F$93,'تسجيل المخزون'!$D$2:$D$93,$G$1,'تسجيل المخزون'!#REF!,N24,'تسجيل المخزون'!#REF!,\"تالف\")","v":{"$error":"#REF!"}},{"$f":"SUMIFS('تسجيل المخزون'!$F$2:$F$93,'تسجيل المخزون'!$D$2:$D$93,$G$1,'تسجيل المخزون'!#REF!,O24,'تسجيل المخزون'!#REF!,\"وارد\")-SUMIFS('تسجيل المخزون'!$F$2:$F$93,'تسجيل المخزون'!$D$2:$D$93,$G$1,'تسجيل المخزون'!#REF!,O24,'تسجيل المخزون'!#REF!,\"بيع\")-SUMIFS('تسجيل المخزون'!$F$2:$F$93,'تسجيل المخزون'!$D$2:$D$93,$G$1,'تسجيل المخزون'!#REF!,O24,'تسجيل المخزون'!#REF!,\"تالف\")","v":{"$error":"#REF!"}},{"$f":"SUMIFS('تسجيل المخزون'!$F$2:$F$93,'تسجيل المخزون'!$D$2:$D$93,$G$1,'تسجيل المخزون'!#REF!,P24,'تسجيل المخزون'!#REF!,\"وارد\")-SUMIFS('تسجيل المخزون'!$F$2:$F$93,'تسجيل المخزون'!$D$2:$D$93,$G$1,'تسجيل المخزون'!#REF!,P24,'تسجيل المخزون'!#REF!,\"بيع\")-SUMIFS('تسجيل المخزون'!$F$2:$F$93,'تسجيل المخزون'!$D$2:$D$93,$G$1,'تسجيل المخزون'!#REF!,P24,'تسجيل المخزون'!#REF!,\"تالف\")","v":{"$error":"#REF!"}},{"$f":"SUMIFS('تسجيل المخزون'!$F$2:$F$93,'تسجيل المخزون'!$D$2:$D$93,$G$1,'تسجيل المخزون'!#REF!,Q24,'تسجيل المخزون'!#REF!,\"وارد\")-SUMIFS('تسجيل المخزون'!$F$2:$F$93,'تسجيل المخزون'!$D$2:$D$93,$G$1,'تسجيل المخزون'!#REF!,Q24,'تسجيل المخزون'!#REF!,\"بيع\")-SUMIFS('تسجيل المخزون'!$F$2:$F$93,'تسجيل المخزون'!$D$2:$D$93,$G$1,'تسجيل المخزون'!#REF!,Q24,'تسجيل المخزون'!#REF!,\"تالف\")","v":{"$error":"#REF!"}},{"$f":"SUMIFS('تسجيل المخزون'!$F$2:$F$93,'تسجيل المخزون'!$D$2:$D$93,$G$1,'تسجيل المخزون'!#REF!,R24,'تسجيل المخزون'!#REF!,\"وارد\")-SUMIFS('تسجيل المخزون'!$F$2:$F$93,'تسجيل المخزون'!$D$2:$D$93,$G$1,'تسجيل المخزون'!#REF!,R24,'تسجيل المخزون'!#REF!,\"بيع\")-SUMIFS('تسجيل المخزون'!$F$2:$F$93,'تسجيل المخزون'!$D$2:$D$93,$G$1,'تسجيل المخزون'!#REF!,R24,'تسجيل المخزون'!#REF!,\"تالف\")","v":{"$error":"#REF!"}},{"$f":"SUMIFS('تسجيل المخزون'!$F$2:$F$93,'تسجيل المخزون'!$D$2:$D$93,$G$1,'تسجيل المخزون'!#REF!,S24,'تسجيل المخزون'!#REF!,\"وارد\")-SUMIFS('تسجيل المخزون'!$F$2:$F$93,'تسجيل المخزون'!$D$2:$D$93,$G$1,'تسجيل المخزون'!#REF!,S24,'تسجيل المخزون'!#REF!,\"بيع\")-SUMIFS('تسجيل المخزون'!$F$2:$F$93,'تسجيل المخزون'!$D$2:$D$93,$G$1,'تسجيل المخزون'!#REF!,S24,'تسجيل المخزون'!#REF!,\"تالف\")","v":{"$error":"#REF!"}},{"$f":"SUMIFS('تسجيل المخزون'!$F$2:$F$93,'تسجيل المخزون'!$D$2:$D$93,$G$1,'تسجيل المخزون'!#REF!,T24,'تسجيل المخزون'!#REF!,\"وارد\")-SUMIFS('تسجيل المخزون'!$F$2:$F$93,'تسجيل المخزون'!$D$2:$D$93,$G$1,'تسجيل المخزون'!#REF!,T24,'تسجيل المخزون'!#REF!,\"بيع\")-SUMIFS('تسجيل المخزون'!$F$2:$F$93,'تسجيل المخزون'!$D$2:$D$93,$G$1,'تسجيل المخزون'!#REF!,T24,'تسجيل المخزون'!#REF!,\"تالف\")","v":{"$error":"#REF!"}},{"$f":"SUMIFS('تسجيل المخزون'!$F$2:$F$93,'تسجيل المخزون'!$D$2:$D$93,$G$1,'تسجيل المخزون'!#REF!,U24,'تسجيل المخزون'!#REF!,\"وارد\")-SUMIFS('تسجيل المخزون'!$F$2:$F$93,'تسجيل المخزون'!$D$2:$D$93,$G$1,'تسجيل المخزون'!#REF!,U24,'تسجيل المخزون'!#REF!,\"بيع\")-SUMIFS('تسجيل المخزون'!$F$2:$F$93,'تسجيل المخزون'!$D$2:$D$93,$G$1,'تسجيل المخزون'!#REF!,U24,'تسجيل المخزون'!#REF!,\"تالف\")","v":{"$error":"#REF!"}},{"$f":"SUMIFS('تسجيل المخزون'!$F$2:$F$93,'تسجيل المخزون'!$D$2:$D$93,$G$1,'تسجيل المخزون'!#REF!,V24,'تسجيل المخزون'!#REF!,\"وارد\")-SUMIFS('تسجيل المخزون'!$F$2:$F$93,'تسجيل المخزون'!$D$2:$D$93,$G$1,'تسجيل المخزون'!#REF!,V24,'تسجيل المخزون'!#REF!,\"بيع\")-SUMIFS('تسجيل المخزون'!$F$2:$F$93,'تسجيل المخزون'!$D$2:$D$93,$G$1,'تسجيل المخزون'!#REF!,V24,'تسجيل المخزون'!#REF!,\"تالف\")","v":{"$error":"#REF!"}},{"$f":"SUMIFS('تسجيل المخزون'!$F$2:$F$93,'تسجيل المخزون'!$D$2:$D$93,$G$1,'تسجيل المخزون'!#REF!,W24,'تسجيل المخزون'!#REF!,\"وارد\")-SUMIFS('تسجيل المخزون'!$F$2:$F$93,'تسجيل المخزون'!$D$2:$D$93,$G$1,'تسجيل المخزون'!#REF!,W24,'تسجيل المخزون'!#REF!,\"بيع\")-SUMIFS('تسجيل المخزون'!$F$2:$F$93,'تسجيل المخزون'!$D$2:$D$93,$G$1,'تسجيل المخزون'!#REF!,W24,'تسجيل المخزون'!#REF!,\"تالف\")","v":{"$error":"#REF!"}},{"$f":"SUMIFS('تسجيل المخزون'!$F$2:$F$93,'تسجيل المخزون'!$D$2:$D$93,$G$1,'تسجيل المخزون'!#REF!,X24,'تسجيل المخزون'!#REF!,\"وارد\")-SUMIFS('تسجيل المخزون'!$F$2:$F$93,'تسجيل المخزون'!$D$2:$D$93,$G$1,'تسجيل المخزون'!#REF!,X24,'تسجيل المخزون'!#REF!,\"بيع\")-SUMIFS('تسجيل المخزون'!$F$2:$F$93,'تسجيل المخزون'!$D$2:$D$93,$G$1,'تسجيل المخزون'!#REF!,X24,'تسجيل المخزون'!#REF!,\"تالف\")","v":{"$error":"#REF!"}},{"$f":"SUMIFS('تسجيل المخزون'!$F$2:$F$93,'تسجيل المخزون'!$D$2:$D$93,$G$1,'تسجيل المخزون'!#REF!,Y24,'تسجيل المخزون'!#REF!,\"وارد\")-SUMIFS('تسجيل المخزون'!$F$2:$F$93,'تسجيل المخزون'!$D$2:$D$93,$G$1,'تسجيل المخزون'!#REF!,Y24,'تسجيل المخزون'!#REF!,\"بيع\")-SUMIFS('تسجيل المخزون'!$F$2:$F$93,'تسجيل المخزون'!$D$2:$D$93,$G$1,'تسجيل المخزون'!#REF!,Y24,'تسجيل المخزون'!#REF!,\"تالف\")","v":{"$error":"#REF!"}},"2023-01-21","2023-02-21","2023-03-21","2023-04-21","2023-05-21","2023-06-21","2023-07-21","2023-08-21","2023-09-21","2023-10-21","2023-11-21","2023-12-21"]
[22,{"$f":"SUMIFS('تسجيل المخزون'!$F$2:$F$93,'تسجيل المخزون'!$D$2:$D$93,$G$1,'تسجيل المخزون'!#REF!,N25,'تسجيل المخزون'!#REF!,\"وارد\")-SUMIFS('تسجيل المخزون'!$F$2:$F$93,'تسجيل المخزون'!$D$2:$D$93,$G$1,'تسجيل المخزون'!#REF!,N25,'تسجيل المخزون'!#REF!,\"بيع\")-SUMIFS('تسجيل المخزون'!$F$2:$F$93,'تسجيل المخزون'!$D$2:$D$93,$G$1,'تسجيل المخزون'!#REF!,N25,'تسجيل المخزون'!#REF!,\"تالف\")","v":{"$error":"#REF!"}},{"$f":"SUMIFS('تسجيل المخزون'!$F$2:$F$93,'تسجيل المخزون'!$D$2:$D$93,$G$1,'تسجيل المخزون'!#REF!,O25,'تسجيل المخزون'!#REF!,\"وارد\")-SUMIFS('تسجيل المخزون'!$F$2:$F$93,'تسجيل المخزون'!$D$2:$D$93,$G$1,'تسجيل المخزون'!#REF!,O25,'تسجيل المخزون'!#REF!,\"بيع\")-SUMIFS('تسجيل المخزون'!$F$2:$F$93,'تسجيل المخزون'!$D$2:$D$93,$G$1,'تسجيل المخزون'!#REF!,O25,'تسجيل المخزون'!#REF!,\"تالف\")","v":{"$error":"#REF!"}},{"$f":"SUMIFS('تسجيل المخزون'!$F$2:$F$93,'تسجيل المخزون'!$D$2:$D$93,$G$1,'تسجيل المخزون'!#REF!,P25,'تسجيل المخزون'!#REF!,\"وارد\")-SUMIFS('تسجيل المخزون'!$F$2:$F$93,'تسجيل المخزون'!$D$2:$D$93,$G$1,'تسجيل المخزون'!#REF!,P25,'تسجيل المخزون'!#REF!,\"بيع\")-SUMIFS('تسجيل المخزون'!$F$2:$F$93,'تسجيل المخزون'!$D$2:$D$93,$G$1,'تسجيل المخزون'!#REF!,P25,'تسجيل المخزون'!#REF!,\"تالف\")","v":{"$error":"#REF!"}},{"$f":"SUMIFS('تسجيل المخزون'!$F$2:$F$93,'تسجيل المخزون'!$D$2:$D$93,$G$1,'تسجيل المخزون'!#REF!,Q25,'تسجيل المخزون'!#REF!,\"وارد\")-SUMIFS('تسجيل المخزون'!$F$2:$F$93,'تسجيل المخزون'!$D$2:$D$93,$G$1,'تسجيل المخزون'!#REF!,Q25,'تسجيل المخزون'!#REF!,\"بيع\")-SUMIFS('تسجيل المخزون'!$F$2:$F$93,'تسجيل المخزون'!$D$2:$D$93,$G$1,'تسجيل المخزون'!#REF!,Q25,'تسجيل المخزون'!#REF!,\"تالف\")","v":{"$error":"#REF!"}},{"$f":"SUMIFS('تسجيل المخزون'!$F$2:$F$93,'تسجيل المخزون'!$D$2:$D$93,$G$1,'تسجيل المخزون'!#REF!,R25,'تسجيل المخزون'!#REF!,\"وارد\")-SUMIFS('تسجيل المخزون'!$F$2:$F$93,'تسجيل المخزون'!$D$2:$D$93,$G$1,'تسجيل المخزون'!#REF!,R25,'تسجيل المخزون'!#REF!,\"بيع\")-SUMIFS('تسجيل المخزون'!$F$2:$F$93,'تسجيل المخزون'!$D$2:$D$93,$G$1,'تسجيل المخزون'!#REF!,R25,'تسجيل المخزون'!#REF!,\"تالف\")","v":{"$error":"#REF!"}},{"$f":"SUMIFS('تسجيل المخزون'!$F$2:$F$93,'تسجيل المخزون'!$D$2:$D$93,$G$1,'تسجيل المخزون'!#REF!,S25,'تسجيل المخزون'!#REF!,\"وارد\")-SUMIFS('تسجيل المخزون'!$F$2:$F$93,'تسجيل المخزون'!$D$2:$D$93,$G$1,'تسجيل المخزون'!#REF!,S25,'تسجيل المخزون'!#REF!,\"بيع\")-SUMIFS('تسجيل المخزون'!$F$2:$F$93,'تسجيل المخزون'!$D$2:$D$93,$G$1,'تسجيل المخزون'!#REF!,S25,'تسجيل المخزون'!#REF!,\"تالف\")","v":{"$error":"#REF!"}},{"$f":"SUMIFS('تسجيل المخزون'!$F$2:$F$93,'تسجيل المخزون'!$D$2:$D$93,$G$1,'تسجيل المخزون'!#REF!,T25,'تسجيل المخزون'!#REF!,\"وارد\")-SUMIFS('تسجيل المخزون'!$F$2:$F$93,'تسجيل المخزون'!$D$2:$D$93,$G$1,'تسجيل المخزون'!#REF!,T25,'تسجيل المخزون'!#REF!,\"بيع\")-SUMIFS('تسجيل المخزون'!$F$2:$F$93,'تسجيل المخزون'!$D$2:$D$93,$G$1,'تسجيل المخزون'!#REF!,T25,'تسجيل المخزون'!#REF!,\"تالف\")","v":{"$error":"#REF!"}},{"$f":"SUMIFS('تسجيل المخزون'!$F$2:$F$93,'تسجيل المخزون'!$D$2:$D$93,$G$1,'تسجيل المخزون'!#REF!,U25,'تسجيل المخزون'!#REF!,\"وارد\")-SUMIFS('تسجيل المخزون'!$F$2:$F$93,'تسجيل المخزون'!$D$2:$D$93,$G$1,'تسجيل المخزون'!#REF!,U25,'تسجيل المخزون'!#REF!,\"بيع\")-SUMIFS('تسجيل المخزون'!$F$2:$F$93,'تسجيل المخزون'!$D$2:$D$93,$G$1,'تسجيل المخزون'!#REF!,U25,'تسجيل المخزون'!#REF!,\"تالف\")","v":{"$error":"#REF!"}},{"$f":"SUMIFS('تسجيل المخزون'!$F$2:$F$93,'تسجيل المخزون'!$D$2:$D$93,$G$1,'تسجيل المخزون'!#REF!,V25,'تسجيل المخزون'!#REF!,\"وارد\")-SUMIFS('تسجيل المخزون'!$F$2:$F$93,'تسجيل المخزون'!$D$2:$D$93,$G$1,'تسجيل المخزون'!#REF!,V25,'تسجيل المخزون'!#REF!,\"بيع\")-SUMIFS('تسجيل المخزون'!$F$2:$F$93,'تسجيل المخزون'!$D$2:$D$93,$G$1,'تسجيل المخزون'!#REF!,V25,'تسجيل المخزون'!#REF!,\"تالف\")","v":{"$error":"#REF!"}},{"$f":"SUMIFS('تسجيل المخزون'!$F$2:$F$93,'تسجيل المخزون'!$D$2:$D$93,$G$1,'تسجيل المخزون'!#REF!,W25,'تسجيل المخزون'!#REF!,\"وارد\")-SUMIFS('تسجيل المخزون'!$F$2:$F$93,'تسجيل المخزون'!$D$2:$D$93,$G$1,'تسجيل المخزون'!#REF!,W25,'تسجيل المخزون'!#REF!,\"بيع\")-SUMIFS('تسجيل المخزون'!$F$2:$F$93,'تسجيل المخزون'!$D$2:$D$93,$G$1,'تسجيل المخزون'!#REF!,W25,'تسجيل المخزون'!#REF!,\"تالف\")","v":{"$error":"#REF!"}},{"$f":"SUMIFS('تسجيل المخزون'!$F$2:$F$93,'تسجيل المخزون'!$D$2:$D$93,$G$1,'تسجيل المخزون'!#REF!,X25,'تسجيل المخزون'!#REF!,\"وارد\")-SUMIFS('تسجيل المخزون'!$F$2:$F$93,'تسجيل المخزون'!$D$2:$D$93,$G$1,'تسجيل المخزون'!#REF!,X25,'تسجيل المخزون'!#REF!,\"بيع\")-SUMIFS('تسجيل المخزون'!$F$2:$F$93,'تسجيل المخزون'!$D$2:$D$93,$G$1,'تسجيل المخزون'!#REF!,X25,'تسجيل المخزون'!#REF!,\"تالف\")","v":{"$error":"#REF!"}},{"$f":"SUMIFS('تسجيل المخزون'!$F$2:$F$93,'تسجيل المخزون'!$D$2:$D$93,$G$1,'تسجيل المخزون'!#REF!,Y25,'تسجيل المخزون'!#REF!,\"وارد\")-SUMIFS('تسجيل المخزون'!$F$2:$F$93,'تسجيل المخزون'!$D$2:$D$93,$G$1,'تسجيل المخزون'!#REF!,Y25,'تسجيل المخزون'!#REF!,\"بيع\")-SUMIFS('تسجيل المخزون'!$F$2:$F$93,'تسجيل المخزون'!$D$2:$D$93,$G$1,'تسجيل المخزون'!#REF!,Y25,'تسجيل المخزون'!#REF!,\"تالف\")","v":{"$error":"#REF!"}},"2023-01-22","2023-02-22","2023-03-22","2023-04-22","2023-05-22","2023-06-22","2023-07-22","2023-08-22","2023-09-22","2023-10-22","2023-11-22","2023-12-22"]
[23,{"$f":"SUMIFS('تسجيل المخزون'!$F$2:$F$93,'تسجيل المخزون'!$D$2:$D$93,$G$1,'تسجيل المخزون'!#REF!,N26,'تسجيل المخزون'!#REF!,\"وارد\")-SUMIFS('تسجيل المخزون'!$F$2:$F$93,'تسجيل المخزون'!$D$2:$D$93,$G$1,'تسجيل المخزون'!#REF!,N26,'تسجيل المخزون'!#REF!,\"بيع\")-SUMIFS('تسجيل المخزون'!$F$2:$F$93,'تسجيل المخزون'!$D$2:$D$93,$G$1,'تسجيل المخزون'!#REF!,N26,'تسجيل المخزون'!#REF!,\"تالف\")","v":{"$error":"#REF!"}},{"$f":"SUMIFS('تسجيل المخزون'!$F$2:$F$93,'تسجيل المخزون'!$D$2:$D$93,$G$1,'تسجيل المخزون'!#REF!,O26,'تسجيل المخزون'!#REF!,\"وارد\")-SUMIFS('تسجيل المخزون'!$F$2:$F$93,'تسجيل المخزون'!$D$2:$D$93,$G$1,'تسجيل المخزون'!#REF!,O26,'تسجيل المخزون'!#REF!,\"بيع\")-SUMIFS('تسجيل المخزون'!$F$2:$F$93,'تسجيل المخزون'!$D$2:$D$93,$G$1,'تسجيل المخزون'!#REF!,O26,'تسجيل المخزون'!#REF!,\"تالف\")","v":{"$error":"#REF!"}},{"$f":"SUMIFS('تسجيل المخزون'!$F$2:$F$93,'تسجيل المخزون'!$D$2:$D$93,$G$1,'تسجيل المخزون'!#REF!,P26,'تسجيل المخزون'!#REF!,\"وارد\")-SUMIFS('تسجيل المخزون'!$F$2:$F$93,'تسجيل المخزون'!$D$2:$D$93,$G$1,'تسجيل المخزون'!#REF!,P26,'تسجيل المخزون'!#REF!,\"بيع\")-SUMIFS('تسجيل المخزون'!$F$2:$F$93,'تسجيل المخزون'!$D$2:$D$93,$G$1,'تسجيل المخزون'!#REF!,P26,'تسجيل المخزون'!#REF!,\"تالف\")","v":{"$error":"#REF!"}},{"$f":"SUMIFS('تسجيل المخزون'!$F$2:$F$93,'تسجيل المخزون'!$D$2:$D$93,$G$1,'تسجيل المخزون'!#REF!,Q26,'تسجيل المخزون'!#REF!,\"وارد\")-SUMIFS('تسجيل المخزون'!$F$2:$F$93,'تسجيل المخزون'!$D$2:$D$93,$G$1,'تسجيل المخزون'!#REF!,Q26,'تسجيل المخزون'!#REF!,\"بيع\")-SUMIFS('تسجيل المخزون'!$F$2:$F$93,'تسجيل المخزون'!$D$2:$D$93,$G$1,'تسجيل المخزون'!#REF!,Q26,'تسجيل المخزون'!#REF!,\"تالف\")","v":{"$error":"#REF!"}},{"$f":"SUMIFS('تسجيل المخزون'!$F$2:$F$93,'تسجيل المخزون'!$D$2:$D$93,$G$1,'تسجيل المخزون'!#REF!,R26,'تسجيل المخزون'!#REF!,\"وارد\")-SUMIFS('تسجيل المخزون'!$F$2:$F$93,'تسجيل المخزون'!$D$2:$D$93,$G$1,'تسجيل المخزون'!#REF!,R26,'تسجيل المخزون'!#REF!,\"بيع\")-SUMIFS('تسجيل المخزون'!$F$2:$F$93,'تسجيل المخزون'!$D$2:$D$93,$G$1,'تسجيل المخزون'!#REF!,R26,'تسجيل المخزون'!#REF!,\"تالف\")","v":{"$error":"#REF!"}},{"$f":"SUMIFS('تسجيل المخزون'!$F$2:$F$93,'تسجيل المخزون'!$D$2:$D$93,$G$1,'تسجيل المخزون'!#REF!,S26,'تسجيل المخزون'!#REF!,\"وارد\")-SUMIFS('تسجيل المخزون'!$F$2:$F$93,'تسجيل المخزون'!$D$2:$D$93,$G$1,'تسجيل المخزون'!#REF!,S26,'تسجيل المخزون'!#REF!,\"بيع\")-SUMIFS('تسجيل المخزون'!$F$2:$F$93,'تسجيل المخزون'!$D$2:$D$93,$G$1,'تسجيل المخزون'!#REF!,S26,'تسجيل المخزون'!#REF!,\"تالف\")","v":{"$error":"#REF!"}},{"$f":"SUMIFS('تسجيل المخزون'!$F$2:$F$93,'تسجيل المخزون'!$D$2:$D$93,$G$1,'تسجيل المخزون'!#REF!,T26,'تسجيل المخزون'!#REF!,\"وارد\")-SUMIFS('تسجيل المخزون'!$F$2:$F$93,'تسجيل المخزون'!$D$2:$D$93,$G$1,'تسجيل المخزون'!#REF!,T26,'تسجيل المخزون'!#REF!,\"بيع\")-SUMIFS('تسجيل المخزون'!$F$2:$F$93,'تسجيل المخزون'!$D$2:$D$93,$G$1,'تسجيل المخزون'!#REF!,T26,'تسجيل المخزون'!#REF!,\"تالف\")","v":{"$error":"#REF!"}},{"$f":"SUMIFS('تسجيل المخزون'!$F$2:$F$93,'تسجيل المخزون'!$D$2:$D$93,$G$1,'تسجيل المخزون'!#REF!,U26,'تسجيل المخزون'!#REF!,\"وارد\")-SUMIFS('تسجيل المخزون'!$F$2:$F$93,'تسجيل المخزون'!$D$2:$D$93,$G$1,'تسجيل المخزون'!#REF!,U26,'تسجيل المخزون'!#REF!,\"بيع\")-SUMIFS('تسجيل المخزون'!$F$2:$F$93,'تسجيل المخزون'!$D$2:$D$93,$G$1,'تسجيل المخزون'!#REF!,U26,'تسجيل المخزون'!#REF!,\"تالف\")","v":{"$error":"#REF!"}},{"$f":"SUMIFS('تسجيل المخزون'!$F$2:$F$93,'تسجيل المخزون'!$D$2:$D$93,$G$1,'تسجيل المخزون'!#REF!,V26,'تسجيل المخزون'!#REF!,\"وارد\")-SUMIFS('تسجيل المخزون'!$F$2:$F$93,'تسجيل المخزون'!$D$2:$D$93,$G$1,'تسجيل المخزون'!#REF!,V26,'تسجيل المخزون'!#REF!,\"بيع\")-SUMIFS('تسجيل المخزون'!$F$2:$F$93,'تسجيل المخزون'!$D$2:$D$93,$G$1,'تسجيل المخزون'!#REF!,V26,'تسجيل المخزون'!#REF!,\"تالف\")","v":{"$error":"#REF!"}},{"$f":"SUMIFS('تسجيل المخزون'!$F$2:$F$93,'تسجيل المخزون'!$D$2:$D$93,$G$1,'تسجيل المخزون'!#REF!,W26,'تسجيل المخزون'!#REF!,\"وارد\")-SUMIFS('تسجيل المخزون'!$F$2:$F$93,'تسجيل المخزون'!$D$2:$D$93,$G$1,'تسجيل المخزون'!#REF!,W26,'تسجيل المخزون'!#REF!,\"بيع\")-SUMIFS('تسجيل المخزون'!$F$2:$F$93,'تسجيل المخزون'!$D$2:$D$93,$G$1,'تسجيل المخزون'!#REF!,W26,'تسجيل المخزون'!#REF!,\"تالف\")","v":{"$error":"#REF!"}},{"$f":"SUMIFS('تسجيل المخزون'!$F$2:$F$93,'تسجيل المخزون'!$D$2:$D$93,$G$1,'تسجيل المخزون'!#REF!,X26,'تسجيل المخزون'!#REF!,\"وارد\")-SUMIFS('تسجيل المخزون'!$F$2:$F$93,'تسجيل المخزون'!$D$2:$D$93,$G$1,'تسجيل المخزون'!#REF!,X26,'تسجيل المخزون'!#REF!,\"بيع\")-SUMIFS('تسجيل المخزون'!$F$2:$F$93,'تسجيل المخزون'!$D$2:$D$93,$G$1,'تسجيل المخزون'!#REF!,X26,'تسجيل المخزون'!#REF!,\"تالف\")","v":{"$error":"#REF!"}},{"$f":"SUMIFS('تسجيل المخزون'!$F$2:$F$93,'تسجيل المخزون'!$D$2:$D$93,$G$1,'تسجيل المخزون'!#REF!,Y26,'تسجيل المخزون'!#REF!,\"وارد\")-SUMIFS('تسجيل المخزون'!$F$2:$F$93,'تسجيل المخزون'!$D$2:$D$93,$G$1,'تسجيل المخزون'!#REF!,Y26,'تسجيل المخزون'!#REF!,\"بيع\")-SUMIFS('تسجيل المخزون'!$F$2:$F$93,'تسجيل المخزون'!$D$2:$D$93,$G$1,'تسجيل المخزون'!#REF!,Y26,'تسجيل المخزون'!#REF!,\"تالف\")","v":{"$error":"#REF!"}},"2023-01-23","2023-02-23","2023-03-23","2023-04-23","2023-05-23","2023-06-23","2023-07-23","2023-08-23","2023-09-23","2023-10-23","2023-11-23","2023-12-23"]
[24,{"$f":"SUMIFS('تسجيل المخزون'!$F$2:$F$93,'تسجيل المخزون'!$D$2:$D$93,$G$1,'تسجيل المخزون'!#REF!,N27,'تسجيل المخزون'!#REF!,\"وارد\")-SUMIFS('تسجيل المخزون'!$F$2:$F$93,'تسجيل المخزون'!$D$2:$D$93,$G$1,'تسجيل المخزون'!#REF!,N27,'تسجيل المخزون'!#REF!,\"بيع\")-SUMIFS('تسجيل المخزون'!$F$2:$F$93,'تسجيل المخزون'!$D$2:$D$93,$G$1,'تسجيل المخزون'!#REF!,N27,'تسجيل المخزون'!#REF!,\"تالف\")","v":{"$error":"#REF!"}},{"$f":"SUMIFS('تسجيل المخزون'!$F$2:$F$93,'تسجيل المخزون'!$D$2:$D$93,$G$1,'تسجيل المخزون'!#REF!,O27,'تسجيل المخزون'!#REF!,\"وارد\")-SUMIFS('تسجيل المخزون'!$F$2:$F$93,'تسجيل المخزون'!$D$2:$D$93,$G$1,'تسجيل المخزون'!#REF!,O27,'تسجيل المخزون'!#REF!,\"بيع\")-SUMIFS('تسجيل المخزون'!$F$2:$F$93,'تسجيل المخزون'!$D$2:$D$93,$G$1,'تسجيل المخزون'!#REF!,O27,'تسجيل المخزون'!#REF!,\"تالف\")","v":{"$error":"#REF!"}},{"$f":"SUMIFS('تسجيل المخزون'!$F$2:$F$93,'تسجيل المخزون'!$D$2:$D$93,$G$1,'تسجيل المخزون'!#REF!,P27,'تسجيل المخزون'!#REF!,\"وارد\")-SUMIFS('تسجيل المخزون'!$F$2:$F$93,'تسجيل المخزون'!$D$2:$D$93,$G$1,'تسجيل المخزون'!#REF!,P27,'تسجيل المخزون'!#REF!,\"بيع\")-SUMIFS('تسجيل المخزون'!$F$2:$F$93,'تسجيل المخزون'!$D$2:$D$93,$G$1,'تسجيل المخزون'!#REF!,P27,'تسجيل المخزون'!#REF!,\"تالف\")","v":{"$error":"#REF!"}},{"$f":"SUMIFS('تسجيل المخزون'!$F$2:$F$93,'تسجيل المخزون'!$D$2:$D$93,$G$1,'تسجيل المخزون'!#REF!,Q27,'تسجيل المخزون'!#REF!,\"وارد\")-SUMIFS('تسجيل المخزون'!$F$2:$F$93,'تسجيل المخزون'!$D$2:$D$93,$G$1,'تسجيل المخزون'!#REF!,Q27,'تسجيل المخزون'!#REF!,\"بيع\")-SUMIFS('تسجيل المخزون'!$F$2:$F$93,'تسجيل المخزون'!$D$2:$D$93,$G$1,'تسجيل المخزون'!#REF!,Q27,'تسجيل المخزون'!#REF!,\"تالف\")","v":{"$error":"#REF!"}},{"$f":"SUMIFS('تسجيل المخزون'!$F$2:$F$93,'تسجيل المخزون'!$D$2:$D$93,$G$1,'تسجيل المخزون'!#REF!,R27,'تسجيل المخزون'!#REF!,\"وارد\")-SUMIFS('تسجيل المخزون'!$F$2:$F$93,'تسجيل المخزون'!$D$2:$D$93,$G$1,'تسجيل المخزون'!#REF!,R27,'تسجيل المخزون'!#REF!,\"بيع\")-SUMIFS('تسجيل المخزون'!$F$2:$F$93,'تسجيل المخزون'!$D$2:$D$93,$G$1,'تسجيل المخزون'!#REF!,R27,'تسجيل المخزون'!#REF!,\"تالف\")","v":{"$error":"#REF!"}},{"$f":"SUMIFS('تسجيل المخزون'!$F$2:$F$93,'تسجيل المخزون'!$D$2:$D$93,$G$1,'تسجيل المخزون'!#REF!,S27,'تسجيل المخزون'!#REF!,\"وارد\")-SUMIFS('تسجيل المخزون'!$F$2:$F$93,'تسجيل المخزون'!$D$2:$D$93,$G$1,'تسجيل المخزون'!#REF!,S27,'تسجيل المخزون'!#REF!,\"بيع\")-SUMIFS('تسجيل المخزون'!$F$2:$F$93,'تسجيل المخزون'!$D$2:$D$93,$G$1,'تسجيل المخزون'!#REF!,S27,'تسجيل المخزون'!#REF!,\"تالف\")","v":{"$error":"#REF!"}},{"$f":"SUMIFS('تسجيل المخزون'!$F$2:$F$93,'تسجيل المخزون'!$D$2:$D$93,$G$1,'تسجيل المخزون'!#REF!,T27,'تسجيل المخزون'!#REF!,\"وارد\")-SUMIFS('تسجيل المخزون'!$F$2:$F$93,'تسجيل المخزون'!$D$2:$D$93,$G$1,'تسجيل المخزون'!#REF!,T27,'تسجيل المخزون'!#REF!,\"بيع\")-SUMIFS('تسجيل المخزون'!$F$2:$F$93,'تسجيل المخزون'!$D$2:$D$93,$G$1,'تسجيل المخزون'!#REF!,T27,'تسجيل المخزون'!#REF!,\"تالف\")","v":{"$error":"#REF!"}},{"$f":"SUMIFS('تسجيل المخزون'!$F$2:$F$93,'تسجيل المخزون'!$D$2:$D$93,$G$1,'تسجيل المخزون'!#REF!,U27,'تسجيل المخزون'!#REF!,\"وارد\")-SUMIFS('تسجيل المخزون'!$F$2:$F$93,'تسجيل المخزون'!$D$2:$D$93,$G$1,'تسجيل المخزون'!#REF!,U27,'تسجيل المخزون'!#REF!,\"بيع\")-SUMIFS('تسجيل المخزون'!$F$2:$F$93,'تسجيل المخزون'!$D$2:$D$93,$G$1,'تسجيل المخزون'!#REF!,U27,'تسجيل المخزون'!#REF!,\"تالف\")","v":{"$error":"#REF!"}},{"$f":"SUMIFS('تسجيل المخزون'!$F$2:$F$93,'تسجيل المخزون'!$D$2:$D$93,$G$1,'تسجيل المخزون'!#REF!,V27,'تسجيل المخزون'!#REF!,\"وارد\")-SUMIFS('تسجيل المخزون'!$F$2:$F$93,'تسجيل المخزون'!$D$2:$D$93,$G$1,'تسجيل المخزون'!#REF!,V27,'تسجيل المخزون'!#REF!,\"بيع\")-SUMIFS('تسجيل المخزون'!$F$2:$F$93,'تسجيل المخزون'!$D$2:$D$93,$G$1,'تسجيل المخزون'!#REF!,V27,'تسجيل المخزون'!#REF!,\"تالف\")","v":{"$error":"#REF!"}},{"$f":"SUMIFS('تسجيل المخزون'!$F$2:$F$93,'تسجيل المخزون'!$D$2:$D$93,$G$1,'تسجيل المخزون'!#REF!,W27,'تسجيل المخزون'!#REF!,\"وارد\")-SUMIFS('تسجيل المخزون'!$F$2:$F$93,'تسجيل المخزون'!$D$2:$D$93,$G$1,'تسجيل المخزون'!#REF!,W27,'تسجيل المخزون'!#REF!,\"بيع\")-SUMIFS('تسجيل المخزون'!$F$2:$F$93,'تسجيل المخزون'!$D$2:$D$93,$G$1,'تسجيل المخزون'!#REF!,W27,'تسجيل المخزون'!#REF!,\"تالف\")","v":{"$error":"#REF!"}},{"$f":"SUMIFS('تسجيل المخزون'!$F$2:$F$93,'تسجيل المخزون'!$D$2:$D$93,$G$1,'تسجيل المخزون'!#REF!,X27,'تسجيل المخزون'!#REF!,\"وارد\")-SUMIFS('تسجيل المخزون'!$F$2:$F$93,'تسجيل المخزون'!$D$2:$D$93,$G$1,'تسجيل المخزون'!#REF!,X27,'تسجيل المخزون'!#REF!,\"بيع\")-SUMIFS('تسجيل المخزون'!$F$2:$F$93,'تسجيل المخزون'!$D$2:$D$93,$G$1,'تسجيل المخزون'!#REF!,X27,'تسجيل المخزون'!#REF!,\"تالف\")","v":{"$error":"#REF!"}},{"$f":"SUMIFS('تسجيل المخزون'!$F$2:$F$93,'تسجيل المخزون'!$D$2:$D$93,$G$1,'تسجيل المخزون'!#REF!,Y27,'تسجيل المخزون'!#REF!,\"وارد\")-SUMIFS('تسجيل المخزون'!$F$2:$F$93,'تسجيل المخزون'!$D$2:$D$93,$G$1,'تسجيل المخزون'!#REF!,Y27,'تسجيل المخزون'!#REF!,\"بيع\")-SUMIFS('تسجيل المخزون'!$F$2:$F$93,'تسجيل المخزون'!$D$2:$D$93,$G$1,'تسجيل المخزون'!#REF!,Y27,'تسجيل المخزون'!#REF!,\"تالف\")","v":{"$error":"#REF!"}},"2023-01-24","2023-02-24","2023-03-24","2023-04-24","2023-05-24","2023-06-24","2023-07-24","2023-08-24","2023-09-24","2023-10-24","2023-11-24","2023-12-24"]
[25,{"$f":"SUMIFS('تسجيل المخزون'!$F$2:$F$93,'تسجيل المخزون'!$D$2:$D$93,$G$1,'تسجيل المخزون'!#REF!,N28,'تسجيل المخزون'!#REF!,\"وارد\")-SUMIFS('تسجيل المخزون'!$F$2:$F$93,'تسجيل المخزون'!$D$2:$D$93,$G$1,'تسجيل المخزون'!#REF!,N28,'تسجيل المخزون'!#REF!,\"بيع\")-SUMIFS('تسجيل المخزون'!$F$2:$F$93,'تسجيل المخزون'!$D$2:$D$93,$G$1,'تسجيل المخزون'!#REF!,N28,'تسجيل المخزون'!#REF!,\"تالف\")","v":{"$error":"#REF!"}},{"$f":"SUMIFS('تسجيل المخزون'!$F$2:$F$93,'تسجيل المخزون'!$D$2:$D$93,$G$1,'تسجيل المخزون'!#REF!,O28,'تسجيل المخزون'!#REF!,\"وارد\")-SUMIFS('تسجيل المخزون'!$F$2:$F$93,'تسجيل المخزون'!$D$2:$D$93,$G$1,'تسجيل المخزون'!#REF!,O28,'تسجيل المخزون'!#REF!,\"بيع\")-SUMIFS('تسجيل المخزون'!$F$2:$F$93,'تسجيل المخزون'!$D$2:$D$93,$G$1,'تسجيل المخزون'!#REF!,O28,'تسجيل المخزون'!#REF!,\"تالف\")","v":{"$error":"#REF!"}},{"$f":"SUMIFS('تسجيل المخزون'!$F$2:$F$93,'تسجيل المخزون'!$D$2:$D$93,$G$1,'تسجيل المخزون'!#REF!,P28,'تسجيل المخزون'!#REF!,\"وارد\")-SUMIFS('تسجيل المخزون'!$F$2:$F$93,'تسجيل المخزون'!$D$2:$D$93,$G$1,'تسجيل المخزون'!#REF!,P28,'تسجيل المخزون'!#REF!,\"بيع\")-SUMIFS('تسجيل المخزون'!$F$2:$F$93,'تسجيل المخزون'!$D$2:$D$93,$G$1,'تسجيل المخزون'!#REF!,P28,'تسجيل المخزون'!#REF!,\"تالف\")","v":{"$error":"#REF!"}},{"$f":"SUMIFS('تسجيل المخزون'!$F$2:$F$93,'تسجيل المخزون'!$D$2:$D$93,$G$1,'تسجيل المخزون'!#REF!,Q28,'تسجيل المخزون'!#REF!,\"وارد\")-SUMIFS('تسجيل المخزون'!$F$2:$F$93,'تسجيل المخزون'!$D$2:$D$93,$G$1,'تسجيل المخزون'!#REF!,Q28,'تسجيل المخزون'!#REF!,\"بيع\")-SUMIFS('تسجيل المخزون'!$F$2:$F$93,'تسجيل المخزون'!$D$2:$D$93,$G$1,'تسجيل المخزون'!#REF!,Q28,'تسجيل المخزون'!#REF!,\"تالف\")","v":{"$error":"#REF!"}},{"$f":"SUMIFS('تسجيل المخزون'!$F$2:$F$93,'تسجيل المخزون'!$D$2:$D$93,$G$1,'تسجيل المخزون'!#REF!,R28,'تسجيل المخزون'!#REF!,\"وارد\")-SUMIFS('تسجيل المخزون'!$F$2:$F$93,'تسجيل المخزون'!$D$2:$D$93,$G$1,'تسجيل المخزون'!#REF!,R28,'تسجيل المخزون'!#REF!,\"بيع\")-SUMIFS('تسجيل المخزون'!$F$2:$F$93,'تسجيل المخزون'!$D$2:$D$93,$G$1,'تسجيل المخزون'!#REF!,R28,'تسجيل المخزون'!#REF!,\"تالف\")","v":{"$error":"#REF!"}},{"$f":"SUMIFS('تسجيل المخزون'!$F$2:$F$93,'تسجيل المخزون'!$D$2:$D$93,$G$1,'تسجيل المخزون'!#REF!,S28,'تسجيل المخزون'!#REF!,\"وارد\")-SUMIFS('تسجيل المخزون'!$F$2:$F$93,'تسجيل المخزون'!$D$2:$D$93,$G$1,'تسجيل المخزون'!#REF!,S28,'تسجيل المخزون'!#REF!,\"بيع\")-SUMIFS('تسجيل المخزون'!$F$2:$F$93,'تسجيل المخزون'!$D$2:$D$93,$G$1,'تسجيل المخزون'!#REF!,S28,'تسجيل المخزون'!#REF!,\"تالف\")","v":{"$error":"#REF!"}},{"$f":"SUMIFS('تسجيل المخزون'!$F$2:$F$93,'تسجيل المخزون'!$D$2:$D$93,$G$1,'تسجيل المخزون'!#REF!,T28,'تسجيل المخزون'!#REF!,\"وارد\")-SUMIFS('تسجيل المخزون'!$F$2:$F$93,'تسجيل المخزون'!$D$2:$D$93,$G$1,'تسجيل المخزون'!#REF!,T28,'تسجيل المخزون'!#REF!,\"بيع\")-SUMIFS('تسجيل المخزون'!$F$2:$F$93,'تسجيل المخزون'!$D$2:$D$93,$G$1,'تسجيل المخزون'!#REF!,T28,'تسجيل المخزون'!#REF!,\"تالف\")","v":{"$error":"#REF!"}},{"$f":"SUMIFS('تسجيل المخزون'!$F$2:$F$93,'تسجيل المخزون'!$D$2:$D$93,$G$1,'تسجيل المخزون'!#REF!,U28,'تسجيل المخزون'!#REF!,\"وارد\")-SUMIFS('تسجيل المخزون'!$F$2:$F$93,'تسجيل المخزون'!$D$2:$D$93,$G$1,'تسجيل المخزون'!#REF!,U28,'تسجيل المخزون'!#REF!,\"بيع\")-SUMIFS('تسجيل المخزون'!$F$2:$F$93,'تسجيل المخزون'!$D$2:$D$93,$G$1,'تسجيل المخزون'!#REF!,U28,'تسجيل المخزون'!#REF!,\"تالف\")","v":{"$error":"#REF!"}},{"$f":"SUMIFS('تسجيل المخزون'!$F$2:$F$93,'تسجيل المخزون'!$D$2:$D$93,$G$1,'تسجيل المخزون'!#REF!,V28,'تسجيل المخزون'!#REF!,\"وارد\")-SUMIFS('تسجيل المخزون'!$F$2:$F$93,'تسجيل المخزون'!$D$2:$D$93,$G$1,'تسجيل المخزون'!#REF!,V28,'تسجيل المخزون'!#REF!,\"بيع\")-SUMIFS('تسجيل المخزون'!$F$2:$F$93,'تسجيل المخزون'!$D$2:$D$93,$G$1,'تسجيل المخزون'!#REF!,V28,'تسجيل المخزون'!#REF!,\"تالف\")","v":{"$error":"#REF!"}},{"$f":"SUMIFS('تسجيل المخزون'!$F$2:$F$93,'تسجيل المخزون'!$D$2:$D$93,$G$1,'تسجيل المخزون'!#REF!,W28,'تسجيل المخزون'!#REF!,\"وارد\")-SUMIFS('تسجيل المخزون'!$F$2:$F$93,'تسجيل المخزون'!$D$2:$D$93,$G$1,'تسجيل المخزون'!#REF!,W28,'تسجيل المخزون'!#REF!,\"بيع\")-SUMIFS('تسجيل المخزون'!$F$2:$F$93,'تسجيل المخزون'!$D$2:$D$93,$G$1,'تسجيل المخزون'!#REF!,W28,'تسجيل المخزون'!#REF!,\"تالف\")","v":{"$error":"#REF!"}},{"$f":"SUMIFS('تسجيل المخزون'!$F$2:$F$93,'تسجيل المخزون'!$D$2:$D$93,$G$1,'تسجيل المخزون'!#REF!,X28,'تسجيل المخزون'!#REF!,\"وارد\")-SUMIFS('تسجيل المخزون'!$F$2:$F$93,'تسجيل المخزون'!$D$2:$D$93,$G$1,'تسجيل المخزون'!#REF!,X28,'تسجيل المخزون'!#REF!,\"بيع\")-SUMIFS('تسجيل المخزون'!$F$2:$F$93,'تسجيل المخزون'!$D$2:$D$93,$G$1,'تسجيل المخزون'!#REF!,X28,'تسجيل المخزون'!#REF!,\"تالف\")","v":{"$error":"#REF!"}},{"$f":"SUMIFS('تسجيل المخزون'!$F$2:$F$93,'تسجيل المخزون'!$D$2:$D$93,$G$1,'تسجيل المخزون'!#REF!,Y28,'تسجيل المخزون'!#REF!,\"وارد\")-SUMIFS('تسجيل المخزون'!$F$2:$F$93,'تسجيل المخزون'!$D$2:$D$93,$G$1,'تسجيل المخزون'!#REF!,Y28,'تسجيل المخزون'!#REF!,\"بيع\")-SUMIFS('تسجيل المخزون'!$F$2:$F$93,'تسجيل المخزون'!$D$2:$D$93,$G$1,'تسجيل المخزون'!#REF!,Y28,'تسجيل المخزون'!#REF!,\"تالف\")","v":{"$error":"#REF!"}},"2023-01-25","2023-02-25","2023-03-25","2023-04-25","2023-05-25","2023-06-25","2023-07-25","2023-08-25","2023-09-25","2023-10-25","2023-11-25","2023-12-25"]
[26,{"$f":"SUMIFS('تسجيل المخزون'!$F$2:$F$93,'تسجيل المخزون'!$D$2:$D$93,$G$1,'تسجيل المخزون'!#REF!,N29,'تسجيل المخزون'!#REF!,\"وارد\")-SUMIFS('تسجيل المخزون'!$F$2:$F$93,'تسجيل المخزون'!$D$2:$D$93,$G$1,'تسجيل المخزون'!#REF!,N29,'تسجيل المخزون'!#REF!,\"بيع\")-SUMIFS('تسجيل المخزون'!$F$2:$F$93,'تسجيل المخزون'!$D$2:$D$93,$G$1,'تسجيل المخزون'!#REF!,N29,'تسجيل المخزون'!#REF!,\"تالف\")","v":{"$error":"#REF!"}},{"$f":"SUMIFS('تسجيل المخزون'!$F$2:$F$93,'تسجيل المخزون'!$D$2:$D$93,$G$1,'تسجيل المخزون'!#REF!,O29,'تسجيل المخزون'!#REF!,\"وارد\")-SUMIFS('تسجيل المخزون'!$F$2:$F$93,'تسجيل المخزون'!$D$2:$D$93,$G$1,'تسجيل المخزون'!#REF!,O29,'تسجيل المخزون'!#REF!,\"بيع\")-SUMIFS('تسجيل المخزون'!$F$2:$F$93,'تسجيل المخزون'!$D$2:$D$93,$G$1,'تسجيل المخزون'!#REF!,O29,'تسجيل المخزون'!#REF!,\"تالف\")","v":{"$error":"#REF!"}},{"$f":"SUMIFS('تسجيل المخزون'!$F$2:$F$93,'تسجيل المخزون'!$D$2:$D$93,$G$1,'تسجيل المخزون'!#REF!,P29,'تسجيل المخزون'!#REF!,\"وارد\")-SUMIFS('تسجيل المخزون'!$F$2:$F$93,'تسجيل المخزون'!$D$2:$D$93,$G$1,'تسجيل المخزون'!#REF!,P29,'تسجيل المخزون'!#REF!,\"بيع\")-SUMIFS('تسجيل المخزون'!$F$2:$F$93,'تسجيل المخزون'!$D$2:$D$93,$G$1,'تسجيل المخزون'!#REF!,P29,'تسجيل المخزون'!#REF!,\"تالف\")","v":{"$error":"#REF!"}},{"$f":"SUMIFS('تسجيل المخزون'!$F$2:$F$93,'تسجيل المخزون'!$D$2:$D$93,$G$1,'تسجيل المخزون'!#REF!,Q29,'تسجيل المخزون'!#REF!,\"وارد\")-SUMIFS('تسجيل المخزون'!$F$2:$F$93,'تسجيل المخزون'!$D$2:$D$93,$G$1,'تسجيل المخزون'!#REF!,Q29,'تسجيل المخزون'!#REF!,\"بيع\")-SUMIFS('تسجيل المخزون'!$F$2:$F$93,'تسجيل المخزون'!$D$2:$D$93,$G$1,'تسجيل المخزون'!#REF!,Q29,'تسجيل المخزون'!#REF!,\"تالف\")","v":{"$error":"#REF!"}},{"$f":"SUMIFS('تسجيل المخزون'!$F$2:$F$93,'تسجيل المخزون'!$D$2:$D$93,$G$1,'تسجيل المخزون'!#REF!,R29,'تسجيل المخزون'!#REF!,\"وارد\")-SUMIFS('تسجيل المخزون'!$F$2:$F$93,'تسجيل المخزون'!$D$2:$D$93,$G$1,'تسجيل المخزون'!#REF!,R29,'تسجيل المخزون'!#REF!,\"بيع\")-SUMIFS('تسجيل المخزون'!$F$2:$F$93,'تسجيل المخزون'!$D$2:$D$93,$G$1,'تسجيل المخزون'!#REF!,R29,'تسجيل المخزون'!#REF!,\"تالف\")","v":{"$error":"#REF!"}},{"$f":"SUMIFS('تسجيل المخزون'!$F$2:$F$93,'تسجيل المخزون'!$D$2:$D$93,$G$1,'تسجيل المخزون'!#REF!,S29,'تسجيل المخزون'!#REF!,\"وارد\")-SUMIFS('تسجيل المخزون'!$F$2:$F$93,'تسجيل المخزون'!$D$2:$D$93,$G$1,'تسجيل المخزون'!#REF!,S29,'تسجيل المخزون'!#REF!,\"بيع\")-SUMIFS('تسجيل المخزون'!$F$2:$F$93,'تسجيل المخزون'!$D$2:$D$93,$G$1,'تسجيل المخزون'!#REF!,S29,'تسجيل المخزون'!#REF!,\"تالف\")","v":{"$error":"#REF!"}},{"$f":"SUMIFS('تسجيل المخزون'!$F$2:$F$93,'تسجيل المخزون'!$D$2:$D$93,$G$1,'تسجيل المخزون'!#REF!,T29,'تسجيل المخزون'!#REF!,\"وارد\")-SUMIFS('تسجيل المخزون'!$F$2:$F$93,'تسجيل المخزون'!$D$2:$D$93,$G$1,'تسجيل المخزون'!#REF!,T29,'تسجيل المخزون'!#REF!,\"بيع\")-SUMIFS('تسجيل المخزون'!$F$2:$F$93,'تسجيل المخزون'!$D$2:$D$93,$G$1,'تسجيل المخزون'!#REF!,T29,'تسجيل المخزون'!#REF!,\"تالف\")","v":{"$error":"#REF!"}},{"$f":"SUMIFS('تسجيل المخزون'!$F$2:$F$93,'تسجيل المخزون'!$D$2:$D$93,$G$1,'تسجيل المخزون'!#REF!,U29,'تسجيل المخزون'!#REF!,\"وارد\")-SUMIFS('تسجيل المخزون'!$F$2:$F$93,'تسجيل المخزون'!$D$2:$D$93,$G$1,'تسجيل المخزون'!#REF!,U29,'تسجيل المخزون'!#REF!,\"بيع\")-SUMIFS('تسجيل المخزون'!$F$2:$F$93,'تسجيل المخزون'!$D$2:$D$93,$G$1,'تسجيل المخزون'!#REF!,U29,'تسجيل المخزون'!#REF!,\"تالف\")","v":{"$error":"#REF!"}},{"$f":"SUMIFS('تسجيل المخزون'!$F$2:$F$93,'تسجيل المخزون'!$D$2:$D$93,$G$1,'تسجيل المخزون'!#REF!,V29,'تسجيل المخزون'!#REF!,\"وارد\")-SUMIFS('تسجيل المخزون'!$F$2:$F$93,'تسجيل المخزون'!$D$2:$D$93,$G$1,'تسجيل المخزون'!#REF!,V29,'تسجيل المخزون'!#REF!,\"بيع\")-SUMIFS('تسجيل المخزون'!$F$2:$F$93,'تسجيل المخزون'!$D$2:$D$93,$G$1,'تسجيل المخزون'!#REF!,V29,'تسجيل المخزون'!#REF!,\"تالف\")","v":{"$error":"#REF!"}},{"$f":"SUMIFS('تسجيل المخزون'!$F$2:$F$93,'تسجيل المخزون'!$D$2:$D$93,$G$1,'تسجيل المخزون'!#REF!,W29,'تسجيل المخزون'!#REF!,\"وارد\")-SUMIFS('تسجيل المخزون'!$F$2:$F$93,'تسجيل المخزون'!$D$2:$D$93,$G$1,'تسجيل المخزون'!#REF!,W29,'تسجيل المخزون'!#REF!,\"بيع\")-SUMIFS('تسجيل المخزون'!$F$2:$F$93,'تسجيل المخزون'!$D$2:$D$93,$G$1,'تسجيل المخزون'!#REF!,W29,'تسجيل المخزون'!#REF!,\"تالف\")","v":{"$error":"#REF!"}},{"$f":"SUMIFS('تسجيل المخزون'!$F$2:$F$93,'تسجيل المخزون'!$D$2:$D$93,$G$1,'تسجيل المخزون'!#REF!,X29,'تسجيل المخزون'!#REF!,\"وارد\")-SUMIFS('تسجيل المخزون'!$F$2:$F$93,'تسجيل المخزون'!$D$2:$D$93,$G$1,'تسجيل المخزون'!#REF!,X29,'تسجيل المخزون'!#REF!,\"بيع\")-SUMIFS('تسجيل المخزون'!$F$2:$F$93,'تسجيل المخزون'!$D$2:$D$93,$G$1,'تسجيل المخزون'!#REF!,X29,'تسجيل المخزون'!#REF!,\"تالف\")","v":{"$error":"#REF!"}},{"$f":"SUMIFS('تسجيل المخزون'!$F$2:$F$93,'تسجيل المخزون'!$D$2:$D$93,$G$1,'تسجيل المخزون'!#REF!,Y29,'تسجيل المخزون'!#REF!,\"وارد\")-SUMIFS('تسجيل المخزون'!$F$2:$F$93,'تسجيل المخزون'!$D$2:$D$93,$G$1,'تسجيل المخزون'!#REF!,Y29,'تسجيل المخزون'!#REF!,\"بيع\")-SUMIFS('تسجيل المخزون'!$F$2:$F$93,'تسجيل المخزون'!$D$2:$D$93,$G$1,'تسجيل المخزون'!#REF!,Y29,'تسجيل المخزون'!#REF!,\"تالف\")","v":{"$error":"#REF!"}},"2023-01-26","2023-02-26","2023-03-26","2023-04-26","2023-05-26","2023-06-26","2023-07-26","2023-08-26","2023-09-26","2023-10-26","2023-11-26","2023-12-26"]
[27,{"$f":"SUMIFS('تسجيل المخزون'!$F$2:$F$93,'تسجيل المخزون'!$D$2:$D$93,$G$1,'تسجيل المخزون'!#REF!,N30,'تسجيل المخزون'!#REF!,\"وارد\")-SUMIFS('تسجيل المخزون'!$F$2:$F$93,'تسجيل المخزون'!$D$2:$D$93,$G$1,'تسجيل المخزون'!#REF!,N30,'تسجيل المخزون'!#REF!,\"بيع\")-SUMIFS('تسجيل المخزون'!$F$2:$F$93,'تسجيل المخزون'!$D$2:$D$93,$G$1,'تسجيل المخزون'!#REF!,N30,'تسجيل المخزون'!#REF!,\"تالف\")","v":{"$error":"#REF!"}},{"$f":"SUMIFS('تسجيل المخزون'!$F$2:$F$93,'تسجيل المخزون'!$D$2:$D$93,$G$1,'تسجيل المخزون'!#REF!,O30,'تسجيل المخزون'!#REF!,\"وارد\")-SUMIFS('تسجيل المخزون'!$F$2:$F$93,'تسجيل المخزون'!$D$2:$D$93,$G$1,'تسجيل المخزون'!#REF!,O30,'تسجيل المخزون'!#REF!,\"بيع\")-SUMIFS('تسجيل المخزون'!$F$2:$F$93,'تسجيل المخزون'!$D$2:$D$93,$G$1,'تسجيل المخزون'!#REF!,O30,'تسجيل المخزون'!#REF!,\"تالف\")","v":{"$error":"#REF!"}},{"$f":"SUMIFS('تسجيل المخزون'!$F$2:$F$93,'تسجيل المخزون'!$D$2:$D$93,$G$1,'تسجيل المخزون'!#REF!,P30,'تسجيل المخزون'!#REF!,\"وارد\")-SUMIFS('تسجيل المخزون'!$F$2:$F$93,'تسجيل المخزون'!$D$2:$D$93,$G$1,'تسجيل المخزون'!#REF!,P30,'تسجيل المخزون'!#REF!,\"بيع\")-SUMIFS('تسجيل المخزون'!$F$2:$F$93,'تسجيل المخزون'!$D$2:$D$93,$G$1,'تسجيل المخزون'!#REF!,P30,'تسجيل المخزون'!#REF!,\"تالف\")","v":{"$error":"#REF!"}},{"$f":"SUMIFS('تسجيل المخزون'!$F$2:$F$93,'تسجيل المخزون'!$D$2:$D$93,$G$1,'تسجيل المخزون'!#REF!,Q30,'تسجيل المخزون'!#REF!,\"وارد\")-SUMIFS('تسجيل المخزون'!$F$2:$F$93,'تسجيل المخزون'!$D$2:$D$93,$G$1,'تسجيل المخزون'!#REF!,Q30,'تسجيل المخزون'!#REF!,\"بيع\")-SUMIFS('تسجيل المخزون'!$F$2:$F$93,'تسجيل المخزون'!$D$2:$D$93,$G$1,'تسجيل المخزون'!#REF!,Q30,'تسجيل المخزون'!#REF!,\"تالف\")","v":{"$error":"#REF!"}},{"$f":"SUMIFS('تسجيل المخزون'!$F$2:$F$93,'تسجيل المخزون'!$D$2:$D$93,$G$1,'تسجيل المخزون'!#REF!,R30,'تسجيل المخزون'!#REF!,\"وارد\")-SUMIFS('تسجيل المخزون'!$F$2:$F$93,'تسجيل المخزون'!$D$2:$D$93,$G$1,'تسجيل المخزون'!#REF!,R30,'تسجيل المخزون'!#REF!,\"بيع\")-SUMIFS('تسجيل المخزون'!$F$2:$F$93,'تسجيل المخزون'!$D$2:$D$93,$G$1,'تسجيل المخزون'!#REF!,R30,'تسجيل المخزون'!#REF!,\"تالف\")","v":{"$error":"#REF!"}},{"$f":"SUMIFS('تسجيل المخزون'!$F$2:$F$93,'تسجيل المخزون'!$D$2:$D$93,$G$1,'تسجيل المخزون'!#REF!,S30,'تسجيل المخزون'!#REF!,\"وارد\")-SUMIFS('تسجيل المخزون'!$F$2:$F$93,'تسجيل المخزون'!$D$2:$D$93,$G$1,'تسجيل المخزون'!#REF!,S30,'تسجيل المخزون'!#REF!,\"بيع\")-SUMIFS('تسجيل المخزون'!$F$2:$F$93,'تسجيل المخزون'!$D$2:$D$93,$G$1,'تسجيل المخزون'!#REF!,S30,'تسجيل المخزون'!#REF!,\"تالف\")","v":{"$error":"#REF!"}},{"$f":"SUMIFS('تسجيل المخزون'!$F$2:$F$93,'تسجيل المخزون'!$D$2:$D$93,$G$1,'تسجيل المخزون'!#REF!,T30,'تسجيل المخزون'!#REF!,\"وارد\")-SUMIFS('تسجيل المخزون'!$F$2:$F$93,'تسجيل المخزون'!$D$2:$D$93,$G$1,'تسجيل المخزون'!#REF!,T30,'تسجيل المخزون'!#REF!,\"بيع\")-SUMIFS('تسجيل المخزون'!$F$2:$F$93,'تسجيل المخزون'!$D$2:$D$93,$G$1,'تسجيل المخزون'!#REF!,T30,'تسجيل المخزون'!#REF!,\"تالف\")","v":{"$error":"#REF!"}},{"$f":"SUMIFS('تسجيل المخزون'!$F$2:$F$93,'تسجيل المخزون'!$D$2:$D$93,$G$1,'تسجيل المخزون'!#REF!,U30,'تسجيل المخزون'!#REF!,\"وارد\")-SUMIFS('تسجيل المخزون'!$F$2:$F$93,'تسجيل المخزون'!$D$2:$D$93,$G$1,'تسجيل المخزون'!#REF!,U30,'تسجيل المخزون'!#REF!,\"بيع\")-SUMIFS('تسجيل المخزون'!$F$2:$F$93,'تسجيل المخزون'!$D$2:$D$93,$G$1,'تسجيل المخزون'!#REF!,U30,'تسجيل المخزون'!#REF!,\"تالف\")","v":{"$error":"#REF!"}},{"$f":"SUMIFS('تسجيل المخزون'!$F$2:$F$93,'تسجيل المخزون'!$D$2:$D$93,$G$1,'تسجيل المخزون'!#REF!,V30,'تسجيل المخزون'!#REF!,\"وارد\")-SUMIFS('تسجيل المخزون'!$F$2:$F$93,'تسجيل المخزون'!$D$2:$D$93,$G$1,'تسجيل المخزون'!#REF!,V30,'تسجيل المخزون'!#REF!,\"بيع\")-SUMIFS('تسجيل المخزون'!$F$2:$F$93,'تسجيل المخزون'!$D$2:$D$93,$G$1,'تسجيل المخزون'!#REF!,V30,'تسجيل المخزون'!#REF!,\"تالف\")","v":{"$error":"#REF!"}},{"$f":"SUMIFS('تسجيل المخزون'!$F$2:$F$93,'تسجيل المخزون'!$D$2:$D$93,$G$1,'تسجيل المخزون'!#REF!,W30,'تسجيل المخزون'!#REF!,\"وارد\")-SUMIFS('تسجيل المخزون'!$F$2:$F$93,'تسجيل المخزون'!$D$2:$D$93,$G$1,'تسجيل المخزون'!#REF!,W30,'تسجيل المخزون'!#REF!,\"بيع\")-SUMIFS('تسجيل المخزون'!$F$2:$F$93,'تسجيل المخزون'!$D$2:$D$93,$G$1,'تسجيل المخزون'!#REF!,W30,'تسجيل المخزون'!#REF!,\"تالف\")","v":{"$error":"#REF!"}},{"$f":"SUMIFS('تسجيل المخزون'!$F$2:$F$93,'تسجيل المخزون'!$D$2:$D$93,$G$1,'تسجيل المخزون'!#REF!,X30,'تسجيل المخزون'!#REF!,\"وارد\")-SUMIFS('تسجيل المخزون'!$F$2:$F$93,'تسجيل المخزون'!$D$2:$D$93,$G$1,'تسجيل المخزون'!#REF!,X30,'تسجيل المخزون'!#REF!,\"بيع\")-SUMIFS('تسجيل المخزون'!$F$2:$F$93,'تسجيل المخزون'!$D$2:$D$93,$G$1,'تسجيل المخزون'!#REF!,X30,'تسجيل المخزون'!#REF!,\"تالف\")","v":{"$error":"#REF!"}},{"$f":"SUMIFS('تسجيل المخزون'!$F$2:$F$93,'تسجيل المخزون'!$D$2:$D$93,$G$1,'تسجيل المخزون'!#REF!,Y30,'تسجيل المخزون'!#REF!,\"وارد\")-SUMIFS('تسجيل المخزون'!$F$2:$F$93,'تسجيل المخزون'!$D$2:$D$93,$G$1,'تسجيل المخزون'!#REF!,Y30,'تسجيل المخزون'!#REF!,\"بيع\")-SUMIFS('تسجيل المخزون'!$F$2:$F$93,'تسجيل المخزون'!$D$2:$D$93,$G$1,'تسجيل المخزون'!#REF!,Y30,'تسجيل المخزون'!#REF!,\"تالف\")","v":{"$error":"#REF!"}},"2023-01-27","2023-02-27","2023-03-27","2023-04-27","2023-05-27","2023-06-27","2023-07-27","2023-08-27","2023-09-27","2023-10-27","2023-11-27","2023-12-27"]
[28,{"$f":"SUMIFS('تسجيل المخزون'!$F$2:$F$93,'تسجيل المخزون'!$D$2:$D$93,$G$1,'تسجيل المخزون'!#REF!,N31,'تسجيل المخزون'!#REF!,\"وارد\")-SUMIFS('تسجيل المخزون'!$F$2:$F$93,'تسجيل المخزون'!$D$2:$D$93,$G$1,'تسجيل المخزون'!#REF!,N31,'تسجيل المخزون'!#REF!,\"بيع\")-SUMIFS('تسجيل المخزون'!$F$2:$F$93,'تسجيل المخزون'!$D$2:$D$93,$G$1,'تسجيل المخزون'!#REF!,N31,'تسجيل المخزون'!#REF!,\"تالف\")","v":{"$error":"#REF!"}},{"$f":"SUMIFS('تسجيل المخزون'!$F$2:$F$93,'تسجيل المخزون'!$D$2:$D$93,$G$1,'تسجيل المخزون'!#REF!,O31,'تسجيل المخزون'!#REF!,\"وارد\")-SUMIFS('تسجيل المخزون'!$F$2:$F$93,'تسجيل المخزون'!$D$2:$D$93,$G$1,'تسجيل المخزون'!#REF!,O31,'تسجيل المخزون'!#REF!,\"بيع\")-SUMIFS('تسجيل المخزون'!$F$2:$F$93,'تسجيل المخزون'!$D$2:$D$93,$G$1,'تسجيل المخزون'!#REF!,O31,'تسجيل المخزون'!#REF!,\"تالف\")","v":{"$error":"#REF!"}},{"$f":"SUMIFS('تسجيل المخزون'!$F$2:$F$93,'تسجيل المخزون'!$D$2:$D$93,$G$1,'تسجيل المخزون'!#REF!,P31,'تسجيل المخزون'!#REF!,\"وارد\")-SUMIFS('تسجيل المخزون'!$F$2:$F$93,'تسجيل المخزون'!$D$2:$D$93,$G$1,'تسجيل المخزون'!#REF!,P31,'تسجيل المخزون'!#REF!,\"بيع\")-SUMIFS('تسجيل المخزون'!$F$2:$F$93,'تسجيل المخزون'!$D$2:$D$93,$G$1,'تسجيل المخزون'!#REF!,P31,'تسجيل المخزون'!#REF!,\"تالف\")","v":{"$error":"#REF!"}},{"$f":"SUMIFS('تسجيل المخزون'!$F$2:$F$93,'تسجيل المخزون'!$D$2:$D$93,$G$1,'تسجيل المخزون'!#REF!,Q31,'تسجيل المخزون'!#REF!,\"وارد\")-SUMIFS('تسجيل المخزون'!$F$2:$F$93,'تسجيل المخزون'!$D$2:$D$93,$G$1,'تسجيل المخزون'!#REF!,Q31,'تسجيل المخزون'!#REF!,\"بيع\")-SUMIFS('تسجيل المخزون'!$F$2:$F$93,'تسجيل المخزون'!$D$2:$D$93,$G$1,'تسجيل المخزون'!#REF!,Q31,'تسجيل المخزون'!#REF!,\"تالف\")","v":{"$error":"#REF!"}},{"$f":"SUMIFS('تسجيل المخزون'!$F$2:$F$93,'تسجيل المخزون'!$D$2:$D$93,$G$1,'تسجيل المخزون'!#REF!,R31,'تسجيل المخزون'!#REF!,\"وارد\")-SUMIFS('تسجيل المخزون'!$F$2:$F$93,'تسجيل المخزون'!$D$2:$D$93,$G$1,'تسجيل المخزون'!#REF!,R31,'تسجيل المخزون'!#REF!,\"بيع\")-SUMIFS('تسجيل المخزون'!$F$2:$F$93,'تسجيل المخزون'!$D$2:$D$93,$G$1,'تسجيل المخزون'!#REF!,R31,'تسجيل المخزون'!#REF!,\"تالف\")","v":{"$error":"#REF!"}},{"$f":"SUMIFS('تسجيل المخزون'!$F$2:$F$93,'تسجيل المخزون'!$D$2:$D$93,$G$1,'تسجيل المخزون'!#REF!,S31,'تسجيل المخزون'!#REF!,\"وارد\")-SUMIFS('تسجيل المخزون'!$F$2:$F$93,'تسجيل المخزون'!$D$2:$D$93,$G$1,'تسجيل المخزون'!#REF!,S31,'تسجيل المخزون'!#REF!,\"بيع\")-SUMIFS('تسجيل المخزون'!$F$2:$F$93,'تسجيل المخزون'!$D$2:$D$93,$G$1,'تسجيل المخزون'!#REF!,S31,'تسجيل المخزون'!#REF!,\"تالف\")","v":{"$error":"#REF!"}},{"$f":"SUMIFS('تسجيل المخزون'!$F$2:$F$93,'تسجيل المخزون'!$D$2:$D$93,$G$1,'تسجيل المخزون'!#REF!,T31,'تسجيل المخزون'!#REF!,\"وارد\")-SUMIFS('تسجيل المخزون'!$F$2:$F$93,'تسجيل المخزون'!$D$2:$D$93,$G$1,'تسجيل المخزون'!#REF!,T31,'تسجيل المخزون'!#REF!,\"بيع\")-SUMIFS('تسجيل المخزون'!$F$2:$F$93,'تسجيل المخزون'!$D$2:$D$93,$G$1,'تسجيل المخزون'!#REF!,T31,'تسجيل المخزون'!#REF!,\"تالف\")","v":{"$error":"#REF!"}},{"$f":"SUMIFS('تسجيل المخزون'!$F$2:$F$93,'تسجيل المخزون'!$D$2:$D$93,$G$1,'تسجيل المخزون'!#REF!,U31,'تسجيل المخزون'!#REF!,\"وارد\")-SUMIFS('تسجيل المخزون'!$F$2:$F$93,'تسجيل المخزون'!$D$2:$D$93,$G$1,'تسجيل المخزون'!#REF!,U31,'تسجيل المخزون'!#REF!,\"بيع\")-SUMIFS('تسجيل المخزون'!$F$2:$F$93,'تسجيل المخزون'!$D$2:$D$93,$G$1,'تسجيل المخزون'!#REF!,U31,'تسجيل المخزون'!#REF!,\"تالف\")","v":{"$error":"#REF!"}},{"$f":"SUMIFS('تسجيل المخزون'!$F$2:$F$93,'تسجيل المخزون'!$D$2:$D$93,$G$1,'تسجيل المخزون'!#REF!,V31,'تسجيل المخزون'!#REF!,\"وارد\")-SUMIFS('تسجيل المخزون'!$F$2:$F$93,'تسجيل المخزون'!$D$2:$D$93,$G$1,'تسجيل المخزون'!#REF!,V31,'تسجيل المخزون'!#REF!,\"بيع\")-SUMIFS('تسجيل المخزون'!$F$2:$F$93,'تسجيل المخزون'!$D$2:$D$93,$G$1,'تسجيل المخزون'!#REF!,V31,'تسجيل المخزون'!#REF!,\"تالف\")","v":{"$error":"#REF!"}},{"$f":"SUMIFS('تسجيل المخزون'!$F$2:$F$93,'تسجيل المخزون'!$D$2:$D$93,$G$1,'تسجيل المخزون'!#REF!,W31,'تسجيل المخزون'!#REF!,\"وارد\")-SUMIFS('تسجيل المخزون'!$F$2:$F$93,'تسجيل المخزون'!$D$2:$D$93,$G$1,'تسجيل المخزون'!#REF!,W31,'تسجيل المخزون'!#REF!,\"بيع\")-SUMIFS('تسجيل المخزون'!$F$2:$F$93,'تسجيل المخزون'!$D$2:$D$93,$G$1,'تسجيل المخزون'!#REF!,W31,'تسجيل المخزون'!#REF!,\"تالف\")","v":{"$error":"#REF!"}},{"$f":"SUMIFS('تسجيل المخزون'!$F$2:$F$93,'تسجيل المخزون'!$D$2:$D$93,$G$1,'تسجيل المخزون'!#REF!,X31,'تسجيل المخزون'!#REF!,\"وارد\")-SUMIFS('تسجيل المخزون'!$F$2:$F$93,'تسجيل المخزون'!$D$2:$D$93,$G$1,'تسجيل المخزون'!#REF!,X31,'تسجيل المخزون'!#REF!,\"بيع\")-SUMIFS('تسجيل المخزون'!$F$2:$F$93,'تسجيل المخزون'!$D$2:$D$93,$G$1,'تسجيل المخزون'!#REF!,X31,'تسجيل المخزون'!#REF!,\"تالف\")","v":{"$error":"#REF!"}},{"$f":"SUMIFS('تسجيل المخزون'!$F$2:$F$93,'تسجيل المخزون'!$D$2:$D$93,$G$1,'تسجيل المخزون'!#REF!,Y31,'تسجيل المخزون'!#REF!,\"وارد\")-SUMIFS('تسجيل المخزون'!$F$2:$F$93,'تسجيل المخزون'!$D$2:$D$93,$G$1,'تسجيل المخزون'!#REF!,Y31,'تسجيل المخزون'!#REF!,\"بيع\")-SUMIFS('تسجيل المخزون'!$F$2:$F$93,'تسجيل المخزون'!$D$2:$D$93,$G$1,'تسجيل المخزون'!#REF!,Y31,'تسجيل المخزون'!#REF!,\"تالف\")","v":{"$error":"#REF!"}},"2023-01-28","2023-02-28","2023-03-28","2023-04-28","2023-05-28","2023-06-28","2023-07-28","2023-08-28","2023-09-28","2023-10-28","2023-11-28","2023-12-28"]
[29,{"$f":"SUMIFS('تسجيل المخزون'!$F$2:$F$93,'تسجيل المخزون'!$D$2:$D$93,$G$1,'تسجيل المخزون'!#REF!,N32,'تسجيل المخزون'!#REF!,\"وارد\")-SUMIFS('تسجيل المخزون'!$F$2:$F$93,'تسجيل المخزون'!$D$2:$D$93,$G$1,'تسجيل المخزون'!#REF!,N32,'تسجيل المخزون'!#REF!,\"بيع\")-SUMIFS('تسجيل المخزون'!$F$2:$F$93,'تسجيل المخزون'!$D$2:$D$93,$G$1,'تسجيل المخزون'!#REF!,N32,'تسجيل المخزون'!#REF!,\"تالف\")","v":{"$error":"#REF!"}},{"$f":"SUMIFS('تسجيل المخزون'!$F$2:$F$93,'تسجيل المخزون'!$D$2:$D$93,$G$1,'تسجيل المخزون'!#REF!,O32,'تسجيل المخزون'!#REF!,\"وارد\")-SUMIFS('تسجيل المخزون'!$F$2:$F$93,'تسجيل المخزون'!$D$2:$D$93,$G$1,'تسجيل المخزون'!#REF!,O32,'تسجيل المخزون'!#REF!,\"بيع\")-SUMIFS('تسجيل المخزون'!$F$2:$F$93,'تسجيل المخزون'!$D$2:$D$93,$G$1,'تسجيل المخزون'!#REF!,O32,'تسجيل المخزون'!#REF!,\"تالف\")","v":{"$error":"#REF!"}},{"$f":"SUMIFS('تسجيل المخزون'!$F$2:$F$93,'تسجيل المخزون'!$D$2:$D$93,$G$1,'تسجيل المخزون'!#REF!,P32,'تسجيل المخزون'!#REF!,\"وارد\")-SUMIFS('تسجيل المخزون'!$F$2:$F$93,'تسجيل المخزون'!$D$2:$D$93,$G$1,'تسجيل المخزون'!#REF!,P32,'تسجيل المخزون'!#REF!,\"بيع\")-SUMIFS('تسجيل المخزون'!$F$2:$F$93,'تسجيل المخزون'!$D$2:$D$93,$G$1,'تسجيل المخزون'!#REF!,P32,'تسجيل المخزون'!#REF!,\"تالف\")","v":{"$error":"#REF!"}},{"$f":"SUMIFS('تسجيل المخزون'!$F$2:$F$93,'تسجيل المخزون'!$D$2:$D$93,$G$1,'تسجيل المخزون'!#REF!,Q32,'تسجيل المخزون'!#REF!,\"وارد\")-SUMIFS('تسجيل المخزون'!$F$2:$F$93,'تسجيل المخزون'!$D$2:$D$93,$G$1,'تسجيل المخزون'!#REF!,Q32,'تسجيل المخزون'!#REF!,\"بيع\")-SUMIFS('تسجيل المخزون'!$F$2:$F$93,'تسجيل المخزون'!$D$2:$D$93,$G$1,'تسجيل المخزون'!#REF!,Q32,'تسجيل المخزون'!#REF!,\"تالف\")","v":{"$error":"#REF!"}},{"$f":"SUMIFS('تسجيل المخزون'!$F$2:$F$93,'تسجيل المخزون'!$D$2:$D$93,$G$1,'تسجيل المخزون'!#REF!,R32,'تسجيل المخزون'!#REF!,\"وارد\")-SUMIFS('تسجيل المخزون'!$F$2:$F$93,'تسجيل المخزون'!$D$2:$D$93,$G$1,'تسجيل المخزون'!#REF!,R32,'تسجيل المخزون'!#REF!,\"بيع\")-SUMIFS('تسجيل المخزون'!$F$2:$F$93,'تسجيل المخزون'!$D$2:$D$93,$G$1,'تسجيل المخزون'!#REF!,R32,'تسجيل المخزون'!#REF!,\"تالف\")","v":{"$error":"#REF!"}},{"$f":"SUMIFS('تسجيل المخزون'!$F$2:$F$93,'تسجيل المخزون'!$D$2:$D$93,$G$1,'تسجيل المخزون'!#REF!,S32,'تسجيل المخزون'!#REF!,\"وارد\")-SUMIFS('تسجيل المخزون'!$F$2:$F$93,'تسجيل المخزون'!$D$2:$D$93,$G$1,'تسجيل المخزون'!#REF!,S32,'تسجيل المخزون'!#REF!,\"بيع\")-SUMIFS('تسجيل المخزون'!$F$2:$F$93,'تسجيل المخزون'!$D$2:$D$93,$G$1,'تسجيل المخزون'!#REF!,S32,'تسجيل المخزون'!#REF!,\"تالف\")","v":{"$error":"#REF!"}},{"$f":"SUMIFS('تسجيل المخزون'!$F$2:$F$93,'تسجيل المخزون'!$D$2:$D$93,$G$1,'تسجيل المخزون'!#REF!,T32,'تسجيل المخزون'!#REF!,\"وارد\")-SUMIFS('تسجيل المخزون'!$F$2:$F$93,'تسجيل المخزون'!$D$2:$D$93,$G$1,'تسجيل المخزون'!#REF!,T32,'تسجيل المخزون'!#REF!,\"بيع\")-SUMIFS('تسجيل المخزون'!$F$2:$F$93,'تسجيل المخزون'!$D$2:$D$93,$G$1,'تسجيل المخزون'!#REF!,T32,'تسجيل المخزون'!#REF!,\"تالف\")","v":{"$error":"#REF!"}},{"$f":"SUMIFS('تسجيل المخزون'!$F$2:$F$93,'تسجيل المخزون'!$D$2:$D$93,$G$1,'تسجيل المخزون'!#REF!,U32,'تسجيل المخزون'!#REF!,\"وارد\")-SUMIFS('تسجيل المخزون'!$F$2:$F$93,'تسجيل المخزون'!$D$2:$D$93,$G$1,'تسجيل المخزون'!#REF!,U32,'تسجيل المخزون'!#REF!,\"بيع\")-SUMIFS('تسجيل المخزون'!$F$2:$F$93,'تسجيل المخزون'!$D$2:$D$93,$G$1,'تسجيل المخزون'!#REF!,U32,'تسجيل المخزون'!#REF!,\"تالف\")","v":{"$error":"#REF!"}},{"$f":"SUMIFS('تسجيل المخزون'!$F$2:$F$93,'تسجيل المخزون'!$D$2:$D$93,$G$1,'تسجيل المخزون'!#REF!,V32,'تسجيل المخزون'!#REF!,\"وارد\")-SUMIFS('تسجيل المخزون'!$F$2:$F$93,'تسجيل المخزون'!$D$2:$D$93,$G$1,'تسجيل المخزون'!#REF!,V32,'تسجيل المخزون'!#REF!,\"بيع\")-SUMIFS('تسجيل المخزون'!$F$2:$F$93,'تسجيل المخزون'!$D$2:$D$93,$G$1,'تسجيل المخزون'!#REF!,V32,'تسجيل المخزون'!#REF!,\"تالف\")","v":{"$error":"#REF!"}},{"$f":"SUMIFS('تسجيل المخزون'!$F$2:$F$93,'تسجيل المخزون'!$D$2:$D$93,$G$1,'تسجيل المخزون'!#REF!,W32,'تسجيل المخزون'!#REF!,\"وارد\")-SUMIFS('تسجيل المخزون'!$F$2:$F$93,'تسجيل المخزون'!$D$2:$D$93,$G$1,'تسجيل المخزون'!#REF!,W32,'تسجيل المخزون'!#REF!,\"بيع\")-SUMIFS('تسجيل المخزون'!$F$2:$F$93,'تسجيل المخزون'!$D$2:$D$93,$G$1,'تسجيل المخزون'!#REF!,W32,'تسجيل المخزون'!#REF!,\"تالف\")","v":{"$error":"#REF!"}},{"$f":"SUMIFS('تسجيل المخزون'!$F$2:$F$93,'تسجيل المخزون'!$D$2:$D$93,$G$1,'تسجيل المخزون'!#REF!,X32,'تسجيل المخزون'!#REF!,\"وارد\")-SUMIFS('تسجيل المخزون'!$F$2:$F$93,'تسجيل المخزون'!$D$2:$D$93,$G$1,'تسجيل المخزون'!#REF!,X32,'تسجيل المخزون'!#REF!,\"بيع\")-SUMIFS('تسجيل المخزون'!$F$2:$F$93,'تسجيل المخزون'!$D$2:$D$93,$G$1,'تسجيل المخزون'!#REF!,X32,'تسجيل المخزون'!#REF!,\"تالف\")","v":{"$error":"#REF!"}},{"$f":"SUMIFS('تسجيل المخزون'!$F$2:$F$93,'تسجيل المخزون'!$D$2:$D$93,$G$1,'تسجيل المخزون'!#REF!,Y32,'تسجيل المخزون'!#REF!,\"وارد\")-SUMIFS('تسجيل المخزون'!$F$2:$F$93,'تسجيل المخزون'!$D$2:$D$93,$G$1,'تسجيل المخزون'!#REF!,Y32,'تسجيل المخزون'!#REF!,\"بيع\")-SUMIFS('تسجيل المخزون'!$F$2:$F$93,'تسجيل المخزون'!$D$2:$D$93,$G$1,'تسجيل المخزون'!#REF!,Y32,'تسجيل المخزون'!#REF!,\"تالف\")","v":{"$error":"#REF!"}},"2023-01-29",null,"2023-03-29","2023-04-29","2023-05-29","2023-06-29","2023-07-29","2023-08-29","2023-09-29","2023-10-29","2023-11-29","2023-12-29"]
[30,{"$f":"SUMIFS('تسجيل المخزون'!$F$2:$F$93,'تسجيل المخزون'!$D$2:$D$93,$G$1,'تسجيل المخزون'!#REF!,N33,'تسجيل المخزون'!#REF!,\"وارد\")-SUMIFS('تسجيل المخزون'!$F$2:$F$93,'تسجيل المخزون'!$D$2:$D$93,$G$1,'تسجيل المخزون'!#REF!,N33,'تسجيل المخزون'!#REF!,\"بيع\")-SUMIFS('تسجيل المخزون'!$F$2:$F$93,'تسجيل المخزون'!$D$2:$D$93,$G$1,'تسجيل المخزون'!#REF!,N33,'تسجيل المخزون'!#REF!,\"تالف\")","v":{"$error":"#REF!"}},{"$f":"SUMIFS('تسجيل المخزون'!$F$2:$F$93,'تسجيل المخزون'!$D$2:$D$93,$G$1,'تسجيل المخزون'!#REF!,O33,'تسجيل المخزون'!#REF!,\"وارد\")-SUMIFS('تسجيل المخزون'!$F$2:$F$93,'تسجيل المخزون'!$D$2:$D$93,$G$1,'تسجيل المخزون'!#REF!,O33,'تسجيل المخزون'!#REF!,\"بيع\")-SUMIFS('تسجيل المخزون'!$F$2:$F$93,'تسجيل المخزون'!$D$2:$D$93,$G$1,'تسجيل المخزون'!#REF!,O33,'تسجيل المخزون'!#REF!,\"تالف\")","v":{"$error":"#REF!"}},{"$f":"SUMIFS('تسجيل المخزون'!$F$2:$F$93,'تسجيل المخزون'!$D$2:$D$93,$G$1,'تسجيل المخزون'!#REF!,P33,'تسجيل المخزون'!#REF!,\"وارد\")-SUMIFS('تسجيل المخزون'!$F$2:$F$93,'تسجيل المخزون'!$D$2:$D$93,$G$1,'تسجيل المخزون'!#REF!,P33,'تسجيل المخزون'!#REF!,\"بيع\")-SUMIFS('تسجيل المخزون'!$F$2:$F$93,'تسجيل المخزون'!$D$2:$D$93,$G$1,'تسجيل المخزون'!#REF!,P33,'تسجيل المخزون'!#REF!,\"تالف\")","v":{"$error":"#REF!"}},{"$f":"SUMIFS('تسجيل المخزون'!$F$2:$F$93,'تسجيل المخزون'!$D$2:$D$93,$G$1,'تسجيل المخزون'!#REF!,Q33,'تسجيل المخزون'!#REF!,\"وارد\")-SUMIFS('تسجيل المخزون'!$F$2:$F$93,'تسجيل المخزون'!$D$2:$D$93,$G$1,'تسجيل المخزون'!#REF!,Q33,'تسجيل المخزون'!#REF!,\"بيع\")-SUMIFS('تسجيل المخزون'!$F$2:$F$93,'تسجيل المخزون'!$D$2:$D$93,$G$1,'تسجيل المخزون'!#REF!,Q33,'تسجيل المخزون'!#REF!,\"تالف\")","v":{"$error":"#REF!"}},{"$f":"SUMIFS('تسجيل المخزون'!$F$2:$F$93,'تسجيل المخزون'!$D$2:$D$93,$G$1,'تسجيل المخزون'!#REF!,R33,'تسجيل المخزون'!#REF!,\"وارد\")-SUMIFS('تسجيل المخزون'!$F$2:$F$93,'تسجيل المخزون'!$D$2:$D$93,$G$1,'تسجيل المخزون'!#REF!,R33,'تسجيل المخزون'!#REF!,\"بيع\")-SUMIFS('تسجيل المخزون'!$F$2:$F$93,'تسجيل المخزون'!$D$2:$D$93,$G$1,'تسجيل المخزون'!#REF!,R33,'تسجيل المخزون'!#REF!,\"تالف\")","v":{"$error":"#REF!"}},{"$f":"SUMIFS('تسجيل المخزون'!$F$2:$F$93,'تسجيل المخزون'!$D$2:$D$93,$G$1,'تسجيل المخزون'!#REF!,S33,'تسجيل المخزون'!#REF!,\"وارد\")-SUMIFS('تسجيل المخزون'!$F$2:$F$93,'تسجيل المخزون'!$D$2:$D$93,$G$1,'تسجيل المخزون'!#REF!,S33,'تسجيل المخزون'!#REF!,\"بيع\")-SUMIFS('تسجيل المخزون'!$F$2:$F$93,'تسجيل المخزون'!$D$2:$D$93,$G$1,'تسجيل المخزون'!#REF!,S33,'تسجيل المخزون'!#REF!,\"تالف\")","v":{"$error":"#REF!"}},{"$f":"SUMIFS('تسجيل المخزون'!$F$2:$F$93,'تسجيل المخزون'!$D$2:$D$93,$G$1,'تسجيل المخزون'!#REF!,T33,'تسجيل المخزون'!#REF!,\"وارد\")-SUMIFS('تسجيل المخزون'!$F$2:$F$93,'تسجيل المخزون'!$D$2:$D$93,$G$1,'تسجيل المخزون'!#REF!,T33,'تسجيل المخزون'!#REF!,\"بيع\")-SUMIFS('تسجيل المخزون'!$F$2:$F$93,'تسجيل المخزون'!$D$2:$D$93,$G$1,'تسجيل المخزون'!#REF!,T33,'تسجيل المخزون'!#REF!,\"تالف\")","v":{"$error":"#REF!"}},{"$f":"SUMIFS('تسجيل المخزون'!$F$2:$F$93,'تسجيل المخزون'!$D$2:$D$93,$G$1,'تسجيل المخزون'!#REF!,U33,'تسجيل المخزون'!#REF!,\"وارد\")-SUMIFS('تسجيل المخزون'!$F$2:$F$93,'تسجيل المخزون'!$D$2:$D$93,$G$1,'تسجيل المخزون'!#REF!,U33,'تسجيل المخزون'!#REF!,\"بيع\")-SUMIFS('تسجيل المخزون'!$F$2:$F$93,'تسجيل المخزون'!$D$2:$D$93,$G$1,'تسجيل المخزون'!#REF!,U33,'تسجيل المخزون'!#REF!,\"تالف\")","v":{"$error":"#REF!"}},{"$f":"SUMIFS('تسجيل المخزون'!$F$2:$F$93,'تسجيل المخزون'!$D$2:$D$93,$G$1,'تسجيل المخزون'!#REF!,V33,'تسجيل المخزون'!#REF!,\"وارد\")-SUMIFS('تسجيل المخزون'!$F$2:$F$93,'تسجيل المخزون'!$D$2:$D$93,$G$1,'تسجيل المخزون'!#REF!,V33,'تسجيل المخزون'!#REF!,\"بيع\")-SUMIFS('تسجيل المخزون'!$F$2:$F$93,'تسجيل المخزون'!$D$2:$D$93,$G$1,'تسجيل المخزون'!#REF!,V33,'تسجيل المخزون'!#REF!,\"تالف\")","v":{"$error":"#REF!"}},{"$f":"SUMIFS('تسجيل المخزون'!$F$2:$F$93,'تسجيل المخزون'!$D$2:$D$93,$G$1,'تسجيل المخزون'!#REF!,W33,'تسجيل المخزون'!#REF!,\"وارد\")-SUMIFS('تسجيل المخزون'!$F$2:$F$93,'تسجيل المخزون'!$D$2:$D$93,$G$1,'تسجيل المخزون'!#REF!,W33,'تسجيل المخزون'!#REF!,\"بيع\")-SUMIFS('تسجيل المخزون'!$F$2:$F$93,'تسجيل المخزون'!$D$2:$D$93,$G$1,'تسجيل المخزون'!#REF!,W33,'تسجيل المخزون'!#REF!,\"تالف\")","v":{"$error":"#REF!"}},{"$f":"SUMIFS('تسجيل المخزون'!$F$2:$F$93,'تسجيل المخزون'!$D$2:$D$93,$G$1,'تسجيل المخزون'!#REF!,X33,'تسجيل المخزون'!#REF!,\"وارد\")-SUMIFS('تسجيل المخزون'!$F$2:$F$93,'تسجيل المخزون'!$D$2:$D$93,$G$1,'تسجيل المخزون'!#REF!,X33,'تسجيل المخزون'!#REF!,\"بيع\")-SUMIFS('تسجيل المخزون'!$F$2:$F$93,'تسجيل المخزون'!$D$2:$D$93,$G$1,'تسجيل المخزون'!#REF!,X33,'تسجيل المخزون'!#REF!,\"تالف\")","v":{"$error":"#REF!"}},{"$f":"SUMIFS('تسجيل المخزون'!$F$2:$F$93,'تسجيل المخزون'!$D$2:$D$93,$G$1,'تسجيل المخزون'!#REF!,Y33,'تسجيل المخزون'!#REF!,\"وارد\")-SUMIFS('تسجيل المخزون'!$F$2:$F$93,'تسجيل المخزون'!$D$2:$D$93,$G$1,'تسجيل المخزون'!#REF!,Y33,'تسجيل المخزون'!#REF!,\"بيع\")-SUMIFS('تسجيل المخزون'!$F$2:$F$93,'تسجيل المخزون'!$D$2:$D$93,$G$1,'تسجيل المخزون'!#REF!,Y33,'تسجيل المخزون'!#REF!,\"تالف\")","v":{"$error":"#REF!"}},"2023-01-30",null,"2023-03-30","2023-04-30","2023-05-30","2023-06-30","2023-07-30","2023-08-30","2023-09-30","2023-10-30","2023-11-30","2023-12-30"]
[31,{"$f":"SUMIFS('تسجيل المخزون'!$F$2:$F$93,'تسجيل المخزون'!$D$2:$D$93,$G$1,'تسجيل المخزون'!#REF!,N34,'تسجيل المخزون'!#REF!,\"وارد\")-SUMIFS('تسجيل المخزون'!$F$2:$F$93,'تسجيل المخزون'!$D$2:$D$93,$G$1,'تسجيل المخزون'!#REF!,N34,'تسجيل المخزون'!#REF!,\"بيع\")-SUMIFS('تسجيل المخزون'!$F$2:$F$93,'تسجيل المخزون'!$D$2:$D$93,$G$1,'تسجيل المخزون'!#REF!,N34,'تسجيل المخزون'!#REF!,\"تالف\")","v":{"$error":"#REF!"}},{"$f":"SUMIFS('تسجيل المخزون'!$F$2:$F$93,'تسجيل المخزون'!$D$2:$D$93,$G$1,'تسجيل المخزون'!#REF!,O34,'تسجيل المخزون'!#REF!,\"وارد\")-SUMIFS('تسجيل المخزون'!$F$2:$F$93,'تسجيل المخزون'!$D$2:$D$93,$G$1,'تسجيل المخزون'!#REF!,O34,'تسجيل المخزون'!#REF!,\"بيع\")-SUMIFS('تسجيل المخزون'!$F$2:$F$93,'تسجيل المخزون'!$D$2:$D$93,$G$1,'تسجيل المخزون'!#REF!,O34,'تسجيل المخزون'!#REF!,\"تالف\")","v":{"$error":"#REF!"}},{"$f":"SUMIFS('تسجيل المخزون'!$F$2:$F$93,'تسجيل المخزون'!$D$2:$D$93,$G$1,'تسجيل المخزون'!#REF!,P34,'تسجيل المخزون'!#REF!,\"وارد\")-SUMIFS('تسجيل المخزون'!$F$2:$F$93,'تسجيل المخزون'!$D$2:$D$93,$G$1,'تسجيل المخزون'!#REF!,P34,'تسجيل المخزون'!#REF!,\"بيع\")-SUMIFS('تسجيل المخزون'!$F$2:$F$93,'تسجيل المخزون'!$D$2:$D$93,$G$1,'تسجيل المخزون'!#REF!,P34,'تسجيل المخزون'!#REF!,\"تالف\")","v":{"$error":"#REF!"}},{"$f":"SUMIFS('تسجيل المخزون'!$F$2:$F$93,'تسجيل المخزون'!$D$2:$D$93,$G$1,'تسجيل المخزون'!#REF!,Q34,'تسجيل المخزون'!#REF!,\"وارد\")-SUMIFS('تسجيل المخزون'!$F$2:$F$93,'تسجيل المخزون'!$D$2:$D$93,$G$1,'تسجيل المخزون'!#REF!,Q34,'تسجيل المخزون'!#REF!,\"بيع\")-SUMIFS('تسجيل المخزون'!$F$2:$F$93,'تسجيل المخزون'!$D$2:$D$93,$G$1,'تسجيل المخزون'!#REF!,Q34,'تسجيل المخزون'!#REF!,\"تالف\")","v":{"$error":"#REF!"}},{"$f":"SUMIFS('تسجيل المخزون'!$F$2:$F$93,'تسجيل المخزون'!$D$2:$D$93,$G$1,'تسجيل المخزون'!#REF!,R34,'تسجيل المخزون'!#REF!,\"وارد\")-SUMIFS('تسجيل المخزون'!$F$2:$F$93,'تسجيل المخزون'!$D$2:$D$93,$G$1,'تسجيل المخزون'!#REF!,R34,'تسجيل المخزون'!#REF!,\"بيع\")-SUMIFS('تسجيل المخزون'!$F$2:$F$93,'تسجيل المخزون'!$D$2:$D$93,$G$1,'تسجيل المخزون'!#REF!,R34,'تسجيل المخزون'!#REF!,\"تالف\")","v":{"$error":"#REF!"}},{"$f":"SUMIFS('تسجيل المخزون'!$F$2:$F$93,'تسجيل المخزون'!$D$2:$D$93,$G$1,'تسجيل المخزون'!#REF!,S34,'تسجيل المخزون'!#REF!,\"وارد\")-SUMIFS('تسجيل المخزون'!$F$2:$F$93,'تسجيل المخزون'!$D$2:$D$93,$G$1,'تسجيل المخزون'!#REF!,S34,'تسجيل المخزون'!#REF!,\"بيع\")-SUMIFS('تسجيل المخزون'!$F$2:$F$93,'تسجيل المخزون'!$D$2:$D$93,$G$1,'تسجيل المخزون'!#REF!,S34,'تسجيل المخزون'!#REF!,\"تالف\")","v":{"$error":"#REF!"}},{"$f":"SUMIFS('تسجيل المخزون'!$F$2:$F$93,'تسجيل المخزون'!$D$2:$D$93,$G$1,'تسجيل المخزون'!#REF!,T34,'تسجيل المخزون'!#REF!,\"وارد\")-SUMIFS('تسجيل المخزون'!$F$2:$F$93,'تسجيل المخزون'!$D$2:$D$93,$G$1,'تسجيل المخزون'!#REF!,T34,'تسجيل المخزون'!#REF!,\"بيع\")-SUMIFS('تسجيل المخزون'!$F$2:$F$93,'تسجيل المخزون'!$D$2:$D$93,$G$1,'تسجيل المخزون'!#REF!,T34,'تسجيل المخزون'!#REF!,\"تالف\")","v":{"$error":"#REF!"}},{"$f":"SUMIFS('تسجيل المخزون'!$F$2:$F$93,'تسجيل المخزون'!$D$2:$D$93,$G$1,'تسجيل المخزون'!#REF!,U34,'تسجيل المخزون'!#REF!,\"وارد\")-SUMIFS('تسجيل المخزون'!$F$2:$F$93,'تسجيل المخزون'!$D$2:$D$93,$G$1,'تسجيل المخزون'!#REF!,U34,'تسجيل المخزون'!#REF!,\"بيع\")-SUMIFS('تسجيل المخزون'!$F$2:$F$93,'تسجيل المخزون'!$D$2:$D$93,$G$1,'تسجيل المخزون'!#REF!,U34,'تسجيل المخزون'!#REF!,\"تالف\")","v":{"$error":"#REF!"}},{"$f":"SUMIFS('تسجيل المخزون'!$F$2:$F$93,'تسجيل المخزون'!$D$2:$D$93,$G$1,'تسجيل المخزون'!#REF!,V34,'تسجيل المخزون'!#REF!,\"وارد\")-SUMIFS('تسجيل المخزون'!$F$2:$F$93,'تسجيل المخزون'!$D$2:$D$93,$G$1,'تسجيل المخزون'!#REF!,V34,'تسجيل المخزون'!#REF!,\"بيع\")-SUMIFS('تسجيل المخزون'!$F$2:$F$93,'تسجيل المخزون'!$D$2:$D$93,$G$1,'تسجيل المخزون'!#REF!,V34,'تسجيل المخزون'!#REF!,\"تالف\")","v":{"$error":"#REF!"}},{"$f":"SUMIFS('تسجيل المخزون'!$F$2:$F$93,'تسجيل المخزون'!$D$2:$D$93,$G$1,'تسجيل المخزون'!#REF!,W34,'تسجيل المخزون'!#REF!,\"وارد\")-SUMIFS('تسجيل المخزون'!$F$2:$F$93,'تسجيل المخزون'!$D$2:$D$93,$G$1,'تسجيل المخزون'!#REF!,W34,'تسجيل المخزون'!#REF!,\"بيع\")-SUMIFS('تسجيل المخزون'!$F$2:$F$93,'تسجيل المخزون'!$D$2:$D$93,$G$1,'تسجيل المخزون'!#REF!,W34,'تسجيل المخزون'!#REF!,\"تالف\")","v":{"$error":"#REF!"}},{"$f":"SUMIFS('تسجيل المخزون'!$F$2:$F$93,'تسجيل المخزون'!$D$2:$D$93,$G$1,'تسجيل المخزون'!#REF!,X34,'تسجيل المخزون'!#REF!,\"وارد\")-SUMIFS('تسجيل المخزون'!$F$2:$F$93,'تسجيل المخزون'!$D$2:$D$93,$G$1,'تسجيل المخزون'!#REF!,X34,'تسجيل المخزون'!#REF!,\"بيع\")-SUMIFS('تسجيل المخزون'!$F$2:$F$93,'تسجيل المخزون'!$D$2:$D$93,$G$1,'تسجيل المخزون'!#REF!,X34,'تسجيل المخزون'!#REF!,\"تالف\")","v":{"$error":"#REF!"}},{"$f":"SUMIFS('تسجيل المخزون'!$F$2:$F$93,'تسجيل المخزون'!$D$2:$D$93,$G$1,'تسجيل المخزون'!#REF!,Y34,'تسجيل المخزون'!#REF!,\"وارد\")-SUMIFS('تسجيل المخزون'!$F$2:$F$93,'تسجيل المخزون'!$D$2:$D$93,$G$1,'تسجيل المخزون'!#REF!,Y34,'تسجيل المخزون'!#REF!,\"بيع\")-SUMIFS('تسجيل المخزون'!$F$2:$F$93,'تسجيل المخزون'!$D$2:$D$93,$G$1,'تسجيل المخزون'!#REF!,Y34,'تسجيل المخزون'!#REF!,\"تالف\")","v":{"$error":"#REF!"}},"2023-01-31",null,"2023-03-31",null,"2023-05-31",null,"2023-07-31","2023-08-31",null,"2023-10-31",null,"2023-12-31"]
["المجموع",{"$f":"SUM(B4:B34)","v":{"$error":"#REF!"}},{"$f":"SUM(C4:C34)","v":{"$error":"#REF!"}},{"$error":"#REF!"},{"$error":"#REF!"},{"$error":"#REF!"},{"$error":"#REF!"},{"$error":"#REF!"},{"$error":"#REF!"},{"$error":"#REF!"},{"$error":"#REF!"},{"$error":"#REF!"},{"$error":"#REF!"}]

{"sheet":"الشهر","index":6,"n_rows":3,"n_cols":5,"rows_kept":3,"cut":false,"hidden":false,"merged":[]}
[null,"تقرير الشهر :","الثاني عشر"]
[null,"الصنف :"]
["رقم الفاتورة","التاريخ","الصنف","الغرام","العدد"]

{"sheet":"بطاقة المواد","index":7,"n_rows":19,"n_cols":5,"rows_kept":19,"cut":false,"hidden":false,"merged":[]}
[]
["مسلسل","رقم الباركود","باركود الصنف","الصنف","الجرام"]
[1,1,{"$f":"\"*\"&B3&\"*\"","v":"*1*"},"مواد خام",40]
[2,2,{"$f":"\"*\"&B4&\"*\"","v":"*2*"},"عشرة",4]
[3,3,"*3*","عشرين",3]
[4,4,"*4*","تلاتين",5]
[5,5,"*5*","اربعين",55]
[6,6,"*6*","خمسين",22]
[7,7,"*7*","SA",65]
[8,null,"**"]
[9,null,"**"]
[10,null,"**"]
[11,null,"**"]
[12,null,"**"]
[13,null,"**"]
[14,null,"**"]
[15,null,"**"]
[16,null,"**"]
[17,null,"**"]

{"sheet":"مخزون التالف","index":8,"n_rows":2,"n_cols":2,"rows_kept":2,"cut":false,"hidden":false,"merged":[]}
[]
[null,{"$f":"IFERROR(INDEX(تسجيل [1]التالف!D2:D270,MATCH(0,COUNTIF($A$1:A1,تسجيل [1]التالف!$D$2:$D$270),0)),\"\")","v":""}]